Workbook

Sheet Accueil
B11: Tremplin pour la transition écologique des PME
B13: Le présent tableur excel est la base pour remplir votre dossier d’aide dans le cadre du guichet « Tremplin pour la transition écologique des PME ».
B15: Le changement d'onglet lance des programmes qui peuvent durer quelques secondes.
B17: Pour le remplir, veuillez suivre les étapes suivantes :
B19: 1. Avant de commencer
A21: ? | B21: Le guichet d'aides "Tremplin pour la transition écologique des PME" permet d’accompagner les premiers pas d’une transition écologique en de bénéficiant rapidement d’aides forfaitaires. Avez-vous fait votre climatomètre? en 15 minutes vous pouvez auto-évaluer votre niveau de maturité vis-à-vis de la transition écologique et de l'économie circulaire, et entamer ainsi votre démarche de transition https://climatometre.bpifrance.fr/#/home Avant de solliciter ces aides, nous vous incitons à bénéficier de conseils et accompagnement personnalisés, par exemple en vous tournant vers votre CCI ou votre CMA ou via le Diag' éco-flux de Bpifrance. Par ailleurs, si vous souhaitez engager des projets plus ambitieux, vous pouvez sans doute bénéficier des autres aides de l'ADEME, présentées sur la plateforme agirpourlatransition.ademe.fr
B23: Important : avant de commencer à remplir ce tableur !
B24: Utilisez Microsoft Excel. Ce tableur ne fonctionne pas sur des logiciels tels que Open Office.
B25: Activez les macros du fichier excel si un message d’alerte apparaît.
B26: Ensuite, toutes les cellules à remplir sont indiquées sur fond bleu :
B28: 2. Renseignez d’abord l’onglet « 1- J’identifie mon entreprise »
B30: Secteur d’activité et localisation
B31: Il vous faudra renseigner :
C32: - votre code APE (ou code NAF), qui détermine votre secteur d’activité (menu déroulant) ;
C33: - déclarer si vous êtes un autoentrepreneur ou que vous avez choisi le régime microentreprise (ce qui en général vous exclut des aides Tremplin) ;
C34: - votre localisation dans les listes déroulantes (le département puis la commune).
B36: Suivant votre situation des questions complémentaires peuvent apparaître, s’il existe des dispositifs spécifiques de l’ADEME pour votre secteur d’activité.
B38: Déclaration des aides d’Etat dans le cadre du régime de minimis
B39: Nous vous demandons de déclarer toutes les aides publiques (de l’Etat, des régions, départements, communes, etc.) que vous avez déjà sollicitées sur la base du régime de minimis (déclaration des aides perçues à l’échelle du SIREN). Cette référence doit apparaître dans les dossiers d’aide que vous avez déjà remplis. Renseignez une ligne par aide sollicitée, ainsi que la colonne « Montant obtenu » si vous avez déjà reçu le financement. Cette information nous permet de calculer l’aide maximale à laquelle vous pourriez avoir droit.
B41: 3. Renseignez ensuite l’onglet « 2- Je choisis mes actions »
B43: Seules les actions auxquelles vous avez droit, selon votre secteur d’activité et votre localisation géographique, apparaissent.
B44: Parmi toutes les études et investissements proposés, vous pouvez choisir les actions que vous comptez engager.
B45: Pour plus d’informations sur les actions proposées, vous pouvez passer votre souris sur l’icône « ? » en début de ligne. C'est cette définition détaillée qui sert de base ensuite aux relations contractuelles entre vous et l'ADEME.
B47: Pour chaque ligne que vous choisirez, vous devez :
B48: 1/ Renseigner la quantité | C48: Renseigner la quantité
C49: - Pour les études ou les gros investissements, le choix de l'action sera oui ou non, choix matérialisé dans le tableau par une liste déroulante vous permettant de choisir entre 0 et 1.
C50: - Pour les autres investissements nous vous demandons des renseignements spécifiques suivant le type d’opération (par exemple la surface de votre bâtiment pour les études thermiques, le nombre de vélo-cargos électriques dont vous souhaitez vous équiper, etc.)
B51: 2/ Renseigner le coût total de cette opération, tel que vous l’estimez. Il s’agit d’un coût hors taxes récupérables (HTR), c'est-à-dire le montant d'achat, déduction faite de la TVA qui sera récupérée auprès du trésor public.
B52: Par exemple, une entreprise assujetti à la TVA achète 3 vélo-cargos électriques, le coût total HT de cette acquisition devra ici être renseigné.
B53: Des devis vous seront demandés pour justifier votre estimation de ce coût total, à l'exception des montants les plus faibles.
B55: Sur cette base, un montant prévisionnel de l’aide ADEME s’affiche automatiquement, ainsi que l’information si un devis vous sera demandé au moment du dépôt du dossier.
B56: Vous pourrez ainsi décider de vous engager ou non à réaliser les actions, en fonction de l’aide apportée.
B58: 4. Finalisez votre demande sur l'onglet « 3-Synthèse et finalisation »
B60: L’onglet « Synthèse de votre demande » résume les éléments que vous devrez transmettre à l’ADEME :
B62: Le montant total de l’opération, sur la base des coûts prévisionnels que vous avez déclarés.
B64: Le montant prévisionnel de l’aide ADEME, qui tient compte des actions sélectionnées mais aussi des contraintes juridiques.
B65: En tout état de cause, cette aide ne peut être inférieure à 5 000 € ou supérieure à 200 000 €.
B66: Le plafond des aides d’Etat dans le cadre du régime cadre temporaire français pour le soutien aux entreprises dans le cadre de la crise du COVID-19 est de 1 800 000 €.
B68: Le rappel des actions que vous avez sélectionnées et pour chacune d’elles si un devis devra être transmis à l’ADEME.
B70: Cliquer sur le bouton « Générer le fichier à transmettre à l'ADEME » : il va créer un nouveau fichier excel ;
B71: Enregistrez ce nouveau fichier sous le nom « [votre numéro de siret]_Tremplin transition écologique.xlsx »
B73: Poursuivez ensuite votre demande d’aide en créant un compte sur la plateforme dématérialisée de l’ADEME.
B74: https://agirpourlatransition.ademe.fr/entreprises/dispositif-aide/tremplin-transition-ecologique-pme
B76: Il vous faudra en particulier renseigner sur ce site, outre les éléments d’information sur votre entreprise, le montant total de l’opération et le montant prévisionnel de l’aide ADEME issus du tableur excel. Il faudra également télécharger le présent tableur excel, enregistré sous le nom précisé-ci-dessus, ainsi que les devis requis (en un seul document pdf les regroupant tous) ainsi que votre RIB.
B78: Version du | C78: 2023-12-04

Sheet 1-J'identifie mon entreprise
D2: ="Version du "&TEXT(Accueil!C78,"JJ/MM/AAAA") -> Version du 04/12/2023 | G2: ="list_"&IF(C24<10,TEXT(C24,"00"),$C$24) -> list_00
A3: SECTEUR D'ACTIVITE ET LOCALISATION | G3: =IF(H11="",0,1)+IF(H24="",0,1)+IF(H66="",0,1)+IF(H113="",0,1)+IF(H18="",0,1)+IF(H52="",0,1)+IF(H53="",0,1)+IF(H54="",0,1)+IF(H55="",0,1)+IF(H56="",0,1)+IF(H57="",0,1)+IF(H58="",0,1)+IF(H59="",0,1)+IF(H68="",0,1)+IF(H74="",0,1)+IF(H75="",0,1)+IF(H76="",0,1)+IF(H77="",0,1)+IF(H78="",0,1)+IF(H79="",0,1)+IF(H80="",0,1)+IF(H81="",0,1)+IF(H30="",0,1) -> 5
B5: Secteur d'activité
B7: =CODE_SECTION_DEMANDEUR ->  | C7: =LIBELLE_SECTION_DEMANDEUR -> 
C8: =LIBELLE_DIVISION_DEMANDEUR -> 
C9: =LIBELLE_GROUPE_DEMANDEUR ->  | G9: =IFERROR(VLOOKUP(code_naf,LIST_NAF!A:O,15,FALSE),"Non") -> Non
B11: Code Naf : | G11: =IF(C11="","",IFERROR(LEFT(C11,5),"")) ->  | H11: =IF(C11="","Veuillez renseigner votre code NAF","") -> Veuillez renseigner votre code NAF
G12: 0
C13: Votre entreprise dispose-t-elle de bâtiments industriels * :
A14: * Les bâtiments industriels sont tous les bâtiments qui ne relèvent pas des activités tertiaires (bureaux, commerce, hôtellerie/restauration, éducation, santé…), ou de logement. Il peut s’agir d’ateliers de production ou de test, de stockage, etc.
G15: 0
C16: Quel est votre secteur d'activité spécifique :
G17: Affichage Colletivité
D18: ="Êtes-vous une entreprise individuelle soumis au régime micro-entreprise (autoentrepreneur) :" -> Êtes-vous une entreprise individuelle soumis au régime micro-entreprise (autoentrepreneur) : | G18: =IF(AND(code_naf="8411Z",ZONE_ZFE="Oui"),1,0) -> 0 | H18: =IF(AND(E18="",code_naf<>"8411Z"),"Veuillez indiquer si vous êtes au régime micro-entreprise","") -> Veuillez indiquer si vous êtes au régime micro-entreprise
C20: Êtes-vous une collectivité locale :
G21: =IF(OR(ch_departement=LIST_GEO!$H$21,ch_departement=LIST_GEO!$H$22),1,0) -> 0
B22: Code postal | G22: =IF(OR($C$24=LIST_GEO!$H$98,$C$24=LIST_GEO!$H$99,$C$24=LIST_GEO!$H$100,$C$24=LIST_GEO!H101,$C$24=LIST_GEO!H102,$C$24=LIST_GEO!H103,$C$24=LIST_GEO!H104,$C$24=LIST_GEO!$H$105,$C$24=LIST_GEO!$H$106,$C$24=LIST_GEO!H107,$C$24=LIST_GEO!H108,$C$24=LIST_GEO!$H$109),1,0) -> 0
B24: Département : | D24: Ville : | G24: Zone rural : | H24: =IF(C24="","Veuillez sélectionner le département du site d'implantation de la structure utilisatrice",IF(E24="","Veuillez sélectionner la ville du site d'implantation de la structure utilisatrice",IF(ISERROR(CORRESPONDANCE_VILLE_DEP),"Incompatibilité entre le numéro de département et la ville",""))) -> Veuillez sélectionner le département du site d'implantation de la structure utilisatrice
G25: =IF(C24>=98,"Oui",IF(ISERROR(VLOOKUP(TEXT(C24,"00")&"-"&E24,LIST_GEO!C:F,4,FALSE)),"Non",IF(VLOOKUP(TEXT(C24,"00")&"-"&E24,LIST_GEO!C:F,4,FALSE)="Non","Non","Oui"))) -> Non
B26: Partenariat Fonds Tourisme durable | G26: =IF(AND(OR(CODE_DIVISION_DEMANDEUR=DIVISION_HEBERGEMENT,CODE_NAF_DEMANDEUR=NAF_RESTO_1,CODE_NAF_DEMANDEUR=NAF_RESTO_2,code_naf="8413Z",code_naf="8411Z",code_naf="9499Z",naf_section="SECTION A",code_naf="1102A",code_naf="1102B",code_naf="1103Z",,code_naf="1104Z",code_naf="1105Z",code_naf="1106Z"),zone_rural="Oui"),1,0) -> 0
G27: =IF(D30>=98,"Oui",IF(ISERROR(VLOOKUP(TEXT(D30,"00")&"-"&E30,LIST_GEO!C:F,4,FALSE)),"Non",IF(VLOOKUP(TEXT(D30,"00")&"-"&E30,LIST_GEO!C:F,4,FALSE)="Non","Non","Oui"))) -> Non
A28: Réalisez-vous des investissements de rénovation « pour le compte » d’un établissement touristique éligible au fonds Tourisme Durable (propriétaire du bâtiment et exploitant de l’activité d’hébergement/restauration sont deux sociétés différentes) : | G28: =IF(OR(code_naf="6820B",code_naf="9499Z",AND(code_naf="8411Z",collectivite_locale="Oui")),1,0) -> 0
G29: =IF(AND(aff_sci=1,F28="Oui"),1,0) -> 0
C30: Département et ville de l'établissement : | G30: ="list_"&IF(D30<10,TEXT(D30,"00"),$D$30) -> list_00 | H30: =IF(OR(aff_sci=0,aff_sci2=0),"",IF(D30="","Veuillez sélectionner le département du site d'implantation de la structure utilisatrice",IF(E30="","Veuillez sélectionner la ville du site d'implantation de la structure utilisatrice",IF(ISERROR(CORRESPONDANCE_VILLE_DEP2),"Incompatibilité entre le numéro de département et la ville","")))) -> 
G31: =IF(OR(aff_sci=0,aff_sci2=0,zone_rural2<>"Oui"),"Non",IF(F36="","Non",IF(OR(ch_code_partenaire=List!$AC$2,ch_code_partenaire=List!AC4),"Oui",IF(ISERROR(VLOOKUP(LEFT(VLOOKUP(D30,LIST_GEO!H:I,2,FALSE),2)&"-"&F36,List!AB:AB,1,FALSE)),"Non","Oui")))) -> Non
E32: Avez-vous une activité d’hébergement touristique liée au tourisme social : | G32: Secteur tourisme durable
G33: =IF(OR(CODE_DIVISION_DEMANDEUR=DIVISION_HEBERGEMENT,code_naf="8413Z",code_naf="8411Z",CODE_NAF_DEMANDEUR=NAF_RESTO_1,CODE_NAF_DEMANDEUR=NAF_RESTO_2),"Oui","Non") -> Non
E34: =IF(code_naf="9499Z","Avez-vous une activité d’hébergement touristique liée au tourisme social :","Avez-vous une activité de restauration ou d’hébergement touristique liée à l’agritourisme qui représente au minimum 20% de votre chiffre d’affaire :") -> Avez-vous une activité de restauration ou d’hébergement touristique liée à l’agritourisme qui représente au minimum 20% de votre chiffre d’affaire : | F34: Non | G34: =IF(AND(OR(naf_section="SECTION A"),zone_rural="Oui"),1,0) -> 0
G35: Partenaire :
E36: Si vous avez un code partenaire fonds tourisme durable, veuillez l'indiquer ici : | G36: =IF(F36="","Non",IF(OR(ch_code_partenaire=List!$AC$2,ch_code_partenaire=List!$AC$3,ch_code_partenaire=List!AC4,AND(ch_code_partenaire=List!$AC$71,ch_departement=71)),"Oui",IF(ISERROR(VLOOKUP(LEFT(VLOOKUP(ch_departement,LIST_GEO!H:I,2,FALSE),2)&"-"&F36,List!AB:AB,1,FALSE)),"Non","Oui"))) -> Non | H36: =IF(ch_code_partenaire="","",IF(ISERROR(VLOOKUP(ch_code_partenaire,code_partenaires,1,FALSE)),"Code partenaire inexistant","")) -> 
F37: Si vous n'êtes pas accompagné par un partenaire, nous vous engageons fortement à contacter l'ADEME pour bénéficier des financements spécifiques fonds tourisme durable | G37: =IF(AND(code_naf="9499Z",zone_rural="Oui",aff_sci2=0),1,0) -> 0
G38: =IF(AND(OR(CODE_DIVISION_DEMANDEUR=DIVISION_HEBERGEMENT,CODE_NAF_DEMANDEUR=NAF_RESTO_1,CODE_NAF_DEMANDEUR=NAF_RESTO_2),partenaire="Oui"),1,0) -> 0
C39: ="Avez-vous également une activité "&IF(C8="Hébergement","de restauration","d'hébergement")&" :" -> Avez-vous également une activité d'hébergement : | G39: =IF(OR(partenaire<>"Oui",partenaire_sci="Oui"),0,IF(AND(OR(AND(CODE_DIVISION_DEMANDEUR=DIVISION_HEBERGEMENT,D39="Oui"),CODE_NAF_DEMANDEUR=NAF_RESTO_1,CODE_NAF_DEMANDEUR=NAF_RESTO_2,code_naf="1102A",code_naf="1102B",code_naf="1103Z",,code_naf="1104Z",code_naf="1105Z",code_naf="1106Z",AND(code_naf="9499Z",OR(ch_ftd_social="Restauration",ch_ftd_social="Restauration + Hébergement")),AND(OR(naf_section="SECTION A",code_naf="6820B"),OR(ch_fdt_agri="Restauration",ch_fdt_agri="Restauration + Hébergement")),code_naf="8413Z",code_naf="8411Z"),zone_rural="Oui"),1,0)) -> 0
G40: =IF(zone_rural<>"Oui",0,IF(OR(AND(fdt_agri=1,ch_fdt_agri<>"",ch_fdt_agri<>"Non"),AND(ftd_social=1,ch_ftd_social<>"",ch_ftd_social<>"Non"),CODE_DIVISION_DEMANDEUR=DIVISION_HEBERGEMENT,code_naf="8413Z",code_naf="8411Z",CODE_NAF_DEMANDEUR=NAF_RESTO_1,CODE_NAF_DEMANDEUR=NAF_RESTO_2,code_naf="1102A",code_naf="1102B",code_naf="1103Z",,code_naf="1104Z",code_naf="1105Z",code_naf="1106Z"),1,0)) -> 0
G41: =IF(OR(partenaire<>"Oui",partenaire_sci="Oui"),0,IF(AND(OR(CODE_DIVISION_DEMANDEUR=DIVISION_HEBERGEMENT,code_naf="1102A",code_naf="1102B",code_naf="1103Z",,code_naf="1104Z",code_naf="1105Z",code_naf="1106Z",AND(OR(CODE_NAF_DEMANDEUR=NAF_RESTO_1,CODE_NAF_DEMANDEUR=NAF_RESTO_2),D39="Oui"),AND(code_naf="9499Z",OR(ch_ftd_social="Hébergement",ch_ftd_social="Restauration + Hébergement")),AND(OR(naf_section="SECTION A",code_naf="6820B"),OR(ch_fdt_agri="Hébergement",ch_fdt_agri="Restauration + Hébergement")),code_naf="8413Z",code_naf="8411Z"),zone_rural="Oui"),1,0)) -> 0
A42: DECLARATION DES AIDES D'ETAT DANS LE CADRE DE LA CRISE DU COVID-19
A43: 0
B44: Je soussigné, | D44: représentant légal ou dûment habilité de
B45: entreprise unique au sens de la définition figurant à l'article 2.2 du règlement (UE) n°1407/2013 de la Commission du 18 décembre 2013 relatif à l'application des articles 107 et 108 sur le fonctionnement de l'Union européenne aux aides de minimis (1), certifie :
B46: n'avoir reçu ou demandé aucune aide d'Etat relevant du régime SA.56985 modifié (voir encadré) à la date de la présente déclaration,
B47: avoir reçu ou demandé une aide d'Etat relevant du régime SA.56985 modifié (voir encadré) à la date de la présente déclaration,
B49: Consignes pour le remplissage : Lister dans le tableau l'ensemble des aides reçues ou demandées par l’entreprise, au sens de la notion européenne d’entreprise unique, au titre du régime SA. 56985 modifié jusqu'au 31 décembre 2021.
B51: Date d'octroi ou de demande | C51: Organisme financeur | D51: Forme de l'aide (subvention, apports de fonds propres, avantages fiscaux et sociaux, prêts, avances remboursables, garanties, etc.) | E51: Montant sollicité | F51: Montant obtenu
G52: =IF(OR(F52=0,F52=""),IF(OR(E52=0,E52=""),0,E52),F52) -> 0 | H52: =IF(aide_covid=2,IF(OR(B52<>"",C52<>"",D52<>"",E52+F52>0),IF(B52="","Veuillez indiquer la date d'octroi ou de demande",IF(C52="","Veuillez indiquer l'organisme financeur",IF(D52="","Veuillez indiquer la forme de l'aide",IF(E52+F52>0,"","Veuillez indiquer le montant sollicité ou obtenu")))),""),"") -> 
G53: =IF(OR(F53=0,F53=""),IF(OR(E53=0,E53=""),0,E53),F53) -> 0
G54: 0
G55: 0
G56: 0
G57: 0
G58: 0
G59: 0
D60: TOTAL | E60: =SUM(E52:E59) -> 0 | F60: =SUM(F52:F59) -> 0 | G60: =SUM(G52:G59) -> 0
B62: Le régime cadre temporaire français notifié pour le soutien aux entreprises dans le cadre de la crise du COVID-19 SA. 56985 (modifié par SA. 57299, puis SA.58137 et SA.62102) permet notamment l'octroi d'aides jusqu'au 31 décembre 2021 sous diverses formes (subventions directes, apports de fonds propres, avantages fiscaux et sociaux sélectifs, prêts et avances remboursables) pour un montant nominal jusqu'à 2 300 000 € par entreprise unique ne relevant pas du secteur agricole primaire ou du secteur de la pêche et de l'aquaculture afin de leur permettre de faire face à des besoins de liquidités urgents et préserver la continuité de l'activité économique en leur permettant d'accéder à des financements. Les aides ne doivent pas excéder 270 000 € par entreprise unique du secteur de la pêche et de l'aquaculture ou 225 000 € par entreprise unique du secteur de la production primaire de produits agricoles.
A64: DECLARATION DES AIDES DE MINIMIS
B66: Je soussigné, | D66: représentant légal ou dûment habilité de | H66: =IF(C66="","Veuillez indiquer le nom du représentant légal de la structure",IF(E66="","Veuillez indiquer le nom de la structure","")) -> Veuillez indiquer le nom du représentant légal de la structure
B67: entreprise unique au sens de la définition figurant à l'article 2.2 du règlement (UE) n°1407/2013 de la Commission du 18 décembre 2013 relatif à l'application des articles 107 et 108 sur le fonctionnement de l'Union européenne aux aides de minimis (1), certifie :
B68: n'avoir reçu aucune aide de minimis durant les trois derniers exercices fiscaux, dont celui en cours à la date de la présente déclaration. | G68: TRUE | H68: =IF(AND(G68=FALSE,G69=FALSE),"Veuillez indiquer si vous avez reçu une aide de minimis",IF(AND(G68=TRUE,G69=TRUE),"Veuillez sélectionner qu'une seule option","")) -> 
B69: avoir reçu ou demandé durant les trois derniers exercices fiscaux, dont celui en cours à la date de la présente attestation, | G69: FALSE
B70: les aides de minimis suivantes :
B71: Consignes pour le remplissage : Lister dans le tableau l'ensemble des aides dites « de minimis », tous domaines confondus ayant fait l’objet d’un versement à l’entreprise, au sens de la notion européenne d'entreprise unique, au cours des 3 derniers exercices fiscaux dont l'exercice en cours ou les aides demandées pouvant faire l’objet d’un versement sous 3 ans.
G72: =SUMIFS(G74:G81,D74:D81,G86) -> 0
B73: Date d'octroi ou de demande | C73: Organisme | D73: Base juridique de minimis | E73: Montant sollicité | F73: Montant obtenu | G73: ="list_"&IFERROR(VLOOKUP(code_naf,LIST_NAF!A:P,16,FALSE),"Minimis") -> list_Minimis
G74: =IF(D74="Non",0,IF(OR(F74=0,F74=""),IF(OR(E74=0,E74=""),0,E74),F74)) -> 0 | H74: =IF(aff_minimis=TRUE,IF(OR(B74<>"",C74<>"",D74<>"",E74+F74>0),IF(B74="","Veuillez indiquer la date d'octroi ou de demande",IF(C74="","Veuillez indiquer l'organisme financeur",IF(D74="","Veuillez indiquer la base juridique (cf. ci-dessous)",IF(E74+F74>0,"","Veuillez indiquer le montant sollicité ou obtenu")))),""),"") -> 
G75: =IF(D75="Non",0,IF(OR(F75=0,F75=""),IF(OR(E75=0,E75=""),0,E75),F75)) -> 0
G76: 0
G77: 0
G78: 0
G79: 0
G80: 0
G81: 0
D82: TOTAL | E82: =SUM(E74:E81) -> 0 | F82: =SUM(F74:F81) -> 0 | G82: =SUM(G74:G81) -> 0
B83: Cette déclaration concerne les aides de minimis recues pour tous les établissements liés à un même SIREN | G83: Oui
B84: Le terme de minimis désigne une aide publique à une entreprise versée sur la base d'un règlement de minimis en dehors de tout régime d'aide notifié à la Commission européenne ou en dehors de tout régime-cadre exempté. Les aides de minimis sont qualifiées et leur base juridique est indiquée comme telles dans la décision d’attribution de l’aide. Les entreprises peuvent obtenir au maximum 200 000 € sur trois ans sur la base de minimis. L’ADEME doit obtenir de l'entreprise unique concernée, avant l'octroi de l'aide, une déclaration relative à toutes les aides de minimis qu'elle a reçues ou demandées au cours des 3 derniers exercices fiscaux dont l'exercice fiscal en cours. Au sens de la réglementation européenne, toutes les entités contrôlées en droit ou en fait par la même entité doivent être considérées comme constituant une entreprise unique. | G84: Non
G85: Oui - minimis
B86: (1) Consulter la référence : http://data.europa.eu/eli/reg/2013/1407/oj | G86: Oui - minimis agricole
A93: DECLARATION SUR LA SANTÉ FINANCIÈRE | G93: =IF(A97=TRUE,0,IF(A101="VRAI",0,IF(A105=TRUE,0,1))) -> 0
B95: Je soussigné, | C95: =C66 -> 0 | D95: représentant légal ou dûment habilité de | E95: =E66 -> 0
B96: certifie que ma structure :
A97: TRUE | B97: n'est pas une entreprise en difficulté au sens de la réglementation communautaire (voir encadré)
B99: Pour une structure répondant à la définition d'entreprise en difficulté, précisez :
A101: =IF(A97=TRUE,"VRAI",IF(B101="est une entreprise devenue en difficulté au sens de la réglementation communautaire avant le 31/12/2019","FAUX","VRAI")) -> VRAI | F101: Liste déroulante
B103: Si micro ou petite entreprise, précisez :
A105: FALSE | B105: ne fait pas l'objet d'une procédure collective d'insolvabilité en vertu du droit national (sauvegarde, redressement ou liquidation judiciaires) ET n'a pas bénéficié d'une aide au sauvetage ou d'une aide à la restructuration
B107: La notion d'entreprise en difficulté est définie à l'article 2, point 18, du règlement (UE) n°651/2014 de la Commission du 17 juin 2014 déclarant certaines catégories d'aides compatibles avec le marché intérieur en application des articles 107 et 108 du traité (JO L 187 du 26/06/2014). «entreprise en difficulté»: une entreprise remplissant au moins une des conditions suivantes: a) s'il s'agit d'une société à responsabilité limitée (autre qu'une PME en existence depuis moins de trois ans ou, aux fins de l'admissibilité au bénéfice des aides au financement des risques, une PME exerçant ses activités depuis moins de sept ans après sa première vente commerciale et qui peut bénéficier d'investissements en faveur du financement des risques au terme du contrôle préalable effectué par l'intermédiaire financier sélectionné), lorsque plus de la moitié de son capital social souscrit a disparu en raison des pertes accumulées. Tel est le cas lorsque la déduction des pertes accumulées des réserves (et de tous les autres éléments généralement considérés comme relevant des fonds propres de la société) conduit à un montant cumulé négatif qui excède la moitié du capital social souscrit. Aux fins de la présente disposition, on entend par «société à responsabilité limitée» notamment les types d'entreprises mentionnés à l'annexe I de la directive 2013/34/UE du Parlement européen et du Conseil (37) et le «capital social» comprend, le cas échéant, les primes d'émission, b) s'il s'agit d'une société dont certains associés au moins ont une responsabilité illimitée pour les dettes de la société (autre qu'une PME en existence depuis moins de trois ans ou, aux fins de l'admissibilité au bénéfice des aides au financement des risques, une PME exerçant ses activités depuis moins de sept ans après sa première vente commerciale et qui peut bénéficier d'investissements en faveur du financement des risques au terme du contrôle préalable effectué par l'intermédiaire financier sélectionné), lorsque plus de la moitié des fonds propres, tels qu'ils sont inscrits dans les comptes de la société, a disparu en raison des pertes accumulées. Aux fins de la présente disposition, on entend par «société dont certains associés au moins ont une responsabilité illimitée pour les dettes de la société» en particulier les types de sociétés mentionnés à l'annexe II de la directive 2013/34/UE, c) lorsque l'entreprise fait l'objet d'une procédure collective d'insolvabilité ou remplit, selon le droit national qui lui est applicable, les conditions de soumission à une procédure collective d'insolvabilité à la demande de ses créanciers, d) lorsque l'entreprise a bénéficié d'une aide au sauvetage et n'a pas encore remboursé le prêt ou mis fin à la garantie, ou a bénéficié d'une aide à la restructuration et est toujours soumise à un plan de restructuration, e) dans le cas d'une entreprise autre qu'une PME, lorsque depuis les deux exercices précédents: 1) le ratio emprunts/capitaux propres de l'entreprise est supérieur à 7,5; et 2) le ratio de couverture des intérêts de l'entreprise, calculé sur la base de l'EBITDA, est inférieur à 1,0;
A109: Certification
A110: 1
D111: Sur la base de ces déclarations, le montant maximal de l'aide apporté par l'ADEME pourrait être de : | E111: =MAX(0,MIN(200000,IF(G93=1,0,IF(CODE_DIVISION_DEMANDEUR=REGIME_COVID_AGRI,REGIME_COVID_AGRI_MT,IF(CODE_DIVISION_DEMANDEUR=REGIME_COVID_PECHE,REGIME_COVID_PECHE_MT,200000))),IF(CODE_DIVISION_DEMANDEUR=REGIME_COVID_AGRI,REGIME_COVID_AGRI_MT,IF(CODE_DIVISION_DEMANDEUR=REGIME_COVID_PECHE,REGIME_COVID_PECHE_MT,2300000))-IF(aide_covid=2,G60,0)))-IF(aff_minimis=TRUE,G82,0) -> 200000 | F111: sur le règlement de minimis
B113: Fait à : | C113: =ch_ville -> 0 | D113: Le : | H113: =IF(C113="","Veuillez indiquer le lieu de réalisation de cette déclaration",IF(E113>=44197,"","Veuillez indiquer la date à laquelle vous faite la déclaration")) -> Veuillez indiquer la date à laquelle vous faite la déclaration

Sheet 2-Je choisis mes actions
B1: Les cellules à compléter sont sur fond bleu
B2: LES ACTIONS QUE JE SOUHAITE METTRE EN PLACE | H2: Mt forfait | I2: aff | J2: Forfait retenu | K2: Sous-programme
B3: =IFERROR(IF(AND(VLOOKUP('1-J''identifie mon entreprise'!$C$24,LIST_GEO!$H:$I,2,FALSE)="CO - Corse",I21=0,I34=1),IF(AND(VLOOKUP('1-J''identifie mon entreprise'!$C$24,LIST_GEO!$H:$I,2,FALSE)="CO - Corse",I21=0,I4=1),"","Mes actions spécifiques liées à mon bâtiment"),""),"") -> 
B4: Mes actions spécifiques à mon activité de restauration | I4: =IF(OR('1-J''identifie mon entreprise'!$G$93=1,naf_exclu=1),0,IF(CONSTANTES!$B$5=1,resto,0)) -> 0
B5: Nom de l'action | C5: Quantité | D5: Type d'unité | E5: Coût prévisionnel total HT | F5: Montant prévisionnel de l'aide ADEME | G5: Devis à joindre à la demande d'aide ? | I5: =IF(OR('1-J''identifie mon entreprise'!$G$93=1,naf_exclu=1),0,IF(CONSTANTES!$B$5=1,resto,0)) -> 0
A6: ? | B6: Modèle d'affaires Restauration durable | D6: Oui/Non | F6: =ROUND(IF(E6="",0,MIN(C6*H6*I6,tx_max*E6)),2) -> 0 | G6: =IF(J6=0,"","Oui") ->  | H6: =2000*(1+(bonus_om*bonus_om_tx)+(bonus_corse*bonus_corse_tx)) -> 2000 | I6: =IF(OR('1-J''identifie mon entreprise'!$G$93=1,naf_exclu=1),0,IF(CONSTANTES!$B$5=1,resto,0)) -> 0 | J6: =ROUND(IF(E6="",0,MIN(C6*H6*I6,tx_max*E6)),2) -> 0 | K6: L.ET
A7: ? | B7: Formation à la cuisine durable et aux éco-gestes en restauration | D7: Oui/Non | F7: =ROUND(IF(E7="",0,MIN(C7*H7*I7,70%*E7)),2) -> 0 | G7: =IF(J7=0,"",IF(J7>=500,"Oui","Non")) ->  | H7: =2000*(1+(bonus_om*bonus_om_tx)+(bonus_corse*bonus_corse_tx)) -> 2000 | I7: =IF(OR('1-J''identifie mon entreprise'!$G$93=1,naf_exclu=1),0,IF(CONSTANTES!$B$5=1,resto,0)) -> 0 | J7: =ROUND(IF(E7="",0,MIN(C7*H7*I7,70%*E7)),2) -> 0 | K7: L.ET
A8: ? | B8: Communication - Supports/actions de communication valorisant la restauration durable | D8: Oui/Non | F8: =ROUND(IF(E8="",0,MIN(C8*H8*I8,70%*E8)),2) -> 0 | H8: =2000*(1+(bonus_om*bonus_om_tx)+(bonus_corse*bonus_corse_tx)) -> 2000 | I8: =IF(OR('1-J''identifie mon entreprise'!$G$93=1,naf_exclu=1),0,IF(CONSTANTES!$B$5=1,resto,0)) -> 0 | J8: =ROUND(IF(E8="",0,MIN(C8*H8*I8,70%*E8)),2) -> 0 | K8: L.ET
A9: ? | B9: Evolution des approvisionnements et des menus | D9: Oui/Non | F9: =ROUND(IF(E9="",0,MIN(C9*H9*I9,tx_max*E9)),2) -> 0 | H9: =2500*(1+(bonus_om*bonus_om_tx)+(bonus_corse*bonus_corse_tx)) -> 2500 | I9: =IF(OR('1-J''identifie mon entreprise'!$G$93=1,naf_exclu=1),0,IF(CONSTANTES!$B$5=1,resto,0)) -> 0 | J9: =ROUND(IF(E9="",0,MIN(C9*H9*I9,tx_max*E9)),2) -> 0 | K9: L.ET
A10: ? | B10: Lutte contre le gaspillage alimentaire | D10: Oui/Non | F10: =ROUND(IF(E10="",0,MIN(C10*H10*I10,tx_max*E10)),2) -> 0 | H10: =2500*(1+(bonus_om*bonus_om_tx)+(bonus_corse*bonus_corse_tx)) -> 2500 | I10: =IF(OR('1-J''identifie mon entreprise'!$G$93=1,naf_exclu=1),0,IF(CONSTANTES!$B$5=1,resto,0)) -> 0 | J10: 0 | K10: L.ET
A11: ? | B11: Prévention des déchets non alimentaires en restauration | D11: Oui/Non | F11: =ROUND(IF(E11="",0,MIN(C11*H11*I11,tx_max*E11)),2) -> 0 | H11: =2500*(1+(bonus_om*bonus_om_tx)+(bonus_corse*bonus_corse_tx)) -> 2500 | I11: =IF(OR('1-J''identifie mon entreprise'!$G$93=1,naf_exclu=1),0,IF(CONSTANTES!$B$5=1,resto,0)) -> 0 | J11: 0 | K11: L.ET
A12: ? | B12: Energie - Economie d’énergie en cuisine (cuisson, froid) | D12: Oui/Non | F12: =ROUND(IF(E12="",0,MIN(C12*H12*I12,tx_max*E12)),2) -> 0 | H12: =5000*(1+(bonus_om*bonus_om_tx)+(bonus_corse*bonus_corse_tx)) -> 5000 | I12: =IF(OR('1-J''identifie mon entreprise'!$G$93=1,naf_exclu=1),0,IF(CONSTANTES!$B$5=1,resto,0)) -> 0 | J12: 0 | K12: L.ET
A13: ? | B13: Energie - Confort d'été et d’hiver liés à l’activité de restauration | D13: Oui/Non | F13: =ROUND(IF(E13="",0,MIN(C13*H13*I13,tx_max*E13)),2) -> 0 | H13: =3000*(1+(bonus_om*bonus_om_tx)+(bonus_corse*bonus_corse_tx)) -> 3000 | I13: =IF(OR('1-J''identifie mon entreprise'!$G$93=1,naf_exclu=1),0,IF(CONSTANTES!$B$5=1,resto,0)) -> 0 | J13: 0 | K13: L.ET
A14: ? | B14: Ressources - Dispositifs d'économie d'eau en cuisine | D14: Oui/Non | F14: =ROUND(IF(E14="",0,MIN(C14*H14*I14,tx_max*E14,50000)),2) -> 0 | H14: =2000*(1+(bonus_om*bonus_om_tx)+(bonus_corse*bonus_corse_tx)) -> 2000 | I14: =IF(OR('1-J''identifie mon entreprise'!$G$93=1,naf_exclu=1),0,IF(CONSTANTES!$B$5=1,resto,0)) -> 0 | J14: 0 | K14: L.ET
A15: ? | B15: Ressources - Dispositifs d'économie d'eau dans les sanitaires des restaurants / de l’activité de restauration | D15: Oui/Non | F15: =ROUND(IF(E15="",0,MIN(C15*H15*I15,tx_max*E15)),2) -> 0 | H15: =500*(1+(bonus_om*bonus_om_tx)+(bonus_corse*bonus_corse_tx)) -> 500 | I15: =IF(OR('1-J''identifie mon entreprise'!$G$93=1,naf_exclu=1),0,IF(CONSTANTES!$B$5=1,resto,0)) -> 0 | J15: 0 | K15: L.ET
A16: ? | B16: Ressources - dispositifs d’économie d’eau pour les espaces extérieurs et potagers liés à l'activité de restauration | D16: Oui/Non | F16: =ROUND(IF(E16="",0,MIN(C16*H16*I16,tx_max*E16)),2) -> 0 | H16: =400*(1+(bonus_om*bonus_om_tx)+(bonus_corse*bonus_corse_tx)) -> 400 | I16: =IF(OR('1-J''identifie mon entreprise'!$G$93=1,naf_exclu=1),0,IF(CONSTANTES!$B$5=1,resto,0)) -> 0 | J16: 0 | K16: L.ET
B17: r12 | F17: =ROUND(IF(E17="",0,MIN(C17*H17*I17,tx_max*E17)),2) -> 0 | I17: 0 | K17: L.ET
B18: r13 | F18: =ROUND(IF(E18="",0,MIN(C18*H18*I18,tx_max*E18)),2) -> 0 | I18: 0 | K18: L.ET
B19: r14 | F19: =ROUND(IF(E19="",0,MIN(C19*H19*I19,tx_max*E19)),2) -> 0 | I19: 0 | K19: L.ET
I20: =IFERROR(IF(OR('1-J''identifie mon entreprise'!$G$93=1,naf_exclu=1),0,IF(CONSTANTES!$B$5=1,IF(AND(VLOOKUP('1-J''identifie mon entreprise'!$C$24,LIST_GEO!$H:$I,2,FALSE)="CO - Corse",I21=0,I4=1),0,resto),0)),I21) -> 0
B21: =IF(partenaire_sci="Oui","Mes actions de rénovation globale des bâtiments et de qualité de l'air","Mes actions spécifiques liées à mon activité d'hébergement touristique") -> Mes actions spécifiques liées à mon activité d'hébergement touristique | I21: =IF(OR('1-J''identifie mon entreprise'!$G$93=1,naf_exclu=1),0,IF(partenaire_sci="Oui",1,IF(CONSTANTES!$B$5=1,heberg,0))) -> 0
B22: Nom de l'action | C22: Quantité | D22: Type d'unité | E22: Coût prévisionnel total HT | F22: Montant prévisionnel de l'aide ADEME | G22: Devis à joindre à la demande d'aide ? | I22: =IFERROR(IF(AND(VLOOKUP('1-J''identifie mon entreprise'!$C$24,LIST_GEO!$H:$I,2,FALSE)="CO - Corse",secteur_tourisme="Non"),1,IF(OR('1-J''identifie mon entreprise'!$G$93=1,naf_exclu=1),0,IF(partenaire_sci="Oui",1,IF(CONSTANTES!$B$5=1,heberg,0)))),0) -> 0
A23: ? | B23: Modèle d'affaires Tourisme durable Hébergement touristique | D23: Oui/Non | F23: =ROUND(IF(E23="",0,MIN(C23*H23*I23,tx_max*E23)),2) -> 0 | G23: =IF(J23=0,"","Oui") ->  | H23: =2000*(1+(bonus_om*bonus_om_tx)+(bonus_corse*bonus_corse_tx)) -> 2000 | I23: =IF(OR('1-J''identifie mon entreprise'!$G$93=1,naf_exclu=1),0,IF(CONSTANTES!$B$5=1,heberg,0)) -> 0 | J23: =F23 -> 0 | K23: L.ET
A24: ? | B24: Formation aux éco-gestes pour un hébergement touristique durable | D24: Oui/Non | F24: =ROUND(IF(E24="",0,MIN(C24*H24*I24,70%*E24)),2) -> 0 | G24: =IF(J24=0,"","Oui") ->  | H24: =2000*(1+(bonus_om*bonus_om_tx)+(bonus_corse*bonus_corse_tx)) -> 2000 | I24: =IF(OR('1-J''identifie mon entreprise'!$G$93=1,naf_exclu=1),0,IF(CONSTANTES!$B$5=1,heberg,0)) -> 0 | J24: =F24 -> 0 | K24: L.ET
A25: ? | B25: Communication - Supports de communication valorisant l’hébergement touristique durable | D25: Oui/Non | F25: =ROUND(IF(E25="",0,MIN(C25*H25*I25,70%*E25)),2) -> 0 | G25: =IF(J25=0,"","Oui") ->  | H25: =2000*(1+(bonus_om*bonus_om_tx)+(bonus_corse*bonus_corse_tx)) -> 2000 | I25: =IF(OR('1-J''identifie mon entreprise'!$G$93=1,naf_exclu=1),0,IF(CONSTANTES!$B$5=1,heberg,0)) -> 0 | J25: 0 | K25: L.ET
A26: ? | B26: Energie - Accompagnement pour le financement de la rénovation globale | D26: Oui/Non | F26: =ROUND(IF(E26="",0,MIN(C26*H26*I26,tx_max*E26)),2) -> 0 | G26: =IF(J26=0,"","Oui") ->  | H26: =3000*(1+(bonus_om*bonus_om_tx)+(bonus_corse*bonus_corse_tx)) -> 3000 | I26: =IF(OR('1-J''identifie mon entreprise'!$G$93=1,naf_exclu=1),0,IF(partenaire_sci="Oui",1,IF(CONSTANTES!$B$5=1,heberg,0))) -> 0 | J26: 0 | K26: L.ET
A27: ? | B27: =IFERROR(IF(AND(VLOOKUP('1-J''identifie mon entreprise'!$C$24,LIST_GEO!$H:$I,2,FALSE)="CO - Corse",I21=0),"Maîtrise des besoins de chauffage : robinets thermostatiques de radiateur, détection d'ouverture de fenêtre, programmateur horaire, système de gestion par chambre des consignes des radiateurs","Energie - Maîtrise des besoins de chauffage des chambres"),"Energie - Maîtrise des besoins de chauffage des chambres") -> Energie - Maîtrise des besoins de chauffage des chambres | D27: Nombre de chambres équipées | F27: =ROUND(IF(E27="",0,MIN(C27*H27*I27,tx_max*E27)),2) -> 0 | G27: =IF(J27=0,"",IF(J27>=5000,"Oui","Non")) ->  | H27: =60*(1+(bonus_om*bonus_om_tx)+(bonus_corse*bonus_corse_tx)) -> 60 | I27: =IFERROR(IF(OR('1-J''identifie mon entreprise'!$G$93=1,naf_exclu=1,partenaire_sci="Oui"),0,IF(AND(VLOOKUP('1-J''identifie mon entreprise'!$C$24,LIST_GEO!$H:$I,2,FALSE)="CO - Corse",secteur_tourisme="Non"),1,IF(CONSTANTES!$B$5=1,heberg,0))),I28) -> 0 | J27: 0 | K27: L.ET
A28: ? | B28: Energie - Sèche-linge professionnel de grande efficacité énergétique | D28: € par kg de linge (capacité) | F28: =ROUND(IF(E28="",0,MIN(C28*H28*I28,tx_max*E28,50000)),2) -> 0 | G28: =IF(J28=0,"",IF(J28>=500,"Oui","Non")) ->  | H28: =800*(1+(bonus_om*bonus_om_tx)+(bonus_corse*bonus_corse_tx)) -> 800 | I28: =IF(OR('1-J''identifie mon entreprise'!$G$93=1,naf_exclu=1),0,IF(CONSTANTES!$B$5=1,heberg,0)) -> 0 | J28: 0 | K28: L.ET
A29: ? | B29: Energie - Bâche de nuit pour piscine | D29: Oui/Non | F29: =ROUND(IF(E29="",0,MIN(C29*H29*I29,tx_max*E29)),2) -> 0 | G29: =IF(J29=0,"",IF(J29>=500,"Oui","Non")) ->  | H29: =5000*(1+(bonus_om*bonus_om_tx)+(bonus_corse*bonus_corse_tx)) -> 5000 | I29: =IF(OR('1-J''identifie mon entreprise'!$G$93=1,naf_exclu=1),0,IF(CONSTANTES!$B$5=1,heberg,0)) -> 0 | J29: 0 | K29: L.ET
A30: ? | B30: =IFERROR(IF(AND(VLOOKUP('1-J''identifie mon entreprise'!$C$24,LIST_GEO!$H:$I,2,FALSE)="CO - Corse",I21=0),"Confort d'été - actions sur les ouvertures : diminution / suppression des besoins de climatisation par pose de volets, stores pare-soleil extérieurs.","Energie & Confort d'été - actions sur les ouvertures (fenêtres)"),"Energie & Confort d'été - actions sur les ouvertures (fenêtres)") -> Energie & Confort d'été - actions sur les ouvertures (fenêtres) | D30: Nombre de fenêtres équipées | F30: 0 | G30: =IF(J30=0,"","Oui") ->  | H30: =200*(1+(bonus_om*bonus_om_tx)+(bonus_corse*bonus_corse_tx)) -> 200 | I30: =IFERROR(IF(OR('1-J''identifie mon entreprise'!$G$93=1,naf_exclu=1,partenaire_sci="Oui"),0,IF(AND(bonus_corse=1,I22=1),1,IF(CONSTANTES!$B$5=1,heberg,0))),I29) -> 0 | J30: 0 | K30: L.ET
A31: ? | B31: =IFERROR(IF(AND(VLOOKUP('1-J''identifie mon entreprise'!$C$24,LIST_GEO!$H:$I,2,FALSE)="CO - Corse",I21=0),"Confort d'été - végétalisation : étude climatique et paysagère, préparation et plantation pour murs végétaux, désimperméabilisation et plantations adaptées aux futures conditions climatiques et cohérentes avec la biodiversité locale","Energie & Confort d'été - végétalisation"),"Energie & Confort d'été - végétalisation") -> Energie & Confort d'été - végétalisation | D31: Oui/Non | F31: 0 | G31: =IF(J31=0,"","Oui") ->  | H31: =2400*(1+(bonus_om*bonus_om_tx)+(bonus_corse*bonus_corse_tx)) -> 2400 | I31: =IFERROR(IF(OR('1-J''identifie mon entreprise'!$G$93=1,naf_exclu=1,partenaire_sci="Oui"),0,IF(AND(VLOOKUP('1-J''identifie mon entreprise'!$C$24,LIST_GEO!$H:$I,2,FALSE)="CO - Corse",secteur_tourisme="Non"),1,IF(CONSTANTES!$B$5=1,heberg,0))),I29) -> 0 | J31: 0 | K31: L.ET
A32: ? | B32: Ressources - Dispositifs d'économie d'eau pour les chambres et sanitaires liés à l’activité d’hébergement | D32: Nombre de chambres ou de sanitaires équipées | F32: 0 | G32: =IF(J32=0,"",IF(J32>=5000,"Oui","Non")) ->  | H32: =160*(1+(bonus_om*bonus_om_tx)+(bonus_corse*bonus_corse_tx)) -> 160 | I32: =IF(OR('1-J''identifie mon entreprise'!$G$93=1,naf_exclu=1),0,IF(CONSTANTES!$B$5=1,heberg,0)) -> 0 | J32: 0 | K32: L.ET
A33: ? | B33: Ressources - Toilettes sèches pour les chambres et sanitaires liés à l’activité d’hébergement | D33: Nombre de toilettes sèches | F33: 0 | G33: =IF(J33=0,"",IF(J33>=5000,"Oui","Non")) ->  | H33: =200*(1+(bonus_om*bonus_om_tx)+(bonus_corse*bonus_corse_tx)) -> 200 | I33: =IF(OR('1-J''identifie mon entreprise'!$G$93=1,naf_exclu=1),0,IF(CONSTANTES!$B$5=1,heberg,0)) -> 0 | J33: 0 | K33: L.ET
A34: ? | B34: Mobilité - Abri vélo équipé de production photovoltaïque pour la recharge | D34: Capacité d'accueil de l'abris en nombre de vélos | F34: 0 | G34: =IF(J34=0,"",IF(J34>=5000,"Oui","Non")) ->  | H34: =800*(1+(bonus_om*bonus_om_tx)+(bonus_corse*bonus_corse_tx)) -> 800 | I34: =IFERROR(IF(AND(VLOOKUP('1-J''identifie mon entreprise'!$C$24,LIST_GEO!$H:$I,2,FALSE)="CO - Corse",secteur_tourisme="Oui",partenaire="Non"),0,IF(OR('1-J''identifie mon entreprise'!$G$93=1,naf_exclu=1),0,IF(VLOOKUP('1-J''identifie mon entreprise'!$C$24,LIST_GEO!$H:$I,2,FALSE)="CO - Corse",IF(partenaire_sci="Oui",0,I32),IF(CONSTANTES!$B$5=1,heberg,0)))),0) -> 0 | J34: 0 | K34: L.ET
A35: ? | B35: Prévention des déchets non alimentaires dans les hébergements | D35: Oui/Non | F35: 0 | G35: =IF(J35=0,"",IF(J35>=500,"Oui","Non")) ->  | H35: =2500*(1+(bonus_om*bonus_om_tx)+(bonus_corse*bonus_corse_tx)) -> 2500 | I35: =IF(OR('1-J''identifie mon entreprise'!$G$93=1,naf_exclu=1),0,IF(CONSTANTES!$B$5=1,heberg,0)) -> 0 | J35: 0 | K35: L.ET
B36: Confort d'été et d'hiver: diminution des besoins de climatisation en été, et de chauffage extérieur en hiver (ex couvertures). Ombrage et préservation du frais à l'extérieur en été | D36: Oui/Non | F36: 0 | G36: =IF(J36=0,"",IF(J36>=500,"Oui","Non")) ->  | H36: 2000 | I36: =IFERROR(IF(OR('1-J''identifie mon entreprise'!$G$93=1,naf_exclu=1,partenaire_sci="Oui"),0,IF(OR(bonus_corse=1,VLOOKUP('1-J''identifie mon entreprise'!$C$24,LIST_GEO!$H:$I,2,FALSE)<>"CO - Corse"),0,IF(secteur_tourisme="Non",1,IF(CONSTANTES!$B$5=1,heberg,0)))),0) -> 0 | J36: 0 | K36: L.ET
B37: h7 | F37: 0 | I37: 0 | K37: L.ET
B38: h8 | F38: 0 | I38: 0 | K38: L.ET
I39: =IF(AND(I47=0,I49=1),0,I22) -> 0
B40: Mes actions pour la lutte contre le changement climatique | I40: =IF(SUM(I42:I44)>0,1,0) -> 0
B41: Nom de l'action | C41: Quantité | D41: Type d'unité | E41: Coût prévisionnel total HT | F41: Montant prévisionnel de l'aide ADEME | G41: Devis à joindre à la demande d'aide ? | H41: Mt forfait | I41: =I40 -> 0
A42: ? | B42: Bilan d’émission de gaz à effet de serre (bilan GES scope 1, 2 et 3) et plan d'actions | C42: L’ADEME et Bpifrance ont lancé le "Diag Décarbon’Action" en collaboration avec l’Association Bilan Carbone afin d’accompagner la transition énergétique et écologique des entreprises françaises. Pour réaliser votre bilan d’émission de gaz à effet de serre, rendez-vous sur https://diagdecarbonaction.bpifrance.fr/. Le "Diag Décarbon’Action" inclut une subvention de l’ADEME. | H42: =5000*(1+(bonus_om*bonus_om_tx)+(bonus_corse*bonus_corse_tx)) -> 5000 | I42: =IF(NAF_industrie="Oui",0,IF(AND(heberg=0,resto=0),0,IFERROR(IF(OR(AND(naf_section="Section A",code_naf<>"0161Z",code_naf<>"0162Z",code_naf<>"0240Z"),'1-J''identifie mon entreprise'!$G$93=1,naf_exclu=1,AND(OR(code_naf="8413Z",code_naf="8411Z"),$I$4=0,$I$21=0),AND(VLOOKUP('1-J''identifie mon entreprise'!$C$24,LIST_GEO!$H:$I,2,FALSE)="CO - Corse",secteur_tourisme="Oui",partenaire="Non"),partenaire_sci="Oui",AND(aff_sci=1,aff_sci2=1,partenaire_sci="Non")),0,IF(micro_entreprise<>"Non",IF(OR($I$5=1,$I$21=1),1,0),1)),0))) -> 0 | J42: =ROUND(IF(E42="",0,MIN(C42*H42*I42,tx_max*E42)),0) -> 0 | K42: L.EY
A43: ? | B43: Vous organiser pour réduire les émissions de gaz à effet de serre : élaborer une stratégie (démarche ACT® pas à pas sans accompagnement à la mise en œuvre du plan d'action) – Etapes 1 à 5A de la démarche ACT pas à pas | D43: Oui/Non | F43: =ROUND(MIN(SUM(J43:J44),50000*(1+(bonus_om*bonus_om_tx)+(bonus_corse*bonus_corse_tx))),2) -> 0 | G43: =IF(J43=0,"","Oui") ->  | H43: =12000*(1+(bonus_om*bonus_om_tx)+(bonus_corse*bonus_corse_tx)) -> 12000 | I43: =IFERROR(IF(NAF_industrie="Oui",0,IF(OR(AND(naf_section="Section A",code_naf<>"0161Z",code_naf<>"0162Z",code_naf<>"0240Z"),'1-J''identifie mon entreprise'!$G$93=1,naf_exclu=1,AND(OR(code_naf="8413Z",code_naf="8411Z"),$I$4=0,$I$21=0),AND(VLOOKUP('1-J''identifie mon entreprise'!$C$24,LIST_GEO!$H:$I,2,FALSE)="CO - Corse",secteur_tourisme="Oui",partenaire="Non"),partenaire_sci="Oui",AND(aff_sci=1,aff_sci2=1,partenaire_sci="Non")),0,IF(micro_entreprise<>"Non",IF(OR($I$5=1,$I$21=1),1,0),1))),0) -> 0 | J43: =ROUND(IF(E43="",0,MIN(C43*H43*I43,60%*E43)),2) -> 0 | K43: L.EY
A44: ? | B44: Evaluer votre stratégie de réduction des émissions de gaz à effet de serre (Evaluation ACT®) | D44: Oui/Non | G44: =IF(J44=0,"","Oui") ->  | H44: =4000*(1+(bonus_om*bonus_om_tx)+(bonus_corse*bonus_corse_tx)) -> 4000 | I44: =IFERROR(IF(NAF_industrie="Oui",0,IF(OR(AND(naf_section="Section A",code_naf<>"0161Z",code_naf<>"0162Z",code_naf<>"0240Z"),'1-J''identifie mon entreprise'!$G$93=1,naf_exclu=1,AND(OR(code_naf="8413Z",code_naf="8411Z"),$I$4=0,$I$21=0),AND(VLOOKUP('1-J''identifie mon entreprise'!$C$24,LIST_GEO!$H:$I,2,FALSE)="CO - Corse",secteur_tourisme="Oui",partenaire="Non"),partenaire_sci="Oui",AND(aff_sci=1,aff_sci2=1,partenaire_sci="Non")),0,IF(micro_entreprise<>"Non",IF(OR($I$5=1,$I$21=1),1,0),1))),0) -> 0 | J44: =ROUND(IF(E44="",0,MIN(C44*H44*I44,60%*E44)),2) -> 0 | K44: L.EY
I45: =I41 -> 0
B46: Mes actions de rénovation globale des bâtiments et de qualité de l'air | I46: =I47 -> 0
B47: Nom de l'action | C47: Quantité | D47: Type d'unité | E47: Coût prévisionnel total HT | F47: Montant prévisionnel de l'aide ADEME | G47: Devis à joindre à la demande d'aide ? | I47: =IF(SUM(I48:I54)=0,0,IF(OR('1-J''identifie mon entreprise'!$G$93=1,naf_exclu=1,partenaire_sci="Oui"),0,IF(micro_entreprise<>"Non",IF(OR($I$5=1,$I$21=1),1,0),1))) -> 0
A48: ? | B48: Accompagnement à la baisse des consommations d’énergie des bâtiments imposée par le dispositif Eco Energie Tertiaire : audit énergétique | D48: Surface du bâtiment en m² | F48: =ROUND(MIN(SUM(J48:J52),IF(OR(bonus_corse>0,bonus_om>0),200000,50000)),2) -> 0 | G48: =IF(J48=0,"","Oui") ->  | H48: =IF(C48="",0,IF(C48<500,1100,IF(C48<1000,1000+0.5*C48,1.5*C48)))*(1+(bonus_om*bonus_om_tx)+(bonus_corse*bonus_corse_tx)) -> 0 | I48: =IFERROR(IF(K48="L.EY",0,IF(OR('1-J''identifie mon entreprise'!$G$93=1,naf_exclu=1),0,IF(micro_entreprise<>"Non",IF(OR($I$5=1,$I$21=1),1,0),1))),0) -> 0 | J48: =ROUND(IF(E48="",0,MIN(H48*I48,tx_max*E48)),2) -> 0 | K48: =IF(OR($I$5=1,$I$21=1,partenaire_sci="Oui"),"L.ET",IF(bonus_corse=1,"I.EE","L.EY")) -> L.EY
A49: ? | B49: Maîtrise d'œuvre (MOE) pour rénovation globale d’un ou plusieurs bâtiments pour viser un objectif de 50% d’économie d’énergie (aide maximum calculée sur la base de 5% du coût des travaux éligibles) | D49: Oui/Non | H49: =5%*(SUMPRODUCT(E51:E53,I51:I53)+SUMPRODUCT(E74:E82,I74:I82)) -> 0 | I49: =IFERROR(IF(K49="L.EY",0,IF(OR('1-J''identifie mon entreprise'!$G$93=1,naf_exclu=1),0,IF(micro_entreprise<>"Non",IF(OR($I$5=1,$I$21=1),1,0),1))),0) -> 0 | J49: =ROUND(IF(E49="",0,MIN(C49*H49*I49,tx_max*E49)),2) -> 0 | K49: =K48 -> L.EY
A50: ? | B50: Diagnostic sur la qualité de l'air (intérieur et extérieur) de l’entreprise | D50: Oui/Non | H50: =2000 -> 2000 | I50: =IFERROR(IF(K50="L.EY",0,IF(OR('1-J''identifie mon entreprise'!$G$93=1,naf_exclu=1,partenaire_sci="Oui"),0,IF(micro_entreprise<>"Non",IF(OR($I$5=1,$I$21=1),1,0),1))),0) -> 0 | J50: =ROUND(IF(E50="",0,MIN(C50*H50*I50,tx_max*E50)),2) -> 0 | K50: =K48 -> L.EY
A51: ? | B51: Solaire photovoltaïque en autoconsommation pour les PME d’Outre-Mer | D51: Puissance installée en kW crête | H51: =MAX(0,IF(C51<30,(2000-80/3*C51),(1200-20/17*(C51-30)))*(1+(bonus_om*bonus_om_tx)+(bonus_corse*bonus_corse_tx))) -> 2000 | I51: =IFERROR(IF(AND(OR($I$4=1,$I$21=1),bonus_om=1),IF(partenaire_sci="Oui",0,1),0),0) -> 0 | J51: =ROUND(MIN(tx_max*E51,I51*H51*C51),2) -> 0 | K51: =IF(OR($I$5=1,$I$21=1),"L.ET","L.EY") -> L.EY
A52: ? | B52: Solaire photovoltaïque autonome pour les activités économiques non raccordées au réseau électrique des PME de Corse et d’Outre-Mer | D52: Puissance installée en kW crête | H52: 4800 | I52: =IFERROR(IF(AND(OR($I$4=1,$I$21=1),OR(bonus_om=1,bonus_corse=1)),IF(partenaire_sci="Oui",0,1),0),0) -> 0 | J52: =ROUND(IF(E52="",0,MIN(C52*H52*I52,tx_max*E52)),2) -> 0 | K52: =IF(OR($I$5=1,$I$21=1),"L.ET","L.EY") -> L.EY
A53: ? | B53: Chauffe-eau solaire individuels ≤ 10 m² | D53: Surface de panneaux en m² | F53: =ROUND(IF(E53="",0,MIN(C53*H53*I53,tx_max*E53)),2) -> 0 | H53: =IFERROR(IF(VLOOKUP('1-J''identifie mon entreprise'!$C$24,LIST_GEO!$H:$I,2,FALSE)="CO - Corse",400,400),0) -> 0 | I53: 0 | J53: =ROUND(IF(E53="",0,MIN(C53*H53*I53,tx_max*E53)),2) -> 0 | K53: =IF(OR($I$5=1,$I$21=1),"L.ET","L.EY") -> L.EY
A54: ? | B54: Brasseurs d’air | D54: Nombre de brasseur | F54: =ROUND(IF(E54="",0,MIN(C54*H54*I54,tx_max*E54)),2) -> 0 | H54: 250 | I54: =IFERROR(IF(AND(OR($I$4=1,$I$21=1),OR(bonus_om=1,bonus_corse=1)),IF(partenaire_sci="Oui",0,1),IF(bonus_corse=1,1,0)),0) -> 0 | J54: =ROUND(IF(E54="",0,MIN(C54*H54*I54,tx_max*E54)),2) -> 0 | K54: =IF(OR($I$5=1,$I$21=1,partenaire_sci="Oui"),"L.ET",IF(bonus_corse=1,"I.EE","L.EY")) -> L.EY
I55: =IF(partenaire_sci="Oui",1,I46) -> 0
B56: Mes actions liées à l'éclairage | I56: =I57 -> 0
B57: Nom de l'action | C57: Quantité | D57: Type d'unité | E57: Coût prévisionnel total HT | F57: Montant prévisionnel de l'aide ADEME | G57: Devis à joindre à la demande d'aide ? | I57: =IFERROR(IF(SUM(I58:I62)=0,0,IF(OR('1-J''identifie mon entreprise'!$G$93=1,naf_exclu=1,partenaire_sci="Oui"),0,IF(micro_entreprise<>"Non",IF(OR($I$5=1,$I$21=1),1,0),1))),0) -> 0
A58: ? | B58: Améliorer l'efficacité de l'éclairage des locaux avec des luminaire à modules LED pré-équipés de détecteurs | D58: Nombre de luminaires | F58: =MIN(SUM(J58:J62),50000*(1+(bonus_om*bonus_om_tx)+(bonus_corse*bonus_corse_tx))) -> 0 | G58: =IF(J58=0,"",IF(J58>=5000,"Oui","Non")) ->  | H58: =50*(1+(bonus_om*bonus_om_tx)+(bonus_corse*bonus_corse_tx)) -> 50 | I58: =IFERROR(IF(K58="L.EY",0,IF(OR('1-J''identifie mon entreprise'!$G$93=1,naf_exclu=1,partenaire_sci="Oui"),0,IF(micro_entreprise<>"Non",IF(OR($I$5=1,$I$21=1),1,0),1))),0) -> 0 | J58: =ROUND(IF(E58="",0,MIN(C58*H58*I58,tx_max*E58)),2) -> 0 | K58: =IF(OR($I$5=1,$I$21=1),"L.ET",IF(bonus_corse=1,"I.EE","L.EY")) -> L.EY
A59: ? | B59: Augmenter l’éclairage naturel grâce à des lanterneaux d'éclairage zénithal | D59: Nombre de lanterneaux | G59: =IF(J59=0,"",IF(J59>=5000,"Oui","Non")) ->  | H59: =100*(1+(bonus_om*bonus_om_tx)+(bonus_corse*bonus_corse_tx)) -> 100 | I59: =IFERROR(IF(K59="L.EY",0,IF(OR('1-J''identifie mon entreprise'!$G$93=1,naf_exclu=1,partenaire_sci="Oui"),0,IF(micro_entreprise<>"Non",IF(OR($I$5=1,$I$21=1),1,0),1))),0) -> 0 | J59: =ROUND(IF(E59="",0,MIN(C59*H59*I59,tx_max*E59)),2) -> 0 | K59: =$K$58 -> L.EY
A60: ? | B60: Augmenter l’éclairage naturel grâce à des conduits de lumière naturelle | D60: Nombre de conduits | G60: =IF(J60=0,"",IF(J60>=5000,"Oui","Non")) ->  | H60: =100*(1+(bonus_om*bonus_om_tx)+(bonus_corse*bonus_corse_tx)) -> 100 | I60: =IFERROR(IF(K60="L.EY",0,IF(OR('1-J''identifie mon entreprise'!$G$93=1,naf_exclu=1,partenaire_sci="Oui"),0,IF(micro_entreprise<>"Non",IF(OR($I$5=1,$I$21=1),1,0),1))),0) -> 0 | J60: =ROUND(IF(E60="",0,MIN(C60*H60*I60,tx_max*E60)),2) -> 0 | K60: =$K$58 -> L.EY
A61: ? | B61: Améliorer l'efficacité de l'éclairage extérieur avec des luminaires LED | D61: Nombre de luminaires | G61: =IF(J61=0,"",IF(J61>=5000,"Oui","Non")) ->  | H61: =50*(1+(bonus_om*bonus_om_tx)+(bonus_corse*bonus_corse_tx)) -> 50 | I61: =IFERROR(IF(K61="L.EY",0,IF(OR('1-J''identifie mon entreprise'!$G$93=1,naf_exclu=1,partenaire_sci="Oui"),0,IF(micro_entreprise<>"Non",IF(OR($I$5=1,$I$21=1),1,0),1))),0) -> 0 | J61: =ROUND(IF(E61="",0,MIN(C61*H61*I61,tx_max*E61)),2) -> 0 | K61: =$K$58 -> L.EY
A62: ? | B62: Etude de dimensionnement de l'éclairage | D62: Oui/Non | G62: =IF(J62=0,"",IF(J62>=500,"Oui","Non")) ->  | H62: =IF(SUM(E58:E61)<25000,0,15%) -> 0 | I62: 0 | J62: =ROUND(IF(E62="",0,MIN(H62*(J58*I58+J59*I59+J60*I60+J61*I61)*I62,E62*C62*tx_max)),2) -> 0 | K62: =$K$58 -> L.EY
I63: =I57 -> 0
B64: Mes actions liées à l'efficacité énergétique des équipements de froid commercial | I64: =I65 -> 0
B65: Nom de l'action | C65: Quantité | D65: Type d'unité | E65: Coût prévisionnel total HT | F65: Montant prévisionnel de l'aide ADEME | G65: Devis à joindre à la demande d'aide ? | I65: =IF(SUM(I66:I70)=0,0,IF(OR('1-J''identifie mon entreprise'!$G$93=1,naf_exclu=1,partenaire_sci="Oui"),0,IF(micro_entreprise<>"Non",IF(OR($I$5=1,$I$21=1),1,0),1))) -> 0
A66: ? | B66: Isolation des meubles de vente réfrigérés et/ou des chambres froides | D66: Nombre de meubles réfrigérés et de chambres isolées | F66: =MIN(SUM(J66:J70),50000*(1+(bonus_om*bonus_om_tx)+(bonus_corse*bonus_corse_tx))) -> 0 | G66: =IF(J66=0,"",IF(J66>=5000,"Oui","Non")) ->  | H66: =350*(1+(bonus_om*bonus_om_tx)+(bonus_corse*bonus_corse_tx)) -> 350 | I66: =IFERROR(IF(K66="L.EY",0,IF(OR('1-J''identifie mon entreprise'!$G$93=1,naf_exclu=1,partenaire_sci="Oui"),0,IF(micro_entreprise<>"Non",IF(OR($I$5=1,$I$21=1),1,0),1))),0) -> 0 | J66: =ROUND(IF(E66="",0,MIN(C66*H66*I66,tx_max*E66)),2) -> 0 | K66: =IF(OR($I$5=1,$I$21=1),"L.ET",IF(bonus_corse=1,"I.EE","L.EY")) -> L.EY
A67: ? | B67: Remplacement de fluides dans les équipements frigorifiques commerciaux pour utiliser des fluides frigorigènes ayant moins d’impact sur le changement climatique | D67: Nombre d'équipements frigorifiques retrofités | G67: =IF(J67=0,"",IF(J67>=5000,"Oui","Non")) ->  | H67: =350*(1+(bonus_om*bonus_om_tx)+(bonus_corse*bonus_corse_tx)) -> 350 | I67: =IFERROR(IF(K67="L.EY",0,IF(OR('1-J''identifie mon entreprise'!$G$93=1,naf_exclu=1,partenaire_sci="Oui"),0,IF(micro_entreprise<>"Non",IF(OR($I$5=1,$I$21=1),1,0),1))),0) -> 0 | J67: =ROUND(IF(E67="",0,MIN(C67*H67*I67,tx_max*E67)),2) -> 0 | K67: =$K$66 -> L.EY
A68: ? | B68: Remplacement de meubles frigorifiques anciens avec groupe froid intégré par des équipements équivalents neufs avec des fluides frigorigènes moins impactant sur le changement climatique | D68: Nombre de meubles acquis | G68: =IF(J68=0,"",IF(J68>=5000,"Oui","Non")) ->  | H68: =1500*(1+(bonus_om*bonus_om_tx)+(bonus_corse*bonus_corse_tx)) -> 1500 | I68: =IFERROR(IF(K68="L.EY",0,IF(OR('1-J''identifie mon entreprise'!$G$93=1,naf_exclu=1,partenaire_sci="Oui"),0,IF(micro_entreprise<>"Non",IF(OR($I$5=1,$I$21=1),1,0),1))),0) -> 0 | J68: =ROUND(IF(E68="",0,MIN(C68*H68*I68,40%*E68)),2) -> 0 | K68: =$K$66 -> L.EY
A69: ? | B69: Remplacement d’équipements frigorifiques commerciaux anciens par des équipements neufs à groupe froid déporté avec des fluides frigorigènes moins impactant sur le changement climatique | D69: Nombre d'équipements acquis | G69: =IF(J69=0,"",IF(J69>=5000,"Oui","Non")) ->  | H69: =3500*(1+(bonus_om*bonus_om_tx)+(bonus_corse*bonus_corse_tx)) -> 3500 | I69: =IFERROR(IF(K69="L.EY",0,IF(OR('1-J''identifie mon entreprise'!$G$93=1,naf_exclu=1,partenaire_sci="Oui"),0,IF(micro_entreprise<>"Non",IF(OR($I$5=1,$I$21=1),1,0),1))),0) -> 0 | J69: =ROUND(IF(E69="",0,MIN(C69*H69*I69,40%*E69)),2) -> 0 | K69: =$K$66 -> L.EY
A70: ? | B70: Installation de froid commercial centralisée au CO2 avec récupération de chaleur | D70: Oui/Non | G70: =IF(J70=0,"",IF(J70>=500,"Oui","Non")) ->  | H70: =15000*(1+(bonus_om*bonus_om_tx)+(bonus_corse*bonus_corse_tx)) -> 15000 | I70: =IFERROR(IF(K70="L.EY",0,IF(OR('1-J''identifie mon entreprise'!$G$93=1,naf_exclu=1,partenaire_sci="Oui"),0,IF(micro_entreprise<>"Non",IF(OR($I$5=1,$I$21=1),1,0),1))),0) -> 0 | J70: =ROUND(IF(E70="",0,MIN(C70*H70*I70,tx_max*E70)),2) -> 0 | K70: L.EY
I71: =I65 -> 0
B72: Mes actions liées à l'isolation et la ventilation de mon bâtiment industriel ou tertiaire existant | I72: =I73 -> 0
B73: Nom de l'action | C73: Quantité | D73: Type d'unité | E73: Coût prévisionnel total HT | F73: Montant prévisionnel de l'aide ADEME | G73: Devis à joindre à la demande d'aide ? | I73: =IF(SUM(I74:I82)=0,0,IF(OR(LOURDES=1,$I$5=1,$I$21=1,partenaire_sci="Oui",bonus_corse=1),1,IF(OR('1-J''identifie mon entreprise'!$G$93=1,'1-J''identifie mon entreprise'!$C$8="Culture et production animale, chasse et services annexes",naf_exclu=1),0,IF(OR(naf_section="Section B",naf_section="Section C",naf_section="Section D",naf_section="Section E"),IF(micro_entreprise<>"Non",0,1),0)))) -> 0
A74: ? | B74: Isolation de combles perdus | D74: Surface isolée en m² | F74: =MIN(SUM(J74:J82),IF(code_naf="9499Z",200000,50000*(1+(bonus_om*bonus_om_tx)+(bonus_corse*bonus_corse_tx)))) -> 0 | G74: =IF(J74=0,"",IF(J74>=500,"Oui","Non")) ->  | H74: =IF(LOURDES=1,8,8) -> 8 | I74: =IF(K74="L.EY",0,IF(OR(LOURDES=1,$I$5=1,$I$21=1,bonus_corse=1,partenaire_sci="Oui"),1,IF(OR('1-J''identifie mon entreprise'!$G$93=1,'1-J''identifie mon entreprise'!$C$8="Culture et production animale, chasse et services annexes",naf_exclu=1),0,IF(OR(naf_section="Section B",naf_section="Section C",naf_section="Section D",naf_section="Section E"),IF(micro_entreprise<>"Non",0,1),0)))) -> 0 | J74: =ROUND(IF(E74="",0,MIN(C74*H74*I74,40%*E74)),2) -> 0 | K74: =IF(OR(LOURDES=1,$I$4=1,$I$21=1,partenaire_sci="Oui"),"L.ET",IF(bonus_corse=1,"I.EE","L.EY")) -> L.EY
A75: ? | B75: Isolation des rampants de toiture et plafonds de combles | D75: Surface isolée en m² | H75: =IF(LOURDES=1,15,15) -> 15 | I75: =IF(K75="L.EY",0,IF(OR(LOURDES=1,$I$5=1,$I$21=1,bonus_corse=1,partenaire_sci="Oui"),1,IF(OR('1-J''identifie mon entreprise'!$G$93=1,'1-J''identifie mon entreprise'!$C$8="Culture et production animale, chasse et services annexes",naf_exclu=1),0,IF(OR(naf_section="Section B",naf_section="Section C",naf_section="Section D",naf_section="Section E"),IF(micro_entreprise<>"Non",0,1),0)))) -> 0 | J75: 0 | K75: =IF(OR(LOURDES=1,$I$4=1,$I$21=1,partenaire_sci="Oui"),"L.ET",IF(bonus_corse=1,"I.EE","L.EY")) -> L.EY
A76: ? | B76: Isolation des planchers bas sur « espace non chauffé » | D76: Surface isolée en m² | H76: =IF(LOURDES=1,10,10) -> 10 | I76: =IF(K76="L.EY",0,IF(OR(LOURDES=1,$I$5=1,$I$21=1,bonus_corse=1,partenaire_sci="Oui"),1,IF(OR('1-J''identifie mon entreprise'!$G$93=1,'1-J''identifie mon entreprise'!$C$8="Culture et production animale, chasse et services annexes",naf_exclu=1),0,IF(OR(naf_section="Section B",naf_section="Section C",naf_section="Section D",naf_section="Section E"),IF(micro_entreprise<>"Non",0,1),0)))) -> 0 | J76: 0 | K76: =IF(OR(LOURDES=1,$I$4=1,$I$21=1,partenaire_sci="Oui"),IF(bonus_om>0,"L.EY","L.ET"),IF(bonus_corse=1,"I.EE","L.EY")) -> L.EY
A77: ? | B77: Isolation des murs par l'intérieur | D77: Surface isolée en m² | H77: =IF(LOURDES=1,15,15) -> 15 | I77: =IF(K77="L.EY",0,IF(OR(LOURDES=1,$I$5=1,$I$21=1,bonus_corse=1,partenaire_sci="Oui"),1,IF(OR('1-J''identifie mon entreprise'!$G$93=1,'1-J''identifie mon entreprise'!$C$8="Culture et production animale, chasse et services annexes",naf_exclu=1),0,IF(OR(naf_section="Section B",naf_section="Section C",naf_section="Section D",naf_section="Section E"),IF(micro_entreprise<>"Non",0,1),0)))) -> 0 | J77: 0 | K77: =IF(OR(LOURDES=1,$I$4=1,$I$21=1,partenaire_sci="Oui"),"L.ET",IF(bonus_corse=1,"I.EE","L.EY")) -> L.EY
A78: ? | B78: Isolation des murs par l'extérieur | D78: Surface isolée en m² | H78: =IF(LOURDES=1,40,40) -> 40 | I78: =IF(K78="L.EY",0,IF(OR(LOURDES=1,$I$5=1,$I$21=1,bonus_corse=1,partenaire_sci="Oui"),1,IF(OR('1-J''identifie mon entreprise'!$G$93=1,'1-J''identifie mon entreprise'!$C$8="Culture et production animale, chasse et services annexes",naf_exclu=1),0,IF(OR(naf_section="Section B",naf_section="Section C",naf_section="Section D",naf_section="Section E"),IF(micro_entreprise<>"Non",0,1),0)))) -> 0 | J78: 0 | K78: L.EY
A79: ? | B79: Isolation des toitures-terrasses | D79: Surface isolée en m² | H79: =IF(LOURDES=1,40,40) -> 40 | I79: =IF(K79="L.EY",0,IF(OR(LOURDES=1,$I$5=1,$I$21=1,bonus_corse=1,partenaire_sci="Oui"),1,IF(OR('1-J''identifie mon entreprise'!$G$93=1,'1-J''identifie mon entreprise'!$C$8="Culture et production animale, chasse et services annexes",naf_exclu=1),0,IF(OR(naf_section="Section B",naf_section="Section C",naf_section="Section D",naf_section="Section E"),IF(micro_entreprise<>"Non",0,1),0)))) -> 0 | J79: 0 | K79: L.EY
A80: ? | B80: Bardage extérieur ventilé | D80: Surface isolée en m² | H80: =IF(LOURDES=1,40,40) -> 40 | I80: =IF(OR(K80="L.EY",AND(bonus_om=0,bonus_corse=0)),0,IF(OR(LOURDES=1,$I$5=1,$I$21=1,bonus_corse=1,partenaire_sci="Oui"),1,IF(OR('1-J''identifie mon entreprise'!$G$93=1,'1-J''identifie mon entreprise'!$C$8="Culture et production animale, chasse et services annexes",naf_exclu=1),0,IF(OR(naf_section="Section B",naf_section="Section C",naf_section="Section D",naf_section="Section E"),IF(micro_entreprise<>"Non",0,1),0)))) -> 0 | J80: 0 | K80: L.EY
A81: ? | B81: Ventilation mécanique double flux | D81: Nombre de VMC | H81: =2000*(1+(bonus_om*bonus_om_tx)+(bonus_corse*bonus_corse_tx)) -> 2000 | I81: =IF(K81="L.EY",0,IF(OR(LOURDES=1,$I$5=1,$I$21=1,bonus_corse=1,partenaire_sci="Oui"),1,IF(OR('1-J''identifie mon entreprise'!$G$93=1,'1-J''identifie mon entreprise'!$C$8="Culture et production animale, chasse et services annexes",naf_exclu=1),0,IF(OR(naf_section="Section B",naf_section="Section C",naf_section="Section D",naf_section="Section E"),IF(micro_entreprise<>"Non",0,1),0)))) -> 0 | J81: 0 | K81: L.EY
A82: ? | B82: Mise en place d’un système de gestion technique du bâtiment (GTB) de classe B ou A | D82: Surface du bâtiment en m² | H82: =10*(1+(bonus_om*bonus_om_tx)+(bonus_corse*bonus_corse_tx)) -> 10 | I82: =IF(K82="L.EY",0,IF(OR(LOURDES=1,$I$5=1,$I$21=1,bonus_corse=1,partenaire_sci="Oui"),1,IF(OR('1-J''identifie mon entreprise'!$G$93=1,'1-J''identifie mon entreprise'!$C$8="Culture et production animale, chasse et services annexes",naf_exclu=1),0,IF(OR(naf_section="Section B",naf_section="Section C",naf_section="Section D",naf_section="Section E"),IF(micro_entreprise<>"Non",0,1),0)))) -> 0 | J82: 0 | K82: L.EY
B83: =IF(F74*I73>0,"La surface du plancher du bâtiment objet de l'isolation est-elle supérieure à 500 m² :","") ->  | D83: Non | I83: =I73 -> 0 | M83: =IF(AND(F74*I73>0,D83=""),"Veuillez indiquer si votre bâtiment fait plus de 500 m²","") -> 
B84: =IF(AND(D83="Oui",F74>0),"Je fournis le rapport de l'audit énergétique dans le dossier de demande d'aide","") ->  | I84: =I73 -> 0
B85: ="Mes actions liées à la production de chaleur et de froid"&IF(ISERROR(VLOOKUP('1-J''identifie mon entreprise'!$C$24,LIST_GEO!$H:$I,2,FALSE))," pour mon bâtiment existant",IF(VLOOKUP('1-J''identifie mon entreprise'!$C$24,LIST_GEO!$H:$I,2,FALSE)="CO - Corse",""," pour mon bâtiment existant")) -> Mes actions liées à la production de chaleur et de froid pour mon bâtiment existant | I85: =I86 -> 0
B86: Nom de l'action | C86: Quantité | D86: Type d'unité | E86: Coût prévisionnel total HT | F86: Montant prévisionnel de l'aide ADEME | G86: Devis à joindre à la demande d'aide ? | I86: =IFERROR(IF(AND(VLOOKUP(IF(partenaire_sci="Oui",'1-J''identifie mon entreprise'!$D$30,'1-J''identifie mon entreprise'!$C$24),LIST_GEO!$H:$I,2,FALSE)="CO - Corse",secteur_tourisme="Oui",partenaire="Non"),0,IF(OR(LOURDES=1,VLOOKUP(IF(partenaire_sci="Oui",'1-J''identifie mon entreprise'!$D$30,'1-J''identifie mon entreprise'!$C$24),LIST_GEO!$H:$I,2,FALSE)="CO - Corse"),1,IF(OR('1-J''identifie mon entreprise'!$G$93=1,naf_exclu=1,AND(naf_section="Section O",partenaire_sci<>"Oui")),0,IF(IFERROR(VLOOKUP(IF(partenaire_sci="Oui",CORRESPONDANCE_VILLE_DEP2,CORRESPONDANCE_VILLE_DEP),LIST_GEO!$C:$M,11,FALSE),"Non")="Non",0,IF(AND(micro_entreprise="Oui",LEFT(ch_code_partenaire,3)<>"FTD"),0,1))))),0) -> 0
A87: ? | B87: Géothermie sur champ de sondes et géostructures énergétiques inférieure à 25 MWh EnR/an | D87: Production énergétique prévisionnelle en MWh/an | F87: =ROUND(IF(E87="",0,MAX(0,MIN(C87*H87*I87,J87))),2) -> 0 | G87: =IF(J87=0,"","Oui") ->  | H87: =50*20 -> 1000 | I87: =$I$86 -> 0 | J87: =MAX(0,ROUND(IF(E87="",0,MIN(C87*H87*I87,(55%+IF(bonus_corse=1,5%,IF(bonus_om=1,15%,0%)))*(E87-MAX(0,IF((C87/3)<150,0.57*(C87/3)^2+76*(C87/3)+2500,56.1*(C87/3)+18300))))),2)) -> 0 | K87: =IF(LOURDES=1,"L.ET",IF(CONSTANTES!$B$4=1,"I.FF","L.EY")) -> I.FF | L87: 25
A88: ? | B88: Géothermie sur eau de nappe, sur eau de mer, sur eaux de surface et sur eaux usées inférieure à 25 MWh EnR/an | D88: Production énergétique prévisionnelle en MWh/an | F88: 0 | H88: =25*20 -> 500 | I88: 0 | J88: =MAX(0,ROUND(IF(E88="",0,MIN(C88*H88*I88,(55%+IF(bonus_corse=1,5%,IF(bonus_om=1,15%,0%)))*(E88-MAX(0,IF((C88/3)<150,0.57*(C88/3)^2+76*(C88/3)+2500,56.1*(C88/3)+18300))))),2)) -> 0 | K88: =IF(LOURDES=1,"L.ET",IF(CONSTANTES!$B$4=1,"I.FF","L.EY")) -> I.FF | L88: 25
A89: ? | B89: Géocooling | D89: Production énergétique prévisionnelle en MWh/an | F89: 0 | H89: =13*20 -> 260 | I89: 0 | J89: =MAX(0,ROUND(IF(E89="",0,MIN(C89*H89*I89,(55%+IF(bonus_corse=1,5%,IF(bonus_om=1,15%,0%)))*(E89-MAX(0,IF((C89/3)<150,0.57*(C89/3)^2+76*(C89/3)+2500,56.1*(C89/3)+18300))))),2)) -> 0 | K89: =IF(LOURDES=1,"L.ET",IF(CONSTANTES!$B$4=1,"I.FF","L.EY")) -> I.FF | L89: 25
A90: ? | B90: Pompe à chaleur (PAC) solaire eau/eau avec surface de capteur < 25 m² | D90: Production énergétique prévisionnelle en MWh/an | F90: 0 | H90: =38*20 -> 760 | I90: 0 | J90: =MAX(0,ROUND(IF(E90="",0,MIN(C90*H90*I90,(55%+IF(bonus_corse=1,5%,IF(bonus_om=1,15%,0%)))*(E90-MAX(0,IF((C90/3)<150,0.57*(C90/3)^2+76*(C90/3)+2500,56.1*(C90/3)+18300))))),2)) -> 0 | K90: =IF(LOURDES=1,"L.ET",IF(CONSTANTES!$B$4=1,"I.FF","L.EY")) -> I.FF | L90: 13
A91: ? | B91: ="Solaire thermique avec surface de capteur < "&IF(OR(LEFT(ch_departement,2)="96",LEFT(ch_departement,2)="97",LEFT(ch_departement,2)="98"),"10","25")&" m²" -> Solaire thermique avec surface de capteur < 25 m² | D91: Production énergétique prévisionnelle en MWh solaire utile /an | F91: 0 | H91: =IFERROR(20*IF(OR(bonus_om=1,VLOOKUP('1-J''identifie mon entreprise'!$C$24,LIST_GEO!$H:$J,3,FALSE)="Sud"),56,IF(VLOOKUP('1-J''identifie mon entreprise'!$C$24,LIST_GEO!$H:$J,3,FALSE)="Nord",63,50)),0) -> 0 | I91: 0 | J91: =MAX(0,ROUND(IF(E91="",0,MIN(C91*H91*I91,(55%+IF(bonus_corse=1,5%,IF(bonus_om=1,15%,0%)))*(E91))),2)) -> 0 | K91: =IF(LOURDES=1,"L.ET",IF(CONSTANTES!$B$4=1,"I.FF","L.EY")) -> I.FF | L91: 13
A92: ? | B92: Création ou extension d’un réseau de chaleur ou de froid | D92: Longueur de tranché en mètres linéaires | F92: 0 | H92: 390 | I92: 0 | J92: =ROUND(IF(E92="",0,MIN(C92*H92*I92,tx_max*E92)),2) -> 0 | K92: =IF(LOURDES=1,"L.ET",IF(CONSTANTES!$B$4=1,"I.FF","L.EY")) -> I.FF
A93: ? | B93: Chaudière biomasse inférieure à 1200 MWh/an | D93: Production énergétique prévisionnelle en MWh/an | F93: 0 | H93: =IF(C93<=600,21*20,20*(21*600+12*(C93-600))/C93) -> 420 | I93: 0 | J93: =MAX(0,ROUND(IF(E93="",0,MIN(C93*H93*I93,(55%+IF(bonus_corse=1,5%,IF(bonus_om=1,15%,0%)))*(E93-MAX(0,IF((C93/3)<150,0.57*(C93/3)^2+76*(C93/3)+2500,56.1*(C93/3)+18300))))),2)) -> 0 | K93: =IF(LOURDES=1,"L.ET",IF(CONSTANTES!$B$4=1,"I.FF","L.EY")) -> I.FF | L93: 600
A94: ? | B94: Géothermie sur échangeurs compacts (corbeilles ou murs géothermiques) inférieure à 25 MWh EnR/an | D94: Production énergétique prévisionnelle en MWh/an | F94: 0 | H94: =44*20 -> 880 | I94: 0 | J94: =MAX(0,ROUND(IF(E94="",0,MIN(C94*H94*I94,(55%+IF(bonus_corse=1,5%,IF(bonus_om=1,15%,0%)))*(E94-MAX(0,IF((C94/3)<150,0.57*(C94/3)^2+76*(C94/3)+2500,56.1*(C94/3)+18300))))),2)) -> 0 | K94: =IF(LOURDES=1,"L.ET",IF(CONSTANTES!$B$4=1,"I.FF","L.EY")) -> I.FF | L94: 25
I95: 0
B96: Mes actions liées à la mobilité | I96: =I97 -> 0
B97: Nom de l'action | C97: Quantité | D97: Type d'unité | E97: Coût prévisionnel total HT | F97: Montant prévisionnel de l'aide ADEME | G97: Devis à joindre à la demande d'aide ? | I97: =IF(SUM(I98:I114)=0,0,IF(OR('1-J''identifie mon entreprise'!$G$93=1,naf_exclu=1,partenaire_sci="Oui"),0,IF(micro_entreprise<>"Non",IF(OR($I$5=1,$I$21=1),1,0),1))) -> 0
A98: ? | B98: Remplacement d'un véhicule thermique par un véhicule léger neuf électrique ou transformation /rétrofit électrique | D98: Nombre de véhicules remplacés | F98: =ROUND(MIN(50000*(1+(bonus_om*bonus_om_tx)+(bonus_corse*bonus_corse_tx)),SUMPRODUCT(J98:J114,I98:I114)),0) -> 0 | G98: =IF(J98=0,"",IF(J98>=500,"Oui","Non")) ->  | H98: =4000*(1+(bonus_om*bonus_om_tx)+(bonus_corse*bonus_corse_tx)) -> 4000 | I98: =IFERROR(IF(ZONE_ZFE="Non",0,IF(AND(code_naf="8411Z",collectivite_locale<>"Oui"),0,IF(OR('1-J''identifie mon entreprise'!$G$93=1,naf_exclu=1),0,IF(micro_entreprise<>"Non",IF(OR($I$5=1,$I$21=1),1,0),1)))),0) -> 0 | J98: =ROUND(IF(E98="",0,MIN(C98*H98*I98,tx_max*E98)),2) -> 0 | K98: I.AM
A99: ? | B99: Remplacement d'un véhicule thermique par un véhicule léger neuf GNV ou transformation/rétrofit GNV | D99: Nombre de véhicules remplacés | H99: =1000*(1+(bonus_om*bonus_om_tx)+(bonus_corse*bonus_corse_tx)) -> 1000 | I99: =IFERROR(IF(ZONE_ZFE="Non",0,IF(AND(code_naf="8411Z",collectivite_locale<>"Oui"),0,IF(OR('1-J''identifie mon entreprise'!$G$93=1,naf_exclu=1),0,IF(micro_entreprise<>"Non",IF(OR($I$5=1,$I$21=1),1,0),1)))),0) -> 0 | J99: 0 | K99: I.AM
A100: ? | B100: Remplacement d'un véhicule thermique par une fourgonnette neuve électrique | D100: Nombre de véhicules remplacés | H100: =5000*(1+(bonus_om*bonus_om_tx)+(bonus_corse*bonus_corse_tx)) -> 5000 | I100: =IFERROR(IF(AND(ZONE_ZFE="Non",ZONE_ZFE_IDF="Non"),0,IF(AND(code_naf="8411Z",collectivite_locale<>"Oui"),0,IF(OR('1-J''identifie mon entreprise'!$G$93=1,naf_exclu=1),0,IF(micro_entreprise<>"Non",IF(OR($I$5=1,$I$21=1),1,0),1)))),0) -> 0 | J100: 0 | K100: I.AM
A101: ? | B101: Remplacement d'un véhicule thermique par une fourgonnette neuve GNV | D101: Nombre de véhicules remplacés | H101: =1000*(1+(bonus_om*bonus_om_tx)+(bonus_corse*bonus_corse_tx)) -> 1000 | I101: =IFERROR(IF(ZONE_ZFE="Non",0,IF(AND(code_naf="8411Z",collectivite_locale<>"Oui"),0,IF(OR('1-J''identifie mon entreprise'!$G$93=1,naf_exclu=1),0,IF(micro_entreprise<>"Non",IF(OR($I$5=1,$I$21=1),1,0),1)))),0) -> 0 | J101: 0 | K101: I.AM
A102: ? | B102: Remplacement d'un véhicule thermique par un fourgon neuf électrique | D102: Nombre de véhicules remplacés | H102: =9000*(1+(bonus_om*bonus_om_tx)+(bonus_corse*bonus_corse_tx)) -> 9000 | I102: =IFERROR(IF(AND(ZONE_ZFE="Non",ZONE_ZFE_IDF="Non"),0,IF(AND(code_naf="8411Z",collectivite_locale<>"Oui"),0,IF(OR('1-J''identifie mon entreprise'!$G$93=1,naf_exclu=1),0,IF(micro_entreprise<>"Non",IF(OR($I$5=1,$I$21=1),1,0),1)))),0) -> 0 | J102: 0 | K102: I.AM
A103: ? | B103: Remplacement d'un véhicule thermique par un fourgon neuf GNV | D103: Nombre de véhicules remplacés | H103: =4000*(1+(bonus_om*bonus_om_tx)+(bonus_corse*bonus_corse_tx)) -> 4000 | I103: =IFERROR(IF(ZONE_ZFE="Non",0,IF(AND(code_naf="8411Z",collectivite_locale<>"Oui"),0,IF(OR('1-J''identifie mon entreprise'!$G$93=1,naf_exclu=1),0,IF(micro_entreprise<>"Non",IF(OR($I$5=1,$I$21=1),1,0),1)))),0) -> 0 | J103: 0 | K103: I.AM
A104: ? | B104: Remplacement d'un véhicule thermique par un camion neuf électrique dont le PTAC est inf à 7,5 T | D104: Nombre de véhicules remplacés | H104: =15000*(1+(bonus_om*bonus_om_tx)+(bonus_corse*bonus_corse_tx)) -> 15000 | I104: =IFERROR(IF(ZONE_ZFE="Non",0,IF(AND(code_naf="8411Z",collectivite_locale<>"Oui"),0,IF(OR('1-J''identifie mon entreprise'!$G$93=1,naf_exclu=1),0,IF(micro_entreprise<>"Non",IF(OR($I$5=1,$I$21=1),1,0),1)))),0) -> 0 | J104: 0 | K104: I.AM
A105: ? | B105: Remplacement d'un véhicule thermique par un camion neuf GNV dont le PTAC est inf à 7,5 T | D105: Nombre de véhicules remplacés | H105: =4000*(1+(bonus_om*bonus_om_tx)+(bonus_corse*bonus_corse_tx)) -> 4000 | I105: =IFERROR(IF(ZONE_ZFE="Non",0,IF(AND(code_naf="8411Z",collectivite_locale<>"Oui"),0,IF(OR('1-J''identifie mon entreprise'!$G$93=1,naf_exclu=1),0,IF(micro_entreprise<>"Non",IF(OR($I$5=1,$I$21=1),1,0),1)))),0) -> 0 | J105: 0 | K105: I.AM
A106: ? | B106: Remplacement d'un camion thermique ou BOM thermique par un camion neuf électrique ( PTAC inf à 19T) ou une BOM électrique | D106: Nombre de véhicules remplacés | H106: =25000*(1+(bonus_om*bonus_om_tx)+(bonus_corse*bonus_corse_tx)) -> 25000 | I106: =IFERROR(IF(ZONE_ZFE="Non",0,IF(AND(code_naf="8411Z",collectivite_locale<>"Oui"),0,IF(OR('1-J''identifie mon entreprise'!$G$93=1,naf_exclu=1),0,IF(micro_entreprise<>"Non",IF(OR($I$5=1,$I$21=1),1,0),1)))),0) -> 0 | J106: =ROUND(IF(E106="",0,MIN(C106*H106*I106,tx_max*E106)),2) -> 0 | K106: I.AM
A107: ? | B107: Remplacement d'un véhicule thermique par un camion neuf GNV dont le PTAC est inf ou égal à 19T | D107: Nombre de véhicules remplacés | H107: =8000*(1+(bonus_om*bonus_om_tx)+(bonus_corse*bonus_corse_tx)) -> 8000 | I107: =IFERROR(IF(ZONE_ZFE="Non",0,IF(AND(code_naf="8411Z",collectivite_locale<>"Oui"),0,IF(OR('1-J''identifie mon entreprise'!$G$93=1,naf_exclu=1),0,IF(micro_entreprise<>"Non",IF(OR($I$5=1,$I$21=1),1,0),1)))),0) -> 0 | J107: 0 | K107: I.AM
A108: ? | B108: Transformation d'une fourgonnette, d'un fourgon ou d'un camion à motorisation thermique en motorisation électrique (retrofit) | D108: Nombre de véhicules concernés | H108: =10000*(1+(bonus_om*bonus_om_tx)+(bonus_corse*bonus_corse_tx)) -> 10000 | I108: =IFERROR(IF(ZONE_ZFE="Non",0,IF(AND(code_naf="8411Z",collectivite_locale<>"Oui"),0,IF(OR('1-J''identifie mon entreprise'!$G$93=1,naf_exclu=1),0,IF(micro_entreprise<>"Non",IF(OR($I$5=1,$I$21=1),1,0),1)))),0) -> 0 | J108: 0 | K108: I.AM
A109: ? | B109: Transformation d'une fourgonnette, d'un fourgon ou d'un camion à motorisation thermique en motorisation GNV (retrofit) | D109: Nombre de véhicules concernés | H109: =10000*(1+(bonus_om*bonus_om_tx)+(bonus_corse*bonus_corse_tx)) -> 10000 | I109: =IFERROR(IF(ZONE_ZFE="Non",0,IF(AND(code_naf="8411Z",collectivite_locale<>"Oui"),0,IF(OR('1-J''identifie mon entreprise'!$G$93=1,naf_exclu=1),0,IF(micro_entreprise<>"Non",IF(OR($I$5=1,$I$21=1),1,0),1)))),0) -> 0 | J109: 0 | K109: I.AM
A110: ? | B110: Véhicule utilitaire léger frigorifique : achat d’un groupe frigorifique électrique | D110: Nombre de véhicules concernés | H110: =5000*(1+(bonus_om*bonus_om_tx)+(bonus_corse*bonus_corse_tx)) -> 5000 | I110: =IFERROR(IF(OR(AND(ZONE_ZFE="Non",I5+I23=0),partenaire_sci="Oui"),0,IF(AND(code_naf="8411Z",collectivite_locale<>"Oui"),0,IF(OR('1-J''identifie mon entreprise'!$G$93=1,naf_exclu=1),0,IF(micro_entreprise<>"Non",IF(OR($I$5=1,$I$21=1),1,0),1)))),0) -> 0 | J110: 0 | K110: =IF(OR($I$5=1,$I$21=1),"L.ET","I.AM") -> I.AM
A111: ? | B111: Vélo de service à assistance électrique, pliant ou adapté PMR | D111: Nombre de vélos électrique | H111: =1000*(1+(bonus_om*bonus_om_tx)+(bonus_corse*bonus_corse_tx)) -> 1000 | I111: =IF(ZONE_ZFE="Non",0,IF(AND(code_naf="8411Z",collectivite_locale<>"Oui"),0,IF(OR('1-J''identifie mon entreprise'!$G$93=1,naf_exclu=1),0,IF(micro_entreprise<>"Non",IF(OR($I$5=1,$I$21=1),1,0),1)))) -> 0 | J111: =ROUND(IF(E111="",0,MIN(C111*H111*I111,40%*E111)),2) -> 0 | K111: I.AM
A112: ? | B112: Vélo cargo pour un usage professionnel | D112: Nombre de vélos cargos | H112: =1500*(1+(bonus_om*bonus_om_tx)+(bonus_corse*bonus_corse_tx)) -> 1500 | I112: =IFERROR(IF(partenaire_sci="Oui",0,IF(K112="I.AM",IF(AND(ZONE_ZFE="Non",ZONE_ZFE_IDF="Non"),0,IF(AND(code_naf="8411Z",collectivite_locale<>"Oui"),0,IF(OR('1-J''identifie mon entreprise'!$G$93=1,naf_exclu=1),0,IF(micro_entreprise<>"Non",IF(OR($I$5=1,$I$21=1),1,0),1)))),IF(OR('1-J''identifie mon entreprise'!$G$91=1,naf_exclu=1,AND(VLOOKUP('1-J''identifie mon entreprise'!$C$24,LIST_GEO!$H:$I,2,FALSE)="CO - Corse",secteur_tourisme="Oui",partenaire="Non")),0,IF(micro_entreprise<>"Non",IF(OR($I$5=1,$I$21=1),1,0),1)))),0) -> 0 | J112: =ROUND(IF(E112="",0,MIN(C112*H112*I112,40%*E112)),2) -> 0 | K112: =IF(OR($I$5=1,$I$21=1),"L.ET","I.AM") -> I.AM
A113: ? | B113: Abris à vélo avec toit | D113: Capacité d'accueil de l'abris en nombre de vélos | H113: =250*(1+(bonus_om*bonus_om_tx)+(bonus_corse*bonus_corse_tx)) -> 250 | I113: =IFERROR(IF(partenaire_sci="Oui",0,IF(K113="I.AM",IF(ZONE_ZFE="Non",0,IF(AND(code_naf="8411Z",collectivite_locale<>"Oui"),0,IF(OR('1-J''identifie mon entreprise'!$G$93=1,naf_exclu=1),0,IF(micro_entreprise<>"Non",IF(OR($I$5=1,$I$21=1),1,0),1)))),IF(OR('1-J''identifie mon entreprise'!$G$91=1,naf_exclu=1,AND(VLOOKUP('1-J''identifie mon entreprise'!$C$24,LIST_GEO!$H:$I,2,FALSE)="CO - Corse",secteur_tourisme="Oui",partenaire="Non")),0,IF(micro_entreprise<>"Non",IF(OR($I$5=1,$I$21=1),1,0),1)))),0) -> 0 | J113: =ROUND(IF(E113="",0,MIN(C113*H113*I113,tx_max*E113)),2) -> 0 | K113: =IF(OR($I$5=1,$I$21=1),"L.ET","I.AM") -> I.AM
A114: ? | B114: Diagnostic de flottes de véhicules | D114: Oui/Non | H114: =20000*(1+(bonus_om*bonus_om_tx)+(bonus_corse*bonus_corse_tx)) -> 20000 | I114: =IFERROR(IF(ZONE_ZFE="Non",0,IF(AND(code_naf="8411Z",collectivite_locale<>"Oui"),0,IF(OR('1-J''identifie mon entreprise'!$G$93=1,naf_exclu=1),0,IF(micro_entreprise<>"Non",IF(OR($I$5=1,$I$21=1),1,0),1)))),0) -> 0 | J114: =ROUND(IF(E114="",0,MIN(H114,tx_max*E114)),2) -> 0 | K114: I.AM
I115: =I97 -> 0
B116: Mes actions liées à l'économie circulaire et la gestion des déchets | I116: =IFERROR(IF(OR('1-J''identifie mon entreprise'!$G$93=1,naf_exclu=1,AND(OR(code_naf="8413Z",code_naf="8411Z"),$I$4=0,$I$21=0),AND(VLOOKUP('1-J''identifie mon entreprise'!$C$24,LIST_GEO!$H:$I,2,FALSE)="CO - Corse",secteur_tourisme="Oui",partenaire="Non"),partenaire_sci="Oui",AND(aff_sci=1,aff_sci2=1,partenaire_sci="Non")),0,IF(micro_entreprise<>"Non",IF(OR($I$5=1,$I$21=1),1,0),1)),0) -> 0
B117: Nom de l'action | C117: Quantité | D117: Type d'unité | E117: Coût prévisionnel total HT | F117: Montant prévisionnel de l'aide ADEME | G117: Devis à joindre à la demande d'aide ? | I117: =IFERROR(IF(OR('1-J''identifie mon entreprise'!$G$93=1,naf_exclu=1,AND(OR(code_naf="8413Z",code_naf="8411Z"),$I$4=0,$I$21=0),AND(VLOOKUP('1-J''identifie mon entreprise'!$C$24,LIST_GEO!$H:$I,2,FALSE)="CO - Corse",secteur_tourisme="Oui",partenaire="Non"),partenaire_sci="Oui",AND(aff_sci=1,aff_sci2=1,partenaire_sci="Non")),0,IF(micro_entreprise<>"Non",IF(OR($I$5=1,$I$21=1),1,0),1)),0) -> 0
A118: ? | B118: Etat des lieux et proposition pour trier les déchets de bois, papier/carton, métaux, verre et plastiques ainsi que les fractions minérales et le plâtre | D118: Oui/Non | F118: =MIN(SUM(J118:J134),50000*(1+(bonus_om*bonus_om_tx)+(bonus_corse*bonus_corse_tx))) -> 0 | G118: =IF(J118=0,"","Oui") ->  | H118: =3000*(1+(bonus_om*bonus_om_tx)+(bonus_corse*bonus_corse_tx)) -> 3000 | I118: =IFERROR(IF(OR('1-J''identifie mon entreprise'!$G$93=1,naf_exclu=1,AND(OR(code_naf="8413Z",code_naf="8411Z"),$I$4=0,$I$21=0),partenaire_sci="Oui",AND(aff_sci=1,aff_sci2=1,partenaire_sci="Non")),0,IF(micro_entreprise<>"Non",IF(OR($I$5=1,$I$21=1),1,0),1)),0) -> 0 | J118: =ROUND(IF(E118="",0,MIN(C118*H118*I118,tx_max*E118)),2) -> 0 | K118: I.DP
A119: ? | B119: Analyse de process pour la prévention des déchets (méthode Comptabilité des flux de matière) | D119: Oui/Non | G119: =IF(J119=0,"","Oui") ->  | H119: =5000*(1+(bonus_om*bonus_om_tx)+(bonus_corse*bonus_corse_tx)) -> 5000 | I119: =IFERROR(IF(OR('1-J''identifie mon entreprise'!$G$93=1,naf_exclu=1,AND(OR(code_naf="8413Z",code_naf="8411Z"),$I$4=0,$I$21=0),partenaire_sci="Oui",AND(aff_sci=1,aff_sci2=1,partenaire_sci="Non")),0,IF(micro_entreprise<>"Non",IF(OR($I$5=1,$I$21=1),1,0),1)),0) -> 0 | J119: 0 | K119: I.DP
A120: ? | B120: Diagnostic pour réduire les emballages ou remplacer des emballages plastiques par d’autres | D120: Oui/Non | G120: =IF(J120=0,"","Oui") ->  | H120: =5000*(1+(bonus_om*bonus_om_tx)+(bonus_corse*bonus_corse_tx)) -> 5000 | I120: =IFERROR(IF(OR('1-J''identifie mon entreprise'!$G$93=1,naf_exclu=1,AND(OR(code_naf="8413Z",code_naf="8411Z"),$I$4=0,$I$21=0),partenaire_sci="Oui",AND(aff_sci=1,aff_sci2=1,partenaire_sci="Non")),0,IF(micro_entreprise<>"Non",IF(OR($I$5=1,$I$21=1),1,0),1)),0) -> 0 | J120: 0 | K120: L.DI
A121: ? | B121: Soutien aux réparateurs : aide à l'investissement matériel (uniquement investissement matériel ou logiciels de réparation hors matériel informatique, services ou logiciels de gestion) | D121: Oui/Non | G121: =IF(J121=0,"","Oui") ->  | H121: =2500*(1+(bonus_om*bonus_om_tx)+(bonus_corse*bonus_corse_tx)) -> 2500 | I121: =IFERROR(IF(OR(code_naf="9511Z",code_naf="9512Z",code_naf="9521Z",code_naf="9522Z",code_naf="9523Z",code_naf="9524Z",code_naf="9525Z",code_naf="9529Z",code_naf="9499Z",code_naf="3319Z"),IF(AND(code_naf="9529Z",OR('1-J''identifie mon entreprise'!$D$16=List!$AD$6,'1-J''identifie mon entreprise'!D16="")),0,IF(OR(micro_entreprise<>"Non",'1-J''identifie mon entreprise'!G93=1,naf_exclu=1,partenaire_sci="Oui"),0,1)),0),0) -> 0 | J121: 0 | K121: I.DP
A122: ? | B122: Bilan des matières entrantes dans et sortantes de l’entreprise (méthode Bilan matière) | D122: Oui/Non | G122: =IF(J122=0,"","Oui") ->  | H122: =7000*(1+(bonus_om*bonus_om_tx)+(bonus_corse*bonus_corse_tx)) -> 7000 | I122: =IFERROR(IF(OR('1-J''identifie mon entreprise'!$G$93=1,naf_exclu=1,AND(OR(code_naf="8413Z",code_naf="8411Z"),$I$4=0,$I$21=0),partenaire_sci="Oui",AND(aff_sci=1,aff_sci2=1,partenaire_sci="Non")),0,IF(micro_entreprise<>"Non",IF(OR($I$5=1,$I$21=1),1,0),1)),0) -> 0 | J122: 0 | K122: I.DP
A123: ? | B123: Récupération des eaux de pluie | D123: Nombre de cuves enterrées de 10 m3 | G123: =IF(J123=0,"",IF(J123>=500,"Oui","Non")) ->  | H123: =2500*(1+(bonus_om*bonus_om_tx)+(bonus_corse*bonus_corse_tx)) -> 2500 | I123: =IFERROR(IF(OR('1-J''identifie mon entreprise'!$G$93=1,naf_exclu=1,AND(OR(code_naf="8413Z",code_naf="8411Z"),$I$4=0,$I$21=0),partenaire_sci="Oui",AND(aff_sci=1,aff_sci2=1,partenaire_sci="Non")),0,IF(micro_entreprise<>"Non",IF(OR($I$5=1,$I$21=1),1,0),1)),0) -> 0 | J123: 0 | K123: I.DP
A124: ? | B124: Broyeurs de végétaux | D124: Nombre de broyeurs | H124: =5000*(1+(bonus_om*bonus_om_tx)+(bonus_corse*bonus_corse_tx)) -> 5000 | I124: =IFERROR(IF(OR('1-J''identifie mon entreprise'!$G$93=1,naf_exclu=1,AND(OR(code_naf="8413Z",code_naf="8411Z"),$I$4=0,$I$21=0),partenaire_sci="Oui",AND(aff_sci=1,aff_sci2=1,partenaire_sci="Non")),0,IF(micro_entreprise<>"Non",IF(OR($I$5=1,$I$21=1),1,0),1)),0) -> 0 | J124: 0 | K124: I.DP
A125: ? | B125: Concasseur mobile (déchets inertes du BTP) | D125: Nombre de concasseurs | H125: =15000*(1+(bonus_om*bonus_om_tx)+(bonus_corse*bonus_corse_tx)) -> 15000 | I125: 0 | J125: 0 | K125: I.DP
A126: ? | B126: Préparation des biodéchets : mise en place du tri, pré-collecte, formation du personnel, signalétique | D126: Oui/Non | H126: =6000*(1+(bonus_om*bonus_om_tx)+(bonus_corse*bonus_corse_tx)) -> 6000 | I126: =IFERROR(IF(OR('1-J''identifie mon entreprise'!$G$93=1,naf_exclu=1,AND(OR(code_naf="8413Z",code_naf="8411Z"),$I$4=0,$I$21=0),partenaire_sci="Oui",AND(aff_sci=1,aff_sci2=1,partenaire_sci="Non")),0,IF(micro_entreprise<>"Non",IF(OR($I$5=1,$I$21=1),1,0),1)),0) -> 0 | J126: 0 | K126: I.DP
A127: ? | B127: Composteur en bac pour biodéchets | D127: Nombre de composteurs | H127: =100*(1+(bonus_om*bonus_om_tx)+(bonus_corse*bonus_corse_tx)) -> 100 | I127: =IFERROR(IF(OR('1-J''identifie mon entreprise'!$G$93=1,naf_exclu=1,AND(OR(code_naf="8413Z",code_naf="8411Z"),$I$4=0,$I$21=0),partenaire_sci="Oui",AND(aff_sci=1,aff_sci2=1,partenaire_sci="Non")),0,IF(micro_entreprise<>"Non",IF(OR($I$5=1,$I$21=1),1,0),1)),0) -> 0 | J127: 0 | K127: I.DP
A128: ? | B128: Pavillon de compostage pour biodéchets | D128: Nombre de composteurs | H128: =2000*(1+(bonus_om*bonus_om_tx)+(bonus_corse*bonus_corse_tx)) -> 2000 | I128: =IFERROR(IF(OR('1-J''identifie mon entreprise'!$G$93=1,naf_exclu=1,AND(OR(code_naf="8413Z",code_naf="8411Z"),$I$4=0,$I$21=0),partenaire_sci="Oui",AND(aff_sci=1,aff_sci2=1,partenaire_sci="Non")),0,IF(micro_entreprise<>"Non",IF(OR($I$5=1,$I$21=1),1,0),1)),0) -> 0 | J128: 0 | K128: I.DP
A129: ? | B129: Diagnostic préalable à la gestion des déchets internes des professionnels | D129: Oui/Non | G129: =IF(J129=0,"","Oui") ->  | H129: 5500 | I129: =IF(AND(heberg=0,resto=0),0,IFERROR(IF(OR('1-J''identifie mon entreprise'!$G$93=1,naf_exclu=1,AND(OR(code_naf="8413Z",code_naf="8411Z"),$I$4=0,$I$21=0),VLOOKUP('1-J''identifie mon entreprise'!$C$24,LIST_GEO!$H:$I,2,FALSE)<>"CO - Corse",AND(secteur_tourisme="Oui",partenaire="Non"),partenaire_sci="Oui"),0,IF(micro_entreprise<>"Non",IF(OR($I$5=1,$I$21=1),1,0),1)),0)) -> 0 | J129: 0 | K129: I.DP
A130: ? | B130: Diagnostic aux investissements pour la gestion des biodéchets des professionnels | D130: Oui/Non | G130: =IF(J130=0,"","Oui") ->  | H130: 5500 | I130: =IF(AND(heberg=0,resto=0),0,IFERROR(IF(OR('1-J''identifie mon entreprise'!$G$93=1,naf_exclu=1,AND(OR(code_naf="8413Z",code_naf="8411Z"),$I$4=0,$I$21=0),VLOOKUP('1-J''identifie mon entreprise'!$C$24,LIST_GEO!$H:$I,2,FALSE)<>"CO - Corse",AND(secteur_tourisme="Oui",partenaire="Non"),partenaire_sci="Oui"),0,IF(micro_entreprise<>"Non",IF(OR($I$5=1,$I$21=1),1,0),1)),0)) -> 0 | J130: 0 | K130: I.DP
A131: ? | B131: Diagnostic préalable aux investissements de réemploi, réparation, réutilisation (hors emballage plastique) | D131: Oui/Non | G131: =IF(J131=0,"","Oui") ->  | H131: 5500 | I131: =IF(AND(heberg=0,resto=0),0,IFERROR(IF(OR('1-J''identifie mon entreprise'!$G$93=1,naf_exclu=1,AND(OR(code_naf="8413Z",code_naf="8411Z"),$I$4=0,$I$21=0),VLOOKUP('1-J''identifie mon entreprise'!$C$24,LIST_GEO!$H:$I,2,FALSE)<>"CO - Corse",AND(secteur_tourisme="Oui",partenaire="Non"),partenaire_sci="Oui"),0,IF(micro_entreprise<>"Non",IF(OR($I$5=1,$I$21=1),1,0),1)),0)) -> 0 | J131: 0 | K131: I.DP
A132: ? | B132: Contenants souples de type big-bags réutilisables (lot de 7) et portants pour maintien big-bags ouverts pour les déchets du bâtiment | D132: Nombre de lots de 7 big-bags | G132: =IF(J132=0,"",IF(J132>=500,"Oui","Non")) ->  | H132: =800*(1+(bonus_om*bonus_om_tx)+(bonus_corse*bonus_corse_tx)) -> 800 | I132: 0 | J132: 0 | K132: I.DP
A133: ? | B133: Broyeurs de déchets plastiques pour réutilisation dans le process | D133: Nombre de broyeurs | G133: =IF(J133=0,"",IF(J133>=500,"Oui","Non")) ->  | H133: 20000 | I133: 0 | J133: 0 | K133: L.DI
A134: ? | B134: Etude de dimensionnement économie circulaire | D134: Oui/Non | G134: =IF(J134=0,"",IF(J134>=500,"Oui","Non")) ->  | H134: =IF(SUM(E123:E132)<25000,0,15%) -> 0 | I134: 0 | J134: =ROUND(IF(E134="",0,MIN(C134*H134*I134*SUM(J123:J132),tx_max*E134)),2) -> 0 | K134: I.DP
A135: ? | B135: Broyeurs de déchets plastiques pour réutilisation dans le process | D135: Nombre de broyeurs | F135: =ROUND(IF(E135="",0,MIN(C135*H135*I135,tx_max*E135)),0) -> 0 | G135: =IF(J135=0,"",IF(J135>=500,"Oui","Non")) ->  | H135: 20000 | I135: 0 | J135: =ROUND(IF(E135="",0,MIN(C135*H135*I135,tx_max*E135)),2) -> 0 | K135: L.DI
A136: ? | B136: Acquisition d’emballage ou de contenants réemployables en substitution du plastique à usage unique | D136: Oui/Non | F136: =ROUND(IF(E136="",0,MIN(C136*H136*I136,tx_max*E136)),0) -> 0 | G136: =IF(J136=0,"",IF(J136>=500,"Oui","Non")) ->  | H136: =5000*(1+(bonus_om*bonus_om_tx)+(bonus_corse*bonus_corse_tx)) -> 5000 | I136: 0 | J136: =ROUND(IF(E136="",0,MIN(C136*H136*I136,tx_max*E136)),2) -> 0 | K136: L.DI
I137: =IF(AND(heberg=0,resto=0),0,IFERROR(IF(OR('1-J''identifie mon entreprise'!$G$93=1,naf_exclu=1,AND(OR(code_naf="8413Z",code_naf="8411Z"),$I$4=0,$I$21=0),AND(VLOOKUP('1-J''identifie mon entreprise'!$C$24,LIST_GEO!$H:$I,2,FALSE)="CO - Corse",secteur_tourisme="Oui",partenaire="Non"),partenaire_sci="Oui",AND(aff_sci=1,aff_sci2=1,partenaire_sci="Non")),0,IF(micro_entreprise<>"Non",IF(OR($I$5=1,$I$21=1),1,0),1)),0)) -> 0
B138: Mes actions liées à l'écoconception et aux labélisations | I138: =IF(AND(heberg=0,resto=0),0,IFERROR(IF(OR('1-J''identifie mon entreprise'!$G$93=1,naf_exclu=1,AND(OR(code_naf="8413Z",code_naf="8411Z"),$I$4=0,$I$21=0),AND(VLOOKUP('1-J''identifie mon entreprise'!$C$24,LIST_GEO!$H:$I,2,FALSE)="CO - Corse",secteur_tourisme="Oui",partenaire="Non"),partenaire_sci="Oui",AND(aff_sci=1,aff_sci2=1,partenaire_sci="Non")),0,IF(micro_entreprise<>"Non",IF(OR($I$5=1,$I$21=1),1,0),1)),0)) -> 0
B139: Nom de l'action | C139: Quantité | D139: Type d'unité | E139: Coût prévisionnel total HT | F139: Montant prévisionnel de l'aide ADEME | G139: Devis à joindre à la demande d'aide ? | I139: =IF(AND(heberg=0,resto=0),0,IFERROR(IF(OR('1-J''identifie mon entreprise'!$G$93=1,naf_exclu=1,AND(OR(code_naf="8413Z",code_naf="8411Z"),$I$4=0,$I$21=0),AND(VLOOKUP('1-J''identifie mon entreprise'!$C$24,LIST_GEO!$H:$I,2,FALSE)="CO - Corse",secteur_tourisme="Oui",partenaire="Non"),partenaire_sci="Oui",AND(aff_sci=1,aff_sci2=1,partenaire_sci="Non")),0,IF(micro_entreprise<>"Non",IF(OR($I$5=1,$I$21=1),1,0),1)),0)) -> 0
A140: ? | B140: Premiers pas éco-conception | D140: Oui/Non | F140: =MIN(SUM(J140:J145),50000*(1+(bonus_om*bonus_om_tx)+(bonus_corse*bonus_corse_tx))) -> 0 | G140: =IF(J140=0,"","Oui") ->  | H140: =5000*(1+(bonus_om*bonus_om_tx)+(bonus_corse*bonus_corse_tx)) -> 5000 | I140: =IFERROR(IF(OR('1-J''identifie mon entreprise'!$G$93=1,naf_exclu=1,AND(OR(code_naf="8413Z",code_naf="8411Z"),$I$4=0,$I$21=0),partenaire_sci="Oui",AND(aff_sci=1,aff_sci2=1,partenaire_sci="Non")),0,IF(micro_entreprise<>"Non",IF(OR($I$5=1,$I$21=1),1,0),1)),0) -> 0 | J140: =ROUND(IF(E140="",0,MIN(C140*H140*I140,tx_max*E140)),2) -> 0 | K140: L.EE
A141: ? | B141: Mise en œuvre d'un affichage environnemental pour les produits de l'entreprise | D141: Oui/Non | G141: =IF(J141=0,"","Oui") ->  | H141: =8000*(1+(bonus_om*bonus_om_tx)+(bonus_corse*bonus_corse_tx)) -> 8000 | I141: 0 | J141: 0 | K141: L.EE
A142: ? | B142: Dispositif de vérification externe de l'affichage environnemental | D142: Nombre d'échantillons | G142: =IF(J142=0,"",IF(J142>=500,"Oui","Non")) ->  | H142: =3000*(1+(bonus_om*bonus_om_tx)+(bonus_corse*bonus_corse_tx)) -> 3000 | I142: 0 | J142: 0 | K142: L.EE
A143: ? | B143: Mise en œuvre de l’Ecolabel Européen sur les produits ou les services de l'entreprise | D143: Oui/Non | G143: =IF(J143=0,"","Oui") ->  | H143: =12000*(1+(bonus_om*bonus_om_tx)+(bonus_corse*bonus_corse_tx)) -> 12000 | I143: =IF(OR(I5=1,I23=1),1,0) -> 0 | J143: 0 | K143: L.EE
A144: ? | B144: Certification écolabel européen de produits ou service | D144: Nombre de produits et services concernés | G144: =IF(J144=0,"",IF(J144>=500,"Oui","Non")) ->  | H144: =2000*(1+(bonus_om*bonus_om_tx)+(bonus_corse*bonus_corse_tx)) -> 2000 | I144: =IFERROR(IF(OR('1-J''identifie mon entreprise'!$G$93=1,naf_exclu=1,AND(OR(code_naf="8413Z",code_naf="8411Z"),$I$4=0,$I$21=0),partenaire_sci="Oui",AND(aff_sci=1,aff_sci2=1,partenaire_sci="Non")),0,IF(micro_entreprise<>"Non",IF(OR($I$5=1,$I$21=1),1,0),1)),0) -> 0 | J144: 0 | K144: L.EE
A145: ? | B145: Accompagnement à la labellisation "Numérique responsable" | D145: Oui/Non | G145: =IF(J145=0,"","Oui") ->  | H145: =5000*(1+(bonus_om*bonus_om_tx)+(bonus_corse*bonus_corse_tx)) -> 5000 | I145: =IFERROR(IF(OR(naf_section="Section A",'1-J''identifie mon entreprise'!$G$93=1,naf_exclu=1,AND(OR(code_naf="8413Z",code_naf="8411Z"),$I$4=0,$I$21=0),partenaire_sci="Oui",AND(aff_sci=1,aff_sci2=1,partenaire_sci="Non")),0,IF(micro_entreprise<>"Non",IF(OR($I$5=1,$I$21=1),1,0),1)),0) -> 0 | J145: 0 | K145: L.EE
I146: =IF(I117=1,1,IF(AND(heberg=0,resto=0),0,IFERROR(IF(OR('1-J''identifie mon entreprise'!$G$93=1,naf_exclu=1,AND(OR(code_naf="8413Z",code_naf="8411Z"),$I$4=0,$I$21=0),AND(VLOOKUP('1-J''identifie mon entreprise'!$C$24,LIST_GEO!$H:$I,2,FALSE)="CO - Corse",secteur_tourisme="Oui",partenaire="Non"),partenaire_sci="Oui",AND(aff_sci=1,aff_sci2=1,partenaire_sci="Non")),0,IF(micro_entreprise<>"Non",IF(OR($I$5=1,$I$21=1),1,0),1)),0))) -> 0
B147: Mes actions liées à l'isolation et la ventilation de mes serres chauffées maraîchères ou horticoles | I147: =IFERROR(IF('1-J''identifie mon entreprise'!$G$73="list_Minimis_agricole",IF(micro_entreprise="Oui",IF(OR(I5=1,I22=1),1,0),1),0),0) -> 0
B148: Nom de l'action | C148: Quantité | D148: Type d'unité | E148: Coût prévisionnel total HT | F148: Montant prévisionnel de l'aide ADEME | G148: Devis à joindre à la demande d'aide ? | I148: =I147 -> 0 | J148: =$I$147 -> 0
A149: ? | B149: Ecran thermique (horizontal au-dessus des cultures ou latéral) | D149: Surface d'écran thermique en m² | F149: =MIN(SUMPRODUCT(I149:I152,J149:J152),200000-'1-J''identifie mon entreprise'!G72) -> 0 | G149: =IF(J149=0,"","Oui") ->  | H149: 3.5 | I149: 0 | J149: =ROUND(IF(E149="",0,MIN(C149*H149*I149,40%*E149)),2) -> 0 | K149: I.FF
A150: ? | B150: Isolation des parois latérales | D150: Surface de paroi isolante en m² | H150: 2 | I150: 0 | J150: =ROUND(IF(E150="",0,MIN(C150*H150*I150,40%*E150)),2) -> 0 | K150: I.FF
A151: ? | B151: Système de déshumidification avec air extérieur | D151: Surface de serres équipées en m² | H151: 8 | I151: 0 | J151: =ROUND(IF(E151="",0,MIN(C151*H151*I151,40%*E151)),2) -> 0 | K151: I.FF
A152: ? | B152: Déshumidificateur thermodynamique pour serres | D152: Surface de serres équipées en m² | H152: 4 | I152: 0 | J152: =ROUND(IF(E152="",0,MIN(C152*H152*I152,40%*E152)),2) -> 0 | K152: I.FF
I153: 0
B154: PLAN DE FINANCEMENT DE MES ACTIONS | I154: 0
I155: 0
B156: Type | C156: Mode de financement | F156: Montant (HTR) | I156: 0
B157: Aides publiques | C157: Aide ADEME maximum avant analyse | F157: =F180 -> 0 | I157: 0
C158: Région | I158: 0
C159: Etat | I159: 0
C160: FEDER | I160: 0
C161: A préciser | I161: 0
C162: A préciser | I162: 0
C163: A préciser | I163: 0
C164: Sous-total des aides publiques | F164: =SUM(F157:G163) -> 0 | I164: 0
B165: Aides privées | C165: Certificats d'économie d'énergie | I165: 0
C166: A préciser | I166: 0
C167: A préciser | I167: 0
C168: Sous-total des aides privées | F168: =SUM(F165:G167) -> 0 | I168: 0
B169: Auto-financement | C169: Fonds propres | F169: =F174-F164-F168-F170-F171-F172 -> 0 | I169: 0
C170: Emprunt | I170: 0
C171: Crédit-Bail | I171: 0
C172: A préciser | I172: 0
C173: Sous-total de l'auto-financement | F173: =SUM(F169:G172) -> 0 | I173: 0
B174: TOTAL DE L'OPERATION | F174: =F178 -> 0 | I174: 0
I175: 0
B176: SYNTHESE | I176: =I178 -> 0
I177: =I178 -> 0 | K177: =SUMPRODUCT(F6:F16,I6:I16)+SUMPRODUCT(F23:F38,I23:I38)+(F48*MAX(I47,I49))+(F58*I57)+(F66*I65)+(I97*F98)+(F118*I117)+(F136*I136)+(F140*I139)+SUMPRODUCT(F53:F54,I53:I54)+(F135*I135) -> 0 | L177: =K177*L178 -> 0
E178: Le coût total estimé de mon opération est de : | F178: =SUMPRODUCT(E23:E38,I23:I38)+SUMPRODUCT(E6:E19,I6:I19)+SUMPRODUCT(E118:E136,I118:I136)+SUMPRODUCT(E140:E145,I140:I145)+SUMPRODUCT(E98:E114,I98:I114)+SUMPRODUCT(E87:E94,I87:I94)+SUMPRODUCT(E74:E82,I74:I82)+SUMPRODUCT(E66:E70,I66:I70)+SUMPRODUCT(E58:E62,I58:I62)+SUMPRODUCT(E48:E54,I48:I54)+SUMPRODUCT(E43:E44,I43:I44)+SUMPRODUCT(E149:E152,I149:I152) -> 0 | I178: =IF(OR(SUM($I$4:$I$146)=0,'1-J''identifie mon entreprise'!$G$93=1,naf_exclu=1),0,IF(micro_entreprise<>"Non",IF(OR($I$5=1,$I$21=1),1,0),1)) -> 0 | L178: =IFERROR(MIN(1,'1-J''identifie mon entreprise'!E111/'2-Je choisis mes actions'!K177),0) -> 0
E179: Le montant total de l'aide demandée à l'ADEME : | F179: =SUMPRODUCT(F6:F19,I6:I19)+SUMPRODUCT(I23:I36,F23:F36)+I41*F43+MAX(I47,I49)*F48+F53*I53+F54*I54+I57*F58+I65*F66+F74*I73+SUMPRODUCT(F87:F94,I87:I94)+F98*I97+I117*(F118+F135+F136)+SUMPRODUCT(I140:I145,F140:F145)+F149*I148 -> 0 | I179: =IF(OR(SUM($I$4:$I$146)=0,'1-J''identifie mon entreprise'!$G$93=1,naf_exclu=1),0,IF(micro_entreprise<>"Non",IF(OR($I$5=1,$I$21=1),1,0),1)) -> 0
E180: Le montant maximum prévisionnel de l'aide ADEME (avant analyse) est de : | F180: =IFERROR(ROUNDDOWN(IF(F179<IF(AND(I5+I22>0,F74*I73+J48>0),1,IF(AND(I121=1,C121>0),2500,IF(AND(OR(ZONE_ZFE="Oui",ZONE_ZFE_IDF="Oui"),F98>0),3000,IF(F98>0,4000,IF(VLOOKUP(IF(partenaire_sci="Oui",'1-J''identifie mon entreprise'!$D$30,'1-J''identifie mon entreprise'!$C$24),LIST_GEO!$H:$I,2,FALSE)="MA - Martinique",5000,5000))))),0,MIN('1-J''identifie mon entreprise'!E111+G183+G184,F179,200000)),2),0) -> 0 | I180: =IF(OR(SUM($I$4:$I$146)=0,'1-J''identifie mon entreprise'!$G$93=1,naf_exclu=1),0,IF(micro_entreprise<>"Non",IF(OR($I$5=1,$I$21=1),1,0),1)) -> 0 | L180: =IFERROR(MIN(100%,F180/F179),0) -> 0
B181: Pour information, cette aide maximum serait répartie sur les régimes suivants : | E181: Règlement de minimis : | F181: =ROUND(IF(G181=0,0,F180-SUM(F182:F184)),2) -> 0 | G181: =ROUND((SUMPRODUCT(F6:F16,I6:I16)+SUMPRODUCT(F23:F36,I23:I36)+F43*I41+(F48+F53+F54)*MAX(I47,I49)+F58*I57+F66*I65+F98*I97+(F118+F135+F136)*I117+F140*I139)*L178,2) -> 0 | I181: =IF(OR(SUM($I$4:$I$146)=0,'1-J''identifie mon entreprise'!$G$93=1,naf_exclu=1),0,IF(micro_entreprise<>"Non",IF(OR($I$5=1,$I$21=1),1,0),1)) -> 0 | L181: =IFERROR((F180-L177)/SUM(F183:F184),0) -> 0
E182: Règlement de minimis agricole : | F182: 0 | G182: 0 | I182: =IF('1-J''identifie mon entreprise'!G73<>"list_Minimis_agricole",0,IF(OR(SUM($I$4:$I$146)=0,'1-J''identifie mon entreprise'!$G$93=1,naf_exclu=1),0,IF(micro_entreprise<>"Non",IF(OR($I$5=1,$I$21=1),1,0),1))) -> 0
E183: Article 41 du RGEC : | F183: =ROUND(IF(G183=0,0,IF(G181+G182>0.01,G183*F180/SUM(G181:G184),F180-F184)),2) -> 0 | G183: =SUMPRODUCT(F87:F94,I87:I94) -> 0 | I183: =IF(OR(SUM($I$4:$I$146)=0,'1-J''identifie mon entreprise'!$G$93=1,naf_exclu=1),0,IF(micro_entreprise<>"Non",IF(OR($I$5=1,$I$21=1),1,0),1)) -> 0
E184: Article 38 du RGEC : | F184: =ROUND(IF(G184=0,0,G184*F180/SUM(G181:G184)),2) -> 0 | G184: =F74*I73+F149*I148 -> 0 | I184: =IF(OR(SUM($I$4:$I$146)=0,'1-J''identifie mon entreprise'!$G$93=1,naf_exclu=1),0,IF(micro_entreprise<>"Non",IF(OR($I$5=1,$I$21=1),1,0),1)) -> 0
I185: =IF(OR(SUM($I$4:$I$146)=0,'1-J''identifie mon entreprise'!$G$93=1,naf_exclu=1),0,IF(micro_entreprise<>"Non",IF(OR($I$5=1,$I$21=1),1,0),1)) -> 0
B186: Les micro-entreprises ne sont pas éligibles à ce programme. | I186: =IF(OR(naf_section="Section A",naf_exclu=1),0,IF(micro_entreprise<>"Non",IF(OR($I$5=1,$I$21=1),0,1),0)) -> 1
B187: =IFERROR(IF(AND(VLOOKUP('1-J''identifie mon entreprise'!$C$24,LIST_GEO!$H:$I,2,FALSE)="CO - Corse",secteur_tourisme="Oui",partenaire="Non"),"Rapprochez-vous d'un partenaire Fonds Tourisme Durable pour voir les actions éligibles.","Votre secteur d'activité n'est en principe pas éligibles à ce programme."),"Votre secteur d'activité n'est en principe pas éligibles à ce programme.") -> Votre secteur d'activité n'est en principe pas éligibles à ce programme. | I187: =IF(OR(SUM($I$4:$I$146)=0,naf_exclu=1),1,0) -> 1
B188: Aucune aide ne peut être accordée aux entreprises en difficulté avant le 31/12/2019. | I188: =IF('1-J''identifie mon entreprise'!G93=1,1,0) -> 0
B189: Si vous avez une activité supplémentaire d’hébergement/restauration, vous pouvez contactez la direction régionale de l'ADEME. | I189: 0
B190: https://www.ademe.fr/lademe/presentation-lademe/liste-implantations-lademe | I190: 0

Sheet 3-Synthese et finalisation
B11: Tremplin pour la transition écologique des PME
B13: SYNTHESE
B16: Coût total estimé du projet : | L16: ='2-Je choisis mes actions'!F178 -> 0 | O16: 1
C17: ='2-Je choisis mes actions'!B6 -> Modèle d'affaires Restauration durable | L17: ='2-Je choisis mes actions'!E6 -> 0 | M17: =IF(P17="Oui","Devis à joindre","Pas besoin de devis") -> Pas besoin de devis | O17: =IF('2-Je choisis mes actions'!I6=0,0,IF(L17>0,1,0)) -> 0 | P17: ='2-Je choisis mes actions'!G6 -> 
C18: Un consultant peut vous accompagner dans l’établissement d’un nouveau modèle d’affaires qui visera à mettre en parallèle les évolutions envisageables vers la restauration durable et son impact sur les coûts et la réponse à l’évolution de la demande. Le prestataire évaluera les modalités de mise en œuvre et notamment l’impact financier (investissements et revenus attendus) d'une évolution de l’activité de restauration vers le déploiement de tout ou partie des volets suivants : - Carte de restauration plus durable : équilibre et diversité alimentaire (menus bas carbone, végétalisation des menus…), origine des approvisionnements ; - Circuits courts de proximité et valorisation des produits de qualité, locaux et de saison ; - Nouvelles pratiques culinaires et de conception des menus (modes de cuisson, choix des liaisons et fonds de sauce, mesure des ingrédients …), augmentation du « fait maison » - Pratiques de lutte contre le gaspillage alimentaire, gestion des pertes alimentaires en cuisine et en salle - Maîtrise des consommations de ressources (énergie, eau) et contrats d'énergie verte ; - Mobilités douces des clients ; - Valorisation du patrimoine naturel (ex : refuge LPO). - Définition d’une politique d’achat responsable Le prestataire remettra le rapport final à l’établissement, qui le tiendra à disposition de l’ADEME. | O18: =O17 -> 0
C19: ='2-Je choisis mes actions'!B7 -> Formation à la cuisine durable et aux éco-gestes en restauration | L19: ='2-Je choisis mes actions'!E7 -> 0 | M19: Pas besoin de devis | O19: =IF('2-Je choisis mes actions'!I7=0,0,IF(L19>0,1,0)) -> 0 | P19: ='2-Je choisis mes actions'!G7 -> 
C20: Cette action vise à encourager la formation du personnel temporaire et permanent aux enjeux et techniques de l’alimentation durable et aux éco-gestes en restauration. Vous pouvez bénéficier d’une aide pour financer une formation courte pour un ou plusieurs salariés de l’entreprise sur les cuisines végétales ou alternatives, la lutte contre le gaspillage alimentaire, les éco-gestes en restauration, les enjeux environnementaux de l’alimentation, l’alimentation durable etc. La formation doit être dispensée par un organisme de formation habilité. Le bénéficiaire conservera les attestations de formation qu’il tiendra à disposition de l’ADEME. | O20: =O19 -> 0
C21: ='2-Je choisis mes actions'!B8 -> Communication - Supports/actions de communication valorisant la restauration durable | L21: ='2-Je choisis mes actions'!E8 -> 0 | M21: Pas besoin de devis | O21: =IF('2-Je choisis mes actions'!I8=0,0,IF(L21>0,1,0)) -> 0 | P21: ='2-Je choisis mes actions'!G8 -> 
C22: Cette ligne consiste à soutenir les actions de communication pérennes qui mettent en valeur la démarche durable du restaurant, les producteurs et fournisseurs locaux, ainsi que les écogestes dans le restaurant pour les salarié.e.s et pour les client.e.s : achat de supports de communication matériels ou numérique pérennes et/ou actions immatérielles à vocation pérenne. En activant cette ligne, le bénéficiaire s'engage à mettre en avant auprès des clients et des salariés l’alimentation durable, la lutte contre le gaspillage, les approvisionnements de proximité et circuits courts, les éco-gestes ou les engagements environnementaux. Vous pouvez bénéficier d’une aide pour : - Des achats de supports de communication matériels ou numériques pérennes : o L’achat de panneaux/supports en matériaux durables pour les menus du jour ; le renouvellement des cartes pour l’évolution de celle-ci en lien avec les engagements pris et la mise en valeur des approvisionnements locaux / sous labels, à l’exclusion des supports à usage unique. Les panneaux d’affichage électroniques ou écrans ne sont pas éligibles. o L’achat de tableaux/panneaux/supports d’affichage en matériaux biosourcés, naturels ou recyclables, ou supports imprimés à l’exclusion des supports à usage unique pour l’information des client.e.s sur la démarche de transition écologique du restaurant concernant : les actions mises en place sur le restaurant ; les caractéristiques des approvisionnements, notamment alimentaires (local, bio, autres labels…), la valorisation de producteurs partenaires ; le travail réalisé sur les menus et sur la lutte contre le gaspillage ; les éco-gestes au quotidien ; les démarches environnementales du restaurant. Les panneaux d’affichage électroniques ou écrans ne sont pas éligibles. - Les achats de prestations immatérielles : o La création ou l’adaptation de supports de communication imprimés ou numériques (prestation intellectuelle), y compris visuels, photos, stratégie de communication o L’adaptation du site internet ou des supports de communication numérique (réseaux sociaux, plates formes engagées sur la restauration durable) ; dans ce cas le bénéficiaire s'engagera à mettre en place un site éco-conçu et s’appuiera sur les recommandations de l'Institut du numérique responsable. Ne sont pas éligibles les prestations de référencement, recherche de mots-clés. o Référencement et/ou abonnement sur des plateformes de valorisation des restaurants engagés dans des démarches de transition écologique. | O22: =O21 -> 0
C23: ='2-Je choisis mes actions'!B9 -> Evolution des approvisionnements et des menus | L23: ='2-Je choisis mes actions'!E9 -> 0 | M23: Pas besoin de devis | O23: =IF('2-Je choisis mes actions'!I9=0,0,IF(L23>0,1,0)) -> 0 | P23: ='2-Je choisis mes actions'!G9 -> 
C24: Cette action vise à faire évoluer les approvisionnements et les menus, en favorisant ; - La relocalisation du circuit d’approvisionnement - L’augmentation et la mise en œuvre du végétal, les produits de qualité et/ou durables, - L’ancrage dans le territoire, - Le fait-maison via l’usage de produits bruts - La conservation des produits frais. Vous pouvez bénéficier d’une aide pour tout matériel de cuisine ou équipement contribuant à l’objectif, par exemple : - Équipements permettant de travailler des produits bruts, végétaux tels que éplucheuses, essoreuses, robots (yaourtière, centrifugeuse, presse-agrume, sorbetière…), aménagement spécifique pour une légumerie etc… - Équipements nécessaires à la relocalisation des approvisionnements, par exemple emballages navettes avec producteurs locaux - Équipements permettant de faire de la conservation non énergivore à partir de produits locaux/de saison, par exemple : conserves, fermentation, garde-manger etc… - Extension, conversion, création d’un potager et/ou verger selon les principes de l’agriculture biologique (pas de certification demandée). Le restaurateur ne pourra pas afficher « produits AB » s’il n’est pas certifié. Les serres sont éligibles à condition de ne pas être chauffées. | O24: =O23 -> 0
C25: ='2-Je choisis mes actions'!B10 -> Lutte contre le gaspillage alimentaire | L25: ='2-Je choisis mes actions'!E10 -> 0 | M25: Pas besoin de devis | O25: =IF('2-Je choisis mes actions'!I10=0,0,IF(L25>0,1,0)) -> 0 | P25: ='2-Je choisis mes actions'!G10 -> 
C26: Cette action vise à suivre et réduire le gaspillage alimentaire en cuisine et en salle. Vous pouvez bénéficier d’une aide pour tout matériel ou équipement contribuant à l’objectif, par exemple : - Matériel pour limiter contre le gaspillage en cuisine et assurer une meilleure conservation : thermomètre ou autre système de vérification de la température des aliments, étiqueteuses, déshydrateurs alimentaires, machines sous vide (financement de sacs réutilisables uniquement dans le cas de l’achat d’une machine), stérilisateurs et bocaux associés, pasteurisateurs, autoclaves, garde-manger (de préférence en bois naturel) … - Matériel pour limiter le gaspillage en salle : vaisselle durable adaptable à l'appétit des convives (petites assiettes et grandes assiettes / non éligible dans le cadre d’une création – un seul lot de petites assiettes est éligible par structure), contenants durables pour permettre les dons (à l'exclusion des contenants en plastique), balance pour tarification différenciée au poids… - Matériel pour suivre le gaspillage alimentaire : matériel de pesée des déchets y compris balances connectées, licence de logiciel de suivi des pesées du gaspillage alimentaire, table de tri… A noter, tous les équipements de froid sont financés dans la Rubrique « Mes actions liées à l'efficacité énergétique des équipements de froid commercial » Ne sont pas éligibles : les fours vapeur | O26: =O25 -> 0
C27: ='2-Je choisis mes actions'!B11 -> Prévention des déchets non alimentaires en restauration | L27: ='2-Je choisis mes actions'!E11 -> 0 | M27: Pas besoin de devis | O27: =IF('2-Je choisis mes actions'!I11=0,0,IF(L27>0,1,0)) -> 0 | P27: ='2-Je choisis mes actions'!G11 -> 
C28: Cette action vise à réduire les déchets non alimentaires, au sein du restaurant / pour l’activité de traiteur : - Réduction des déchets d’emballages - Suppression des produits jetables ou en dose individuelle - Équipements permettant la réduction voire la suppression de la consommation de produits non alimentaires, notamment ceux nécessaires au nettoyage, entretien, lavage Vous pouvez bénéficier d’une aide pour tout matériel ou équipement (hors consommables) contribuant à l’objectif : par exemple, matériel navette fournisseurs, contenants pour stockage de produits vrac, contenants durables pour substitution des emballages individuels (café, thé, sucre, sauces...), les machines à café en grains (si substitution d'une machine à dosette); achat vaisselle/couverts/serviettes/nappes/dessous de table pour substituer du jetable ; achat de lavettes et équipements de protection (charlottes, gants, masques, ..) réutilisables en substitution de jetable, équipements permettant de supprimer l’utilisation de produits dangereux, mise en place de fontaines à eau ou de filtre à eau en substitution des bouteilles plastiques... La location est éligible uniquement si option d’achat (Les coûts éligibles sont sur la totalité de la durée de la location-achat). Le tri et la gestion des bio déchets sont éligibles sur les lignes Tremplin / Economie circulaire. L'acquisition d’emballage ou de contenants réemployables en substitution d'emballages ou contenants en plastique à usage unique (par ex : achat de contenants consignés pour vente à emporter) sont éligibles sur les lignes Tremplin / Economie circulaire. | O28: =O27 -> 0
C29: ='2-Je choisis mes actions'!B12 -> Energie - Economie d’énergie en cuisine (cuisson, froid) | L29: ='2-Je choisis mes actions'!E12 -> 0 | M29: Pas besoin de devis | O29: =IF('2-Je choisis mes actions'!I12=0,0,IF(L29>0,1,0)) -> 0 | P29: ='2-Je choisis mes actions'!G12 -> 
C30: Cette action vise à réaliser des économies d'énergie en cuisine sur les petits équipements de cuisson, lavage et séchage du linge. A noter que le lavage de la vaisselle est concerné par la ligne Eau-Economie d’eau en cuisine. Vous pouvez bénéficier d’une aide pour tout matériel ou équipement contribuant à : 1/ réduire la consommation d’énergie liée à la cuisson : seuls sont financés les petits équipements non consommateurs d'énergie (pas les gros équipements consommateurs d'énergie). Par exemple : achat de matériel de cuisson permettant des économies (thermostats/thermomètres), équipements permettant de réduire la consommation des appareils de cuisson existants (ex : détecteur de marmite, …), couvercles, équipements pour une cuisson basse consommation (marmite norvégienne ...), fours solaires et fours à bois … A noter : - Fours et appareils de cuisson consommateurs d’énergie non éligibles, sauf les plaques à induction (voir point 3/ ci-dessous) - L’isolation des meubles réfrigérés et chambres froides et le remplacement d’équipements (armoires frigorifiques, fluides par des matériels avec des fluides émettant moins de gaz à effet de serre), sont visés par d’autres lignes de la rubrique « Mes actions liées à l’efficacité énergétique des équipements de froid commercial ». 2/ réduire la consommation d’énergie liée au séchage du linge nécessaire à la restauration tels que nappes, serviettes, textiles de cuisine … La taille des équipements sera évaluée pour garantir un taux de remplissage optimisé pour chaque cycle. L’aide totale sur cette ligne est au maximum de 50 000 €. Critères techniques à respecter pour les sèche-linge : - Seuls sont éligibles les sèche-linge professionnels avec pompe à chaleur, - Energie de séchage inférieure à 0,3 kWh/kg linge pour un cycle de séchage max de 90 min. - Pour exemple, TopTen référence ce type des équipements éligibles : https://www.guidetopten.fr/pro 3/ Remplacement de plaques électriques en fonte par des plaques à induction | O30: =O29 -> 0
C31: ='2-Je choisis mes actions'!B13 -> Energie - Confort d'été et d’hiver liés à l’activité de restauration | L31: ='2-Je choisis mes actions'!E13 -> 0 | M31: =IF(P31="Oui","Devis à joindre","Pas besoin de devis") -> Pas besoin de devis | O31: =IF('2-Je choisis mes actions'!I13=0,0,IF(L31>0,1,0)) -> 0 | P31: ='2-Je choisis mes actions'!G13 -> 
C32: 1/ Concernant le confort d’hiver : les actions visent à améliorer le confort thermique à l’intérieur du restaurant et pour la consommation alimentaire en extérieur. CONFORT EXTERIEUR : cette aide exclut tout dispositif de chauffage consommant de l’énergie. Vous pouvez bénéficier d’une aide pour : achat de couvertures, aménagements brise vent etc…. POUR LE CONFORT INTERIEUR : Pour maintenir la consommation d'énergie à un niveau raisonnable, il est nécessaire de réguler les températures en fonction des besoins réels et de l'occupation ou non des différentes zones du restaurant. Il est notamment très important de posséder un dispositif de régulation thermique. Vous pouvez bénéficier d’une aide pour financer des robinets thermostatiques de radiateur, un dispositif de détection d'ouverture de fenêtre permettant d’interrompre le chauffage (et la climatisation si elle est présente), un programmateur horaire, ou un système de gestion par zone des consignes des radiateurs. En activant cette ligne, le bénéficiaire s'engage sur des consignes de température selon leur occupation : 20°C à 22°C si restaurant occupé ; 16°C à 18°C si restaurant inoccupé pendant une courte période ; maintien à 12°C-14°C si inoccupé pendant une longue période. 2/ Concernant le confort d’été : Cette action vise à la fois à maîtriser les consommations d’énergie liées à la climatisation (en été), et à améliorer le confort thermique sur ces saisons, dans le cadre de l’activité de restauration (bâtiment et extérieurs dédiés à l’activité de restauration). Les actions ont pour objectif de limiter voire supprimer l’usage de la climatisation par : - Amélioration de l’ombrage et la préservation du frais à l'extérieur en été ; - Réduction des apports de chaleur à l’intérieur en agissant sur la protection des ouvertures et l’apport de frais par la végétalisation et la désimperméabilisation (suppression des espaces étanches par des espaces perméables végétalisées) L’ensemble de ces actions ne vise pas le remplacement d’équipements déjà existants. L’aide est possible pour un premier achat ou la rénovation et réparation d’équipements existants. Sont éligibles : - Protection des ouvrants : achat et installation de volets, stores pare-soleil intérieurs ou extérieurs, films solaires sur les ouvrants, rideaux occultants thermiques, volets roulants manuels ou solaires, brise soleil, moustiquaires … (pas de remplacement d’équipements déjà existants mais rénovation ou réparation possible) - Création de rafraîchissement par ombrage et évapotranspiration des plantations pour espaces extérieurs de restauration et ombrage des vitrages et murs = uniquement par végétalisation : plantation, pergolas en bois naturel avec ombrage végétal - Végétalisation (plantations endogènes adaptées aux futures conditions climatiques et cohérentes avec la biodiversité locale : choisir des plantes peu gourmandes en eau et privilégier le paillage) : étude climatique et paysagère, préparation et plantation des murs végétaux - Travaux de désimperméabilisation - Plantations adaptées aux conditions climatiques Non éligibles : rideaux, voilages, ombrières, changement de menuiseries en double vitrage | O32: =O31 -> 0
C33: ='2-Je choisis mes actions'!B14 -> Ressources - Dispositifs d'économie d'eau en cuisine | L33: ='2-Je choisis mes actions'!E14 -> 0 | M33: =IF(P33="Oui","Devis à joindre","Pas besoin de devis") -> Pas besoin de devis | O33: =IF('2-Je choisis mes actions'!I14=0,0,IF(L33>0,1,0)) -> 0 | P33: ='2-Je choisis mes actions'!G14 -> 
C34: Cette action vise à réaliser des économies de matières premières en particulier d'eau en cuisine pour le lavage et la préparation des repas. Cette action concerne les points d'eau des cuisines et uniquement les équipements permettant des économies d’eau. Vous pouvez bénéficier d’une aide pour : - Robinetterie : Les économiseurs d'eau, les mitigeurs d’eau … - Les équipements pour récupérer ou réutiliser l’eau - Les équipements de lavage économes en eau - Equipements de suivi des consommations d’eau L’auto-installation des équipements économiseurs d’eau est autorisée. Non éligibles : les bacs de plonge, lave-vaisselle | O34: =O33 -> 0
C35: ='2-Je choisis mes actions'!B15 -> Ressources - Dispositifs d'économie d'eau dans les sanitaires des restaurants / de l’activité de restauration | L35: ='2-Je choisis mes actions'!E15 -> 0 | M35: =IF(P35="Oui","Devis à joindre","Pas besoin de devis") -> Pas besoin de devis | O35: =IF('2-Je choisis mes actions'!I15=0,0,IF(L35>0,1,0)) -> 0 | P35: ='2-Je choisis mes actions'!G15 -> 
C36: Cette action vise à réaliser des économies d'eau dans les sanitaires des restaurants / de l’activité de restauration (sanitaires du personnel et/ou des convives). Vous pouvez bénéficier d’une aide uniquement pour les équipements permettant d’économiser l’eau : - Equipements des lavabos : Les économiseurs d'eau, les robinets mitigeurs pour les lavabos : - Equipements pour les WC : Les chasses d’eau à double commande et/ou plaquette de réservoir pour les toilettes. - Urinoirs avec écoulement déclenché en fonction de la présence, urinoirs sans eau - Equipements de suivi des consommations d’eau - Les toilettes sèches, qui ne requièrent aucune utilisation d'eau. Plusieurs systèmes existent (à compost, à séparation etc.) pouvant convenir aux différentes contraintes d'usage ou de bâtiment. Avant installation, le bénéficiaire se renseignera auprès des compétences locales pour connaître la règlementation inhérente aux départements en matière de toilettes sèches. L’auto-installation des équipements économiseurs d’eau est autorisée. Le bénéficiaire s’engage à mettre en place simultanément une information de ses clients aux éco-gestes et aux économies d’eau. | O36: =O35 -> 0
C37: ='2-Je choisis mes actions'!B16 -> Ressources - dispositifs d’économie d’eau pour les espaces extérieurs et potagers liés à l'activité de restauration | L37: ='2-Je choisis mes actions'!E16 -> 0 | M37: =IF(P37="Oui","Devis à joindre","Pas besoin de devis") -> Pas besoin de devis | O37: =IF('2-Je choisis mes actions'!I16=0,0,IF(L37>0,1,0)) -> 0 | P37: ='2-Je choisis mes actions'!G16 -> 
C38: Cette action vise à réaliser des économies de matières premières en particulier d'eau sur les espaces verts directement liés à l’activité de restauration : espaces extérieurs de restauration (jardin, terrasse) et potager/verger lié à l’activité de restauration (herbes aromatiques, production de fruits/légumes utilisés en cuisine). Vous pouvez bénéficier d’une aide pour les dispositifs d’arrosage économes d’arrosage (goutte à goutte etc.), les dispositifs limitant l’évaporation (paillage, …), la culture d’espèces peu gourmandes en eau, adaptées au climat local, le raccordement à un puits existant, récupérateur d’eau de pluie de moins de 10 m3 (au-delà de 10 m3, une aide Tremplin générique est proposée), système de phytoépuration… En bénéficiant de cette aide, le bénéficiaire s’engage à cultiver/entretenir en priorité des espèces peu gourmandes en eau, adaptées au climat local, privilégier le paillage, et à privilégier les sources d’eau non issues du réseau d’eau potable (par exemple récupération des eaux de pluie). L’auto-installation des équipements économiseurs d’eau est autorisée. | O38: =O37 -> 0
C39: ='2-Je choisis mes actions'!B17 -> r12 | L39: ='2-Je choisis mes actions'!E17 -> 0 | M39: =IF(P39="Oui","Devis à joindre","Pas besoin de devis") -> Pas besoin de devis | O39: =IF('2-Je choisis mes actions'!I17=0,0,IF(L39>0,1,0)) -> 0 | P39: ='2-Je choisis mes actions'!G17 -> 0
C40: ='2-Je choisis mes actions'!B18 -> r13 | L40: ='2-Je choisis mes actions'!E18 -> 0 | M40: =IF(P40="Oui","Devis à joindre","Pas besoin de devis") -> Pas besoin de devis | O40: =IF('2-Je choisis mes actions'!I18=0,0,IF(L40>0,1,0)) -> 0 | P40: ='2-Je choisis mes actions'!G18 -> 0
C41: ='2-Je choisis mes actions'!B19 -> r14 | L41: ='2-Je choisis mes actions'!E19 -> 0 | M41: =IF(P41="Oui","Devis à joindre","Pas besoin de devis") -> Pas besoin de devis | O41: =IF('2-Je choisis mes actions'!I19=0,0,IF(L41>0,1,0)) -> 0 | P41: ='2-Je choisis mes actions'!G19 -> 0
C42: ='2-Je choisis mes actions'!B149 -> Ecran thermique (horizontal au-dessus des cultures ou latéral) | L42: ='2-Je choisis mes actions'!E149 -> 0 | M42: =IF(P42="Oui","Devis à joindre","Pas besoin de devis") -> Pas besoin de devis | O42: =IF('2-Je choisis mes actions'!I149=0,0,IF(L42>0,1,0)) -> 0 | P42: ='2-Je choisis mes actions'!G149 -> 
C43: Opération respectant les conditions d'une des fiches CEE suivantes : - AGRI-EQ-102 (double écran thermique), - AGRI-EQ-104 (écrans thermiques latéraux) | O43: =O42 -> 0
C44: ='2-Je choisis mes actions'!B150 -> Isolation des parois latérales | L44: ='2-Je choisis mes actions'!E150 -> 0 | M44: =IF(P44="Oui","Devis à joindre","Pas besoin de devis") -> Pas besoin de devis | O44: =IF('2-Je choisis mes actions'!I150=0,0,IF(L44>0,1,0)) -> 0 | P44: ='2-Je choisis mes actions'!G150 -> 
C45: Opération respectant les conditions de la fiche AGRI-EQ-107 (isolation des parois de serre) | O45: =O44 -> 0
C46: ='2-Je choisis mes actions'!B151 -> Système de déshumidification avec air extérieur | L46: ='2-Je choisis mes actions'!E151 -> 0 | M46: =IF(P46="Oui","Devis à joindre","Pas besoin de devis") -> Pas besoin de devis | O46: =IF('2-Je choisis mes actions'!I151=0,0,IF(L46>0,1,0)) -> 0 | P46: ='2-Je choisis mes actions'!G151 -> 
C47: Opération respectant les conditions de la fiche AGRI-TH-119 (système de déshumidification avec air extérieur) | O47: =O46 -> 0
C48: ='2-Je choisis mes actions'!B152 -> Déshumidificateur thermodynamique pour serres | L48: ='2-Je choisis mes actions'!E152 -> 0 | M48: =IF(P48="Oui","Devis à joindre","Pas besoin de devis") -> Pas besoin de devis | O48: =IF('2-Je choisis mes actions'!I152=0,0,IF(L48>0,1,0)) -> 0 | P48: ='2-Je choisis mes actions'!G152 -> 
C49: Opération respectant les conditions de la fiche AGRI-TH-117 (déshumidificateur thermodynamique pour serres) | O49: =O48 -> 0
C50: ='2-Je choisis mes actions'!B23 -> Modèle d'affaires Tourisme durable Hébergement touristique | L50: ='2-Je choisis mes actions'!E23 -> 0 | M50: =IF(P50="Oui","Devis à joindre","Pas besoin de devis") -> Pas besoin de devis | O50: =IF('2-Je choisis mes actions'!I23=0,0,IF(L50>0,1,0)) -> 0 | P50: ='2-Je choisis mes actions'!G23 -> 
C51: Un consultant peut vous accompagner dans l’établissement d’un nouveau modèle d’affaires qui visera à mettre en parallèle les évolutions envisageables vers la transition écologique et son impact sur les coûts et la réponse à l’évolution de la demande. Le prestataire évaluera les modalités de mise en œuvre et notamment l’impact financier (investissements et revenus attendus) d'une évolution vers tout ou partie des volets suivants : - Maîtrise des consommations et contrats d'énergie verte ; - Circuits courts et valorisation des produits de qualité, locaux et de saison pour le volet alimentaire; - Mobilités douces des clients ; - Valorisation du patrimoine naturel (ex.: refuge LPO) ; - Attractivité de nouveaux clients avec la proposition de nouveaux services dits durables (hébergements alternatifs, activités touristiques) - Mise en place d’une démarche de management environnementale comprenant notamment une charte des éco-gestes à respecter dans l’établissement en fonction des différents métiers et postes (eau, énergie, déchet) et un plan d’actions des engagements de transition écologique à venir Cette charte pourra être mise à disposition des nouveaux arrivants et des saisonniers sous forme de livret d’accueil - Définition d’une politique d’achat responsable Le prestataire remettra le rapport final à l’établissement, qui le tiendra à disposition de l’ADEME. | O51: =O50 -> 0
C52: ='2-Je choisis mes actions'!B24 -> Formation aux éco-gestes pour un hébergement touristique durable | L52: ='2-Je choisis mes actions'!E24 -> 0 | M52: Pas besoin de devis | O52: =IF('2-Je choisis mes actions'!I24=0,0,IF(L52>0,1,0)) -> 0 | P52: ='2-Je choisis mes actions'!G24 -> 
C53: Cette action a pour objectif de fournir une formation sur les enjeux environnementaux d’un hébergement touristique ou une formation courte sur les éco-gestes que les salariés peuvent mettre en place en lien avec l’activité d’hébergement pour le nettoyage, la qualité de l'air intérieur, la sensibilisation des clients, l’utilisation de l’eau ou l’énergie etc. La formation doit être dispensée par un organisme de formation habilité. Le bénéficiaire conservera les attestations de formation qu’il tiendra à disposition de l’ADEME. Idéalement, cela doit être doublé de la mise en place d’une charte « éco-geste » personnalisée à l’établissement qui sera mise à disposition via un livret d’accueil de tous les nouveaux arrivants ainsi que des saisonniers qui ne pourraient pas bénéficier d’une formation systématique. | O53: =O52 -> 0
C54: ='2-Je choisis mes actions'!B25 -> Communication - Supports de communication valorisant l’hébergement touristique durable | L54: ='2-Je choisis mes actions'!E25 -> 0 | M54: Pas besoin de devis | O54: =IF('2-Je choisis mes actions'!I25=0,0,IF(L54>0,1,0)) -> 0 | P54: ='2-Je choisis mes actions'!G25 -> 
C55: Cette ligne consiste à soutenir les actions de communication pérennes qui mettent en valeur la démarche durable de l’hébergement, les fournisseurs locaux, ainsi que les écogestes dans l’hébergement pour les salarié.e.s et pour les client.e.s : achat de supports de communication matériels ou numérique pérennes et/ou actions immatérielles à vocation pérenne. En activant cette ligne, le bénéficiaire s'engage à mettre en avant auprès des clients et des salariés : les éco-gestes ou les engagements environnementaux (économie d’eau ou d’énergie etc…) … Vous pouvez bénéficier d’une aide pour : - Des achats de supports de communication matériels pérennes : o L’achat de tableaux/panneaux/supports d’affichage en matériaux biosourcés, naturels ou recyclables, ou supports imprimés à l’exclusion des supports à usage unique pour l’information des client.e.s sur la démarche de transition écologique de l’hébergement concernant : les éco-gestes au quotidien, les démarches environnementales de l’hébergement, les certifications ou labélisations obtenus, la valorisation des mobilités alternatives ou douces au départ de l’établissement. Les panneaux d’affichage électroniques ou écrans ne sont pas éligibles. - Les achats de prestations immatérielles auprès d’une agence de communication : o La création de nudges (élément de communication qui participe au déploiement des éco-gestes via le des leviers décisionnels psychosociologiques comme le jeu ou le regard des autres) permettant de sensibiliser les clients aux éco-gestes à adopter au quotidien o La création ou l’adaptation de supports de communication imprimés ou numériques (prestation intellectuelle), y compris visuels, photos, vidéos, stratégie de communication o L’adaptation du site internet pour en faire un site éco-conçu s’appuiera sur les recommandations de l'Institut du numérique responsable ; o La mise à jour du site internet ou de la présence sur les réseaux sociaux, la présence sur les plateformes de réservation (mettant en avant les engagements des établissements dans la transition écologique) valorisant les engagements développement durable de l’hébergement touristique. Ne sont pas éligibles les prestations de référencement, recherche de mots-clés. En activant cette ligne, le bénéficiaire s'engage à mettre en avant auprès des clients et des salariés les éco-gestes, les circuits courts ou les engagements environnementaux. | O55: =O54 -> 0
C56: ='2-Je choisis mes actions'!B26 -> Energie - Accompagnement pour le financement de la rénovation globale | L56: ='2-Je choisis mes actions'!E26 -> 0 | M56: Pas besoin de devis | O56: =IF('2-Je choisis mes actions'!I26=0,0,IF(L56>0,1,0)) -> 0 | P56: ='2-Je choisis mes actions'!G26 -> 
C57: En complément de la ligne "MOE pour rénovation globale sur un objectif d'économie d'énergie", cette ligne permet d'établir une prestation auprès d'un bureau d'étude ou d'un consultant, avec pour objectif de : - Établir le plan de financement, en fonction des différents guichets nationaux, régionaux et locaux, indiquant clairement au bénéficiaire le montant des aides et le reste à charge ; - Préparer les dossiers de demande d'aide auprès de ces guichets avec les renseignements techniques demandés. | O57: =O56 -> 0
C58: ='2-Je choisis mes actions'!B27 -> Energie - Maîtrise des besoins de chauffage des chambres | L58: ='2-Je choisis mes actions'!E27 -> 0 | M58: Pas besoin de devis | O58: =IF('2-Je choisis mes actions'!I27=0,0,IF(L58>0,1,0)) -> 0 | P58: ='2-Je choisis mes actions'!G27 -> 
C59: Pour maintenir la consommation d'énergie à un niveau raisonnable, il est nécessaire de réguler les températures en fonction des besoins réels et de l'occupation ou non des différentes zones de l'hébergement. Il est notamment très important de posséder un dispositif de régulation thermique dans chaque chambre : la mise en place de systèmes de contrôle autonomes dans les chambres peut permettre d'économiser jusqu'à 30 % d'énergie en chauffage. Vous pouvez bénéficier d’une aide pour financer des robinets thermostatiques de radiateur, thermostat d’ambiance, un dispositif de détection d'ouverture de fenêtre permettant d’interrompre le chauffage seul ou combiné avec la climatisation, carte-coupe circuit couplée chauffage (climatisation) et éclairage ou dispositif de détection de présence, un programmateur horaire, ou un système de gestion par chambre des consignes des radiateurs. En activant cette ligne, le bénéficiaire s'engage sur des consignes de température par chambre (hors été) selon leur occupation : 20°C à 22°C si chambre occupée ; 16°C à 18°C si chambre inoccupée pendant une courte période ; maintien à 12°C-14°C si inoccupée pendant une longue période -> baisser la température du thermostat d’un degré permet de baisser la facture de 7% | O59: =O58 -> 0
C60: ='2-Je choisis mes actions'!B28 -> Energie - Sèche-linge professionnel de grande efficacité énergétique | L60: ='2-Je choisis mes actions'!E28 -> 0 | M60: Pas besoin de devis | O60: =IF('2-Je choisis mes actions'!I28=0,0,IF(L60>0,1,0)) -> 0 | P60: ='2-Je choisis mes actions'!G28 -> 
C61: Vous pouvez bénéficier d’une aide pour l’acquisition de sèche-linge professionnels qui permettent une économie d'énergie. Pour le calcul de l’aide, si le bénéficiaire investit dans plusieurs sèche-linge, le forfait sera calculé en ajoutant la capacité en kg de linge des différents équipements. La taille des équipements sera évaluée pour garantir un taux de remplissage optimisé pour chaque cycle. L’aide totale sur cette ligne est au maximum de 50 000 €. Critères techniques à respecter pour les sèche-linge : - Seuls sont éligibles les sèche-linge professionnels avec pompe à chaleur, - Energie de séchage inférieure à 0,3 kWh/kg linge pour un cycle de séchage max de 90 min. - Pour exemple, TopTen référence ce type des équipements éligibles : https://www.guidetopten.fr/pro | O61: =O60 -> 0
C62: ='2-Je choisis mes actions'!B29 -> Energie - Bâche de nuit pour piscine | L62: ='2-Je choisis mes actions'!E29 -> 0 | M62: Pas besoin de devis | O62: =IF('2-Je choisis mes actions'!I29=0,0,IF(L62>0,1,0)) -> 0 | P62: ='2-Je choisis mes actions'!G29 -> 
C63: La bâche de nuit pour piscine permet de limiter la déperdition calorifique d'au moins 20% en moyenne ainsi que l’évaporation de l’eau. Les bâches opaques permettent également de réduire la consommation de produits de traitement de l'eau en limitant la photosynthèse. Il est recommandé de privilégier les modules manuels (dérouleur), sinon seuls les modules avec alimentation solaire sont éligibles dans le forfait. Valable pour les piscines en extérieur comme en intérieur dans les bâtiments couverts Non éligible pour les jacuzzis / spas ou le remplacement d’une bâche existante Le forfait s’entend au global pour 1 établissement quelle que soit la taille de la piscine ou le nombre de piscine. | O63: =O62 -> 0
C64: ='2-Je choisis mes actions'!B30 -> Energie & Confort d'été - actions sur les ouvertures (fenêtres) | L64: ='2-Je choisis mes actions'!E30 -> 0 | M64: Pas besoin de devis | O64: =IF('2-Je choisis mes actions'!I30=0,0,IF(L64>0,1,0)) -> 0 | P64: ='2-Je choisis mes actions'!G30 -> 
C65: Cette action vise à améliorer le confort en été de votre hébergement touristique et à diminuer voire supprimer les besoins de climatisation, en agissant sur la protection des ouvertures (particulièrement celles exposées à l’ouest et au sud) L’ensemble de ces actions ne vise pas le remplacement d’équipements déjà existants. L’aide est possible pour un premier achat ou la rénovation et réparation d’équipements existants. Sont éligibles : Volets, volets roulants manuels ou solaires, stores pare-soleil intérieurs ou extérieurs, films solaires sur les ouvrants, rideaux occultants thermiques, brise soleil… Non éligibles : rideaux, voilages, ombrières, changement de menuiseries yc en double vitrage. | O65: =O64 -> 0
C66: ='2-Je choisis mes actions'!B31 -> Energie & Confort d'été - végétalisation | L66: ='2-Je choisis mes actions'!E31 -> 0 | M66: Pas besoin de devis | O66: =IF('2-Je choisis mes actions'!I31=0,0,IF(L66>0,1,0)) -> 0 | P66: ='2-Je choisis mes actions'!G31 -> 
C67: Cette action vise à réduire les apports de chaleur en été vers le bâtiment, en lien avec l’activité d’hébergement. En été, des murs chauds peuvent entraîner une élévation de la température intérieure des bâtiments, ce qui a pour effet d'augmenter la demande en climatisation et, par là même, la consommation d'énergie. Lorsque les murs sont recouverts de plantes et de terre humide, leur température peut être réduite, la baisse pouvant aller jusqu'à 10 °C, ce qui permet de réduire les besoins en climatisation à l'intérieur du bâtiment. Aux abords du bâtiment, les arbres et les sols jouent un rôle important de rafraîchissement, par ombrage et évapotranspiration. Vous pouvez bénéficier d’une aide pour: - Une étude climatique et paysagère (recensement des plantations présentes pour le remplacement par des espèces endémiques) - La préparation et la plantation pour murs végétaux ou toitures végétalisées ; - La désimperméabilisation (suppression des espaces étanches par des espaces perméables végétalisées) et les plantations adaptées aux futures conditions climatiques et cohérentes avec la biodiversité locale - Cultiver/entretenir en priorité des espèces peu gourmandes en eau et à pousse lente (permet de limiter également les biodéchets), adaptées au climat local, à privilégier le paillage, à privilégier les sources d’eau non issues du réseau d’eau potable (par exemple récupération des eaux de pluie), le cas échéant choisir un système d’arrosage économe en eau (goutte à goutte) - L’installation d’une pergola en bois naturel avec ombrage végétal permettant de végétaliser terrasses ou espaces extérieures pour apporter ombre et fraicheur / les parasols sont non éligibles. | O67: =O66 -> 0
C68: ='2-Je choisis mes actions'!B32 -> Ressources - Dispositifs d'économie d'eau pour les chambres et sanitaires liés à l’activité d’hébergement | L68: ='2-Je choisis mes actions'!E32 -> 0 | M68: Pas besoin de devis | O68: =IF('2-Je choisis mes actions'!I32=0,0,IF(L68>0,1,0)) -> 0 | P68: ='2-Je choisis mes actions'!G32 -> 
C69: Cette action concerne les économies d'eau dans les chambres et sanitaires. Les achats éligibles sont : POUR LES LAVABOS : - Les économiseurs d'eau : ce sont des petits équipements très simples et peu coûteux que l'on place sur l’embout du robinet, ils permettent de faire des économies d'eau en mélangeant sous pression, de l'air à l'eau du robinet. Le débit normal d'un robinet est d'environ de 12 litres par minute. En utilisant un économiseur d'eau, ce débit peut passer à environ 6 litres par minute (débit variable), sans perte de confort, grâce à l'ajout d'air par le régulateur de débit. Cette action est éligible pour les chambres dans lesquelles les lavabos n'étaient pas équipées de limiteur de débit. Exemple : régulateur de pression, bouchon mousseur, aérateur, débitmètre - Les robinets mitigeurs ou boutons poussoirs : ils sont également conseillés pour économiser l'eau, car ils permettent d'ouvrir ou de fermer l'eau en régulant en même temps le débit et la température. Ainsi, et contrairement aux robinets mélangeurs il n'y a pas besoin de faire couler l'eau jusqu'à obtenir la température et le débit souhaités. L'ouverture et la fermeture du robinet sont possibles en un seul geste, sans modifier la température de l'eau. - Dans les lavabos communs : des détecteurs de mouvement pour éviter les oublis de fermeture POUR LES DOUCHES : - Les mitigeurs thermostatiques maintiennent la température de l'eau de façon précise. Cette action est éligible pour les chambres dans lesquelles la robinetterie de douche est changée avec un gain en termes de consommation d'eau. - Les dispositifs permettant une arrivée rapide de l’eau chaude (moins de 30 secondes) afin d’éviter l’écoulement d’eau froide (ballon relais, boucle de circulation) - Les douches à recyclage d’eau continue en circuit fermé POUR LES TOILETTES : - Chasse d’eau à double commande ou double flux, plaquette de réservoir pour les toilettes. Les réservoirs des chasses d'eau classiques contiennent entre 15 litres (les plus anciens) et 6 litres (les plus récents) d'eau potable. Des systèmes de chasses d'eau à double commande (3-6L) existent sur le marché depuis plusieurs années. Sans pour autant remplacer l'ensemble des installations, il est également possible de mettre en place des actions simples et peu coûteuses : dispositif à placer dans le réservoir (éco-plaquette). En fonction des modèles installés, il est possible de faire entre 30 et 50% d'économies d'eau. - Mécanisme permettant d’utiliser de l’eau récupérée pour les chasses d’eau - Urinoirs avec écoulement déclenché en fonction de la présence, urinoirs sans eau EN GENERAL - Equipements de suivi des consommations d’eau : installation de sous-compteur par grands usages pour identifier les fuites ou les surconsommations ou mauvaises pratiques (espace chambres / piscines / cuisines / blanchisseries…) Ne sera pas financée l’installation de sous-compteur par chambre. L’auto-installation des équipements économiseurs d’eau est autorisée. | O69: =O68 -> 0
C70: ='2-Je choisis mes actions'!B33 -> Ressources - Toilettes sèches pour les chambres et sanitaires liés à l’activité d’hébergement | L70: ='2-Je choisis mes actions'!E33 -> 0 | M70: Pas besoin de devis | O70: =IF('2-Je choisis mes actions'!I33=0,0,IF(L70>0,1,0)) -> 0 | P70: ='2-Je choisis mes actions'!G33 -> 
C71: Les toilettes sèches ne requièrent aucune utilisation de ressources non renouvelables et notamment pas d’utilisation d'eau. Plusieurs systèmes existent (à compost, à séparation etc.) pouvant convenir aux différentes contraintes d'usage ou de bâtiment. Avant installation, le bénéficiaire se renseignera auprès des compétences locales pour connaître la règlementation inhérente aux départements en matière de toilettes sèches. | O71: =O70 -> 0
C72: ='2-Je choisis mes actions'!B34 -> Mobilité - Abri vélo équipé de production photovoltaïque pour la recharge | L72: ='2-Je choisis mes actions'!E34 -> 0 | M72: Pas besoin de devis | O72: =IF('2-Je choisis mes actions'!I34=0,0,IF(L72>0,1,0)) -> 0 | P72: ='2-Je choisis mes actions'!G34 -> 
C73: L'abri s'assurera d'un impact limité sur l'artificialisation des sols. Le toit de l'abri, correctement orienté, est équipé de modules photovoltaïques. Cette ligne est compatible avec un contrat d'autoconsommation. L'investissement est limité à 10 emplacements vélos. Celui-ci doit être conforme au référentiel du programme CEE Alvéole : https://drive.google.com/file/d/14oef0j1SwHWJO4WYPoIXVkbFNICgyFyQ/view L’abri peut être un réaménagement de local existant, à condition que la toiture soit correctement orientée pour installer du PV. L'auto-installation n'est possible que sur la structure (valider au préalable avec l'installateur du module PV, la structure et son orientation). Les modules PV seront installés par un professionnel. | O73: =O72 -> 0
C74: ='2-Je choisis mes actions'!B35 -> Prévention des déchets non alimentaires dans les hébergements | L74: ='2-Je choisis mes actions'!E35 -> 0 | M74: =IF(P74="Oui","Devis à joindre","Pas besoin de devis") -> Pas besoin de devis | O74: =IF('2-Je choisis mes actions'!I35=0,0,IF(L74>0,1,0)) -> 0 | P74: ='2-Je choisis mes actions'!G35 -> 
C75: Cette action vise à réduire les déchets non alimentaires, au sein de l’hébergement : - Réduction des déchets d’emballages - Suppression des produits jetables ou en dose individuelle - Équipements permettant la réduction voire la suppression de la consommation de produits non alimentaires, notamment ceux nécessaires au nettoyage, entretien, lavage Vous pouvez bénéficier d’une aide pour tout matériel ou équipement (hors consommables) contribuant à l’objectif : par exemple, matériel navette fournisseurs, contenants pour stockage de produits vrac (distributeurs de gel douche ou savon), mise en place d’actions de récupération des savonnettes et filière de recyclage, contenants durables pour substitution des emballages individuels (café, thé, sucre, sauces...) ; achat vaisselle/couverts/serviettes/nappes/dessous de table pour substituer du jetable ; achat de lavettes (microfibres) ou de balai à réservoir économe en eau et équipements de protection (charlottes, gants, masques, ..) réutilisables en substitution de jetable, centrale de dilution des produits d’entretien, équipements permettant de supprimer l’utilisation de produits dangereux (appareil à vapeur), mise en place de fontaines à eau en substitution des bouteilles plastiques, mise en place de fontaines à eau ou de filtre à eau en substitution des bouteilles plastiques... La location est éligible uniquement si option d’achat (Les coûts éligibles sont sur la totalité de la durée de la location-achat). Le tri et la gestion des biodéchets, ainsi que l'acquisition d’emballage ou de contenants réemployables en substitution d'emballages ou contenants en plastique à usage unique sont éligibles sur les lignes Tremplin / Economie circulaire. | O75: =O74 -> 0
C76: ='2-Je choisis mes actions'!B36 -> Confort d'été et d'hiver: diminution des besoins de climatisation en été, et de chauffage extérieur en hiver (ex couvertures). Ombrage et préservation du frais à l'extérieur en été | L76: ='2-Je choisis mes actions'!E36 -> 0 | M76: =IF(P76="Oui","Devis à joindre","Pas besoin de devis") -> Pas besoin de devis | O76: =IF('2-Je choisis mes actions'!I36=0,0,IF(L76>0,1,0)) -> 0 | P76: ='2-Je choisis mes actions'!G36 -> 
C77: ='2-Je choisis mes actions'!B37 -> h7 | L77: ='2-Je choisis mes actions'!E37 -> 0 | M77: =IF(P77="Oui","Devis à joindre","Pas besoin de devis") -> Pas besoin de devis | O77: =IF('2-Je choisis mes actions'!I37=0,0,IF(L77>0,1,0)) -> 0 | P77: ='2-Je choisis mes actions'!G37 -> 0
C78: ='2-Je choisis mes actions'!B38 -> h8 | L78: ='2-Je choisis mes actions'!E38 -> 0 | M78: =IF(P78="Oui","Devis à joindre","Pas besoin de devis") -> Pas besoin de devis | O78: =IF('2-Je choisis mes actions'!I38=0,0,IF(L78>0,1,0)) -> 0 | P78: ='2-Je choisis mes actions'!G38 -> 0
C79: ='2-Je choisis mes actions'!B53 -> Chauffe-eau solaire individuels ≤ 10 m² | L79: ='2-Je choisis mes actions'!E53 -> 0 | M79: =IF(P79="Oui","Devis à joindre","Pas besoin de devis") -> Pas besoin de devis | O79: =IF('2-Je choisis mes actions'!I53=0,0,IF(L79>0,1,0)) -> 0 | P79: ='2-Je choisis mes actions'!G53 -> 
C80: Cette opération est destinée à financer l’achat et l’installation de chauffe-eau solaire individuels pour les PME d’Outre-Mer. L’installation devra respecter les critères techniques suivants : - La surface de capteurs, les besoins annuels en eau chaude et le taux de couverture solaire sont déterminés à partir d’une note de dimensionnement de l'installation intégrée au devis - Taux de couverture solaire supérieur à 50 % - Maximum 10m² de capteurs pour les OM (au-delà se référer au Fonds Chaleur) - Installation recommandée sans appoint électrique (mais appoint possible) - Mise en place par un professionnel - Les installations doivent faire l’objet : • D’une certification QB dont le domaine d’emploi de l’avis technique couvre explicitement les départements d’outremer • Ou des caractéristiques de performances et de qualité équivalentes établies par un organisme localisé dans l’Espace Economique Européen et accrédité selon la norme NF EN ISO/CEI 17065 par le Comité Français d’Accréditation (COFRAC) ou tout autre organisme d’accréditation signataire de l’accord européen multilatéral pertinent pris dans le cadre de la coordination européenne des organismes d’accréditation. | O80: =O79 -> 0
C81: ='2-Je choisis mes actions'!B54 -> Brasseurs d’air | L81: ='2-Je choisis mes actions'!E54 -> 0 | M81: =IF(P81="Oui","Devis à joindre","Pas besoin de devis") -> Pas besoin de devis | O81: =IF('2-Je choisis mes actions'!I54=0,0,IF(L81>0,1,0)) -> 0 | P81: ='2-Je choisis mes actions'!G54 -> 
C82: Les actions ont pour objectif de limiter voire supprimer l’usage de la climatisation par la mise en place de brasseurs d’air dans les restaurants et les hébergements éligibles au Fonds Tourisme Durable.. Les brasseurs d’air sont éligibles pour réduire l’utilisation de la climatisation, à condition de respecter les éléments techniques suivants : - Volume de brassage à vitesse max > 8500 m3/h - 3 vitesses de fonctionnement minimum - Puissance moteur max < 70 W - Moteur silencieux bruit à vitesse max < 45 db - Vitesse d’air : 1m/s : l’installateur attestera sur son devis qu’il respecte les préconisations du fournisseur pour atteindre l’objectif de 1 m/s - Eclairage compatible LEDs ou pas d’éclairage - Mise en place réalisée par un professionnel - Recommandation : 1 brasseur pour 10 à 15 m2 ou se référer aux préconisations du fournisseur de brasseurs d’air | O82: =O81 -> 0
C83: ='2-Je choisis mes actions'!B42 -> Bilan d’émission de gaz à effet de serre (bilan GES scope 1, 2 et 3) et plan d'actions | L83: ='2-Je choisis mes actions'!E42 -> 0 | M83: =IF(P83="Oui","Devis à joindre","Pas besoin de devis") -> Pas besoin de devis | O83: =IF('2-Je choisis mes actions'!I42=0,0,IF(L83>0,1,0)) -> 0 | P83: ='2-Je choisis mes actions'!G42 -> 0
C84: Il s’agit de compter la quantité de gaz à effet de serre qui est due à votre activité pendant une année. Le bilan est réalisé en disant précisément quelles actions sont à l’origine du plus d’émissions pour vous aider à construire un plan d’action efficace. Le bilan porte sur les émissions de gaz à effet de serre directement générées par votre activité (1er cercle), celles liées à la consommation d’énergie de votre entreprise (2ème cercle) ainsi que les émissions indirectes de votre entreprise, par exemple liées aux produits que vous vendez (3ème cercle). La réalisation du Bilan GES se fait en conformité avec la méthode réglementaire ou les normes internationales en vigueur (ISO 14064, ISO 14069) et devra nécessairement inclure une proposition de plan d'actions. Vous pouvez trouver plus d'information sur : https://www.bilans-ges.ademe.fr/ : - rubrique "Ressources" pour plus de détails méthodologiques - rubrique "Bilans en ligne" pour consulter des Bilans GES réalisés. Quand vous aurez réalisé votre bilan, vous pouvez le publier sur cette plateforme. | O84: =O83 -> 0
C85: ='2-Je choisis mes actions'!B43 -> Vous organiser pour réduire les émissions de gaz à effet de serre : élaborer une stratégie (démarche ACT® pas à pas sans accompagnement à la mise en œuvre du plan d'action) – Etapes 1 à 5A de la démarche ACT pas à pas | L85: ='2-Je choisis mes actions'!E43 -> 0 | M85: =IF(P85="Oui","Devis à joindre","Pas besoin de devis") -> Pas besoin de devis | O85: =IF('2-Je choisis mes actions'!I43=0,0,IF(L85>0,1,0)) -> 0 | P85: ='2-Je choisis mes actions'!G43 ->  | R85: Une aide financière peut vous être versée pour mettre en œuvre la démarche ACT (« Assessing low Carbon Transition ») Pas à Pas. La démarche ACT Pas à Pas vous permet de définir vos objectifs de décarbonation basés sur la science, développer votre stratégie et mettre en œuvre le plan d’action associé. Voici les étapes de la démarche ACT qui font l'objet d'une aide financière : • Etape 1 : Situation actuelle - Objectif : Réaliser un autodiagnostic de la maturité initiale de l’entreprise en termes de stratégie et de pratiques de décarbonation - Durée : 1 semaine à 1 mois • Etape 2 : Enjeux et défis - Objectif : Informer le conseil d’administration des enjeux carbone de l’entreprise à travers les résultats d’une analyse de stratégie et de performance pertinente - Durée : 1 à 3 mois • Etape 3 : Vision - Objectif : Construire une vision collective du parcours de l’entreprise vers un monde bas-carbone. - Durée : 2 à 6 semaines • Etape 4 : Nouvelle stratégie. - Objectif : S’engager à mettre en place un plan stratégique de décarbonation détaillé comprenant des objectifs de performance carbone. - Durée : 1 à 3 mois • Etape 5 : Plan d’action. Action 5.A Définition du plan d’action - Objectif : Convertir le plan stratégique détaillé en actions concrètes. (1/3) - Durée : 4 mois à 1 an Les pré-requis à la démarche ACT PAS A PAS : • Avoir réalisé au moins un bilan d’émissions de gaz à effet de serre (Bilan GES) de la société conforme à la réglementation française, à la norme ISO 14064-1 ou au GHG protocol au cours des 2 dernières années • Volonté claire du conseil d’administration de s’impliquer dans la démarche ACT Pas à Pas • Nommer un coordinateur de projet ACT au sein de l’entreprise : il doit suivre le programme de formation ACT spécifique (2j de formation auprès de l’ADEME – coût supplémentaire à prévoir : 1000€) Pour plus d'information et contacts de BE et consultants formés : https://actinitiative.org/act-in-france-support-technique/ Les Entreprises industrielles sont non éligibles car aidées par ailleurs par le dispositif Pacte Industrie
C86: Une aide financière peut vous être versée pour mettre en œuvre la démarche ACT (« Assessing low Carbon Transition ») Pas à Pas. La démarche ACT Pas à Pas vous permet de définir vos objectifs de décarbonation basés sur la science, développer votre stratégie et mettre en œuvre le plan d’action associé. Voici les étapes de la démarche ACT qui font l'objet d'une aide financière : • Etape 1 : Situation actuelle - Objectif : Réaliser un autodiagnostic de la maturité initiale de l’entreprise en termes de stratégie et de pratiques de décarbonation - Durée : 1 semaine à 1 mois • Etape 2 : Enjeux et défis - Objectif : Informer le conseil d’administration des enjeux carbone de l’entreprise à travers les résultats d’une analyse de stratégie et de performance pertinente - Durée : 1 à 3 mois • Etape 3 : Vision - Objectif : Construire une vision collective du parcours de l’entreprise vers un monde bas-carbone. - Durée : 2 à 6 semaines • Etape 4 : Nouvelle stratégie. - Objectif : S’engager à mettre en place un plan stratégique de décarbonation détaillé comprenant des objectifs de performance carbone. - Durée : 1 à 3 mois • Etape 5 : Plan d’action. Action 5.A Définition du plan d’action - Objectif : Convertir le plan stratégique détaillé en actions concrètes. (1/3) - Durée : 4 mois à 1 an Les pré-requis à la démarche ACT PAS A PAS : • Avoir réalisé au moins un bilan d’émissions de gaz à effet de serre (Bilan GES) de la société conforme à la réglementation française, à la norme ISO 14064-1 ou au GHG protocol au cours des 2 dernières années • Volonté claire du conseil d’administration de s’impliquer dans la démarche ACT Pas à Pas • Nommer un coordinateur de projet ACT au sein de l’entreprise : il doit suivre le programme de formation ACT spécifique (2j de formation auprès de l’ADEME – coût supplémentaire à prévoir : 1000€) Pour plus d'information et contacts de BE et consultants formés : https://actinitiative.org/act-in-france-support-technique/ Les Entreprises industrielles sont non éligibles car aidées par ailleurs par le dispositif Pacte Industrie | O86: =O85 -> 0
C87: ='2-Je choisis mes actions'!B44 -> Evaluer votre stratégie de réduction des émissions de gaz à effet de serre (Evaluation ACT®) | L87: ='2-Je choisis mes actions'!E44 -> 0 | M87: =IF(P87="Oui","Devis à joindre","Pas besoin de devis") -> Pas besoin de devis | O87: =IF('2-Je choisis mes actions'!I44=0,0,IF(L87>0,1,0)) -> 0 | P87: ='2-Je choisis mes actions'!G44 -> 
C88: Une aide financière peut vous être versée pour mettre en œuvre une évaluation ACT (« Assessing low Carbon Transition »). La démarche ACT Evaluation vous permettra de comparer les objectifs de réduction des émissions de gaz à effet de serre que vous avez retenu pour votre activité avec ce qui est considéré comme la voie de votre secteur vers la suppression des émissions de gaz à effet de serre. Cela devrait vous permettre de vous orienter vers un modèle d’affaire décarboné. Pour plus d'information : https://actinitiative.org/act-implementations/ | O88: =O87 -> 0
C89: ='2-Je choisis mes actions'!B48 -> Accompagnement à la baisse des consommations d’énergie des bâtiments imposée par le dispositif Eco Energie Tertiaire : audit énergétique | L89: ='2-Je choisis mes actions'!E48 -> 0 | M89: =IF(P89="Oui","Devis à joindre","Pas besoin de devis") -> Pas besoin de devis | O89: =IF('2-Je choisis mes actions'!I48=0,0,IF(L89>0,1,0)) -> 0 | P89: ='2-Je choisis mes actions'!G48 -> 
C90: Une aide financière peut vous être versée pour mettre en œuvre un audit énergétique permettant d’atteindre les objectifs de performance définis par le décret tertiaire. Le « décret Tertiaire » (décret n°2019-771 du 23 juillet 2019) pose un objectif de réduction des consommations énergétiques des bâtiments : -40% en 2030, -50% en 2040 et -60% en 2050 par rapport à 2010. Cet objectif n’est pas applicable dans les DOM-COM. L'accompagnement consiste en un audit énergétique en deux temps : - Une analyse détaillée des données de votre bâtiment ; - Des propositions chiffrées et argumentées d’actions d’économie d’énergie visant des objectifs comparables aux objectifs nationaux. Pour les établissements de plus 500 m2 de surface de plancher, telle que définie par l’article R111-22 du code de l’urbanisme (https://www.legifrance.gouv.fr/codes/article_lc/LEGIARTI000031721274/) : cet audit préalable est obligatoire pour bénéficier du financement de travaux sur l’isolation. Il est possible de poursuivre avec une aide à la mise en œuvre des actions préconisées, et la vérification des économies d'énergie après la réception des travaux. La prestation d'audit sera réalisée conformément au cahier des charges de l'ADEME téléchargeable sur la plateforme AGIR et de préférence avec un BE qualifié RGE : https://www.ademe.fr/audit-energetique-batiments | O90: =O89 -> 0
C91: Maîtrise d'œuvre (MOE) pour rénovation globale d’un ou plusieurs bâtiments pour viser un objectif de 50% d’économie d’énergie | L91: ='2-Je choisis mes actions'!E49 -> 0 | M91: =IF(P91="Oui","Devis à joindre","Pas besoin de devis") -> Pas besoin de devis | O91: =IF('2-Je choisis mes actions'!I49=0,0,IF(L91>0,1,0)) -> 0 | P91: ='2-Je choisis mes actions'!G49 -> 
C92: Si vous voulez engager un programme de travaux préconisé par un audit énergétique qui permettra de réduire vos consommations d’énergie de 50%, vous pouvez bénéficier d’une aide à la maîtrise d’œuvre pour : - réaliser des études de faisabilité si cela s'avère nécessaire, les études d'avant-projet et de projet ; - passer des contrats de travaux ; - diriger et coordonner l'exécution des travaux jusqu'à leur réception. | O92: =O91 -> 0
C93: ='2-Je choisis mes actions'!B50 -> Diagnostic sur la qualité de l'air (intérieur et extérieur) de l’entreprise | L93: ='2-Je choisis mes actions'!E50 -> 0 | M93: =IF(P93="Oui","Devis à joindre","Pas besoin de devis") -> Pas besoin de devis | O93: =IF('2-Je choisis mes actions'!I50=0,0,IF(L93>0,1,0)) -> 0 | P93: ='2-Je choisis mes actions'!G50 -> 
C94: Un expert peut vous accompagner pour réaliser un diagnostic de la qualité de l’air dans votre entreprise et autour et de proposer un plan d’actions pour l’améliorer. La prestation comportera : - un premier état de la situation établi sur la base d’un questionnaire ; - une phase de mesures dans l’air que vous réaliserez grâce à des kits qui vous seront fournis, par exemple, kit de mesure CO2 et COV (composés organiques volatils) pour la qualité de l’air intérieur, kit NO2 (oxyde d’azote) en milieu urbain pour la qualité de l’air extérieur ; - un accompagnement à distance par visioconférence de 1 à 2 h pour vous aider à réaliser les mesures ; - un bilan assorti d’une proposition de plan d’actions. Pour les projets de construction d’un nouveau bâtiment, vous devrez être accompagné dans votre projet en prenant également en compte dans le diagnostic l’usage du bâtiment. Si vous avez un projet de rénovation, le système de ventilation existant sera diagnostiqué. | O94: =O93 -> 0
C95: ='2-Je choisis mes actions'!B51 -> Solaire photovoltaïque en autoconsommation pour les PME d’Outre-Mer | L95: ='2-Je choisis mes actions'!E51 -> 0 | M95: =IF(P95="Oui","Devis à joindre","Pas besoin de devis") -> Pas besoin de devis | O95: =IF('2-Je choisis mes actions'!I51=0,0,IF(L95>0,1,0)) -> 0 | P95: ='2-Je choisis mes actions'!G51 -> 
C96: Cette opération est destinée aux bâtiments des TPE et PME situés en outre-mer et en Corse. Une aide financière peut vous être versée pour l’investissement dans une installation de production d’électricité avec des panneaux solaires photovoltaïques en autoconsommation au fil du soleil, sans stockage d’électricité et sans revente de surplus au réseau d’électricité. Une étude de faisabilité selon cahier des charges ADEME, visant un taux d’autoconsommation d’au moins 80% doit être fournie en complément du devis détaillé de l’installation. L’ADEME recommande que les entreprises qui réalisent ce type d'installation soient RGE (reconnu garent de l'environnement), QualiPV ou équivalent. L’ensemble des démarches administratives et de contrôle (Consuel, déclaration à EDF ou EDM, …) devront être réalisées par l’installateur. Le certificat de conformité du Consuel devra être fourni à l’issue du chantier. Un contrôle de réalisation pourra être effectué sur ces opérations par la direction régionale de l’ADEME. | O96: =O95 -> 0
C97: ='2-Je choisis mes actions'!B52 -> Solaire photovoltaïque autonome pour les activités économiques non raccordées au réseau électrique des PME de Corse et d’Outre-Mer | L97: ='2-Je choisis mes actions'!E52 -> 0 | M97: =IF(P97="Oui","Devis à joindre","Pas besoin de devis") -> Pas besoin de devis | O97: =IF('2-Je choisis mes actions'!I52=0,0,IF(L97>0,1,0)) -> 0 | P97: ='2-Je choisis mes actions'!G52 -> 
C98: Cette opération est destinée à alimenter les activités économiques des TPE et PME non raccordés au réseau électrique et éloigné de celui-ci situés sur des territoires d’outre-mer et de Corse où le système FACE ne peut intervenir. Une aide financière peut vous être versée pour l’investissement dans une installation de production d’électricité autonome : panneaux solaire, batterie, onduleur, électronique de régulation, local technique, pose, contrôle et système d’eau potable Une étude de dimensionnement devra avoir été réalisée. L’ADEME recommande que les entreprises qui réalisent ce type d'installation soient RGE (reconnu garant de l'environnement), QualiPV ou équivalent. L’ensemble des démarches administratives et de contrôle (bureau de contrôle) devront être réalisées par l’installateur. Le certificat de conformité du bureau de contrôle devra être fourni à l’issue du chantier. Une visite du site et un contrôle de réalisation pourra être effectué sur ces opérations par la direction régionale de l’ADEME. | O98: =O97 -> 0
C99: ='2-Je choisis mes actions'!B58 -> Améliorer l'efficacité de l'éclairage des locaux avec des luminaire à modules LED pré-équipés de détecteurs | L99: ='2-Je choisis mes actions'!E58 -> 0 | M99: =IF(P99="Oui","Devis à joindre","Pas besoin de devis") -> Pas besoin de devis | O99: =IF('2-Je choisis mes actions'!I58=0,0,IF(L99>0,1,0)) -> 0 | P99: ='2-Je choisis mes actions'!G58 -> 
C100: Les luminaires LED performants permettent des économies d'énergie et financières immédiates et des économies de maintenance grâce à une durée de vie 5 fois supérieure aux éclairages classiques (généralement tubes T8 sur ballast ferromagnétiques). Ces luminaires, pré-équipés de détecteurs, permettent également de mettre en place de la gestion dans le bâtiment de façon simple, sans tirer des câbles entre eux et d'éventuels capteurs séparés. Une aide financière peut vous être versée pour l’investissement dans des luminaires d’éclairage général à modules LED pré-équipés pour la régulation en fonction de l'éclairage naturel et la détection de présence, tels que définis dans la fiche CEE BAT-EQ-127. Cet investissement peut également bénéficier des Certificats d’économie d’énergie. | O100: =O99 -> 0
C101: ='2-Je choisis mes actions'!B59 -> Augmenter l’éclairage naturel grâce à des lanterneaux d'éclairage zénithal | L101: ='2-Je choisis mes actions'!E59 -> 0 | M101: =IF(P101="Oui","Devis à joindre","Pas besoin de devis") -> Pas besoin de devis | O101: =IF('2-Je choisis mes actions'!I59=0,0,IF(L101>0,1,0)) -> 0 | P101: ='2-Je choisis mes actions'!G59 -> 
C102: Favoriser l'éclairage naturel est un geste de sobriété énergétique qui est aussi bon pour la santé en diminuant les dépressions saisonnières, la fatigue psychologique et le stress. Réglementairement, les exutoires de fumées (DENFC) sont obligatoires en toiture dans le cadre de la réglementation de sécurité incendie. Il s'agit que ceux-ci soient en plus source d'économie d'énergie et de bien-être. Pour un local commercial de 5 000 m2 à Paris, un facteur de Lumière du Jour de 2,5%, soit 11% de surface géométrique lumière apporte en juin, plus de 300h de disponibilité à 300 lux et plus de 180h à 1 000 lux. En février, plus de 130h à 300 lux. Ceci signifie une autonomie en éclairage conséquente. Une aide financière peut vous être versée pour l’investissement dans des lanterneaux d’éclairage zénithal s’ils respectent les préconisations techniques de la fiche CEE BAT-EQ-129. Cet investissement peut également bénéficier des Certificats d’économie d’énergie. | O102: =O101 -> 0
C103: ='2-Je choisis mes actions'!B60 -> Augmenter l’éclairage naturel grâce à des conduits de lumière naturelle | L103: ='2-Je choisis mes actions'!E60 -> 0 | M103: =IF(P103="Oui","Devis à joindre","Pas besoin de devis") -> Pas besoin de devis | O103: =IF('2-Je choisis mes actions'!I60=0,0,IF(L103>0,1,0)) -> 0 | P103: ='2-Je choisis mes actions'!G60 -> 
C104: Les conduits de lumière sont des sources de lumière naturelle. Ils permettent d’amener l’éclairage naturel dans les pièces sombres voire aveugles. Ils captent la lumière souvent en toiture, là où l’éclairage est maximal, pour la conduire dans les pièces dépourvues d’accès important à l’éclairage naturel. La lumière diffusée est donc particulièrement adaptée au rythme jour/nuit et au cycle circadien de l’être humain. Il s’agit d’une mesure de sobriété énergétique et les économies d’énergie peuvent être substantielles. Une aide financière peut vous être versée pour l’investissement dans un conduit de lumière naturel. La fiche CEE BAT-EQ-131 permet de sélectionner le produit performant le plus adapté. Cet investissement peut également bénéficier des Certificats d’économie d’énergie. | O104: =O103 -> 0
C105: ='2-Je choisis mes actions'!B61 -> Améliorer l'efficacité de l'éclairage extérieur avec des luminaires LED | L105: ='2-Je choisis mes actions'!E61 -> 0 | M105: =IF(P105="Oui","Devis à joindre","Pas besoin de devis") -> Pas besoin de devis | O105: =IF('2-Je choisis mes actions'!I61=0,0,IF(L105>0,1,0)) -> 0 | P105: ='2-Je choisis mes actions'!G61 -> 
C106: La consommation d’énergie de l’éclairage extérieur peut être divisée par deux en passant de sources énergivores à un éclairage LED. A cela se rajoutent des économies de maintenance grâce à une durée de vie 5 fois supérieure pour les luminaires LED par rapport aux sources énergivores. Une aide financière peut vous être versée pour l’investissement dans un éclairage extérieur par luminaire LED conforme aux exigences de la fiche CEE RES-EC-104. Sa source lumineuse doit pouvoir être remplacée et il doit permettre également de se conformer à l'arrêté du 27 décembre 2018 relatif à la prévention, à la réduction et à la limitation des nuisances lumineuses qui contient aussi des prescriptions sur la quantité maximale de lumière à installer. Cet investissement peut également bénéficier des Certificats d’économie d’énergie. | O106: =O105 -> 0
C107: ='2-Je choisis mes actions'!B62 -> Etude de dimensionnement de l'éclairage | L107: ='2-Je choisis mes actions'!E62 -> 0 | M107: =IF(P107="Oui","Devis à joindre","Pas besoin de devis") -> Pas besoin de devis | O107: =IF('2-Je choisis mes actions'!I62=0,0,IF(L107>0,1,0)) -> 0 | P107: ='2-Je choisis mes actions'!G62 -> 
C108: Si avez sélectionné des investissements importants (supérieurs à 25 000 €) pour améliorer l’éclairage de votre entreprise, une aide financière peut vous être versée pour financer une étude de dimensionnement avant de mettre en œuvre ces investissements. Cette étude peut être réalisée en interne ou en externe. Elle doit au minimum comporter des simulations ou mesures d’éclairement à comparer avec les valeurs préconisées par le code du travail et les normes d’éclairage en vigueur. Les coûts internes ne doivent pas dépasser 50% des coûts externes. | O108: =O107 -> 0
C109: ='2-Je choisis mes actions'!B66 -> Isolation des meubles de vente réfrigérés et/ou des chambres froides | L109: ='2-Je choisis mes actions'!E66 -> 0 | M109: =IF(P109="Oui","Devis à joindre","Pas besoin de devis") -> Pas besoin de devis | O109: =IF('2-Je choisis mes actions'!I66=0,0,IF(L109>0,1,0)) -> 0 | P109: ='2-Je choisis mes actions'!G66 -> 
C110: Une aide financière peut vous être versée pour améliorer l'étanchéité à l'air et les dispositifs de fermetures des équipements de froid : - des meubles de vente réfrigérés à température positive ou négative : installation de rideaux de nuit, portes ; - des chambres froides : réfection des joints de porte (de type caoutchouc mousse toilé, caoutchouc naturel, PVC ou silicone), installation d'une isolation pour chambre froide avec pare-vapeur (épaisseur 60 mm minimum pour les chambre à températures positives et 100 mm minimum pour les chambres froides négatives). Ces travaux doivent être mis en œuvre par des frigoristes qualifiés. Certains de ces investissements sont également éligible aux Certificats d'économie d'énergie. | O110: =O109 -> 0
C111: ='2-Je choisis mes actions'!B67 -> Remplacement de fluides dans les équipements frigorifiques commerciaux pour utiliser des fluides frigorigènes ayant moins d’impact sur le changement climatique | L111: ='2-Je choisis mes actions'!E67 -> 0 | M111: =IF(P111="Oui","Devis à joindre","Pas besoin de devis") -> Pas besoin de devis | O111: =IF('2-Je choisis mes actions'!I67=0,0,IF(L111>0,1,0)) -> 0 | P111: ='2-Je choisis mes actions'!G67 -> 
C112: Une aide financière peut vous être versée pour remplacer un fluide frigorigène polluant (PRG > 1500, en particulier R404A) par un fluide moins impactant sur le réchauffement climatique (rétrofit). Les nouveaux fluides utilisés pour le rétrofit devront être mis en œuvre par un frigoriste qualifié (attestation de capacité et habilitation fluide), et avoir un PRG (pouvoir de réchauffement climatique) inférieur à 1500 kg équivalent CO2 sur 100 ans. Le remplacement du fluide devra s’accompagner de l’installation d’un détendeur adapté au nouveau fluide sur chacun des terminaux et du remplacement du filtre déshydrateur. Les équipements frigorifiques commerciaux concernés sont par exemple les présentoir frigorifique, chambre froide, armoire à froid négatif avec surgélateur intégré. Dans le cas d’une installation centralisée (plusieurs équipements raccordés sur un même groupe frigorifique), le montant de l’aide sera calculé en fonction du nombre de détendeurs (ou trains thermostatiques) à remplacer dans le cadre du rétrofit. | O112: =O111 -> 0
C113: ='2-Je choisis mes actions'!B68 -> Remplacement de meubles frigorifiques anciens avec groupe froid intégré par des équipements équivalents neufs avec des fluides frigorigènes moins impactant sur le changement climatique | L113: ='2-Je choisis mes actions'!E68 -> 0 | M113: =IF(P113="Oui","Devis à joindre","Pas besoin de devis") -> Pas besoin de devis | O113: =IF('2-Je choisis mes actions'!I68=0,0,IF(L113>0,1,0)) -> 0 | P113: ='2-Je choisis mes actions'!G68 -> 
C114: Une aide financière peut vous être versée pour remplacer des meubles frigorifiques à groupe logé (groupe froid intégré dans l’équipement) antérieurs à 2015 ou fonctionnant avec un fluide frigorigène à PRG > 1500 (en particulier R404A) par des meubles frigorifiques neufs à groupe logés fonctionnant avec un fluide frigorigène ayant un PRG ≤ 3 (R290 / propane, R600a / isobutane, R744 / CO2) . Les équipements ne pourront pas être remplacés par du matériel domestique Le devis devra indiquer le démontage/enlèvement de l’ancien équipement ou préciser le remplacement ainsi que l'étiquette énergie du nouveau produit. Critères des équipements frigorifiques commerciaux éligibles : - uniquement équipements professionnels - et PRG ≤ 3 (R290 / propane, R600a / isobutane, R744 / CO2 - et classe selon équipement (Indice d’efficacité Energétique) o Froid positif : - Armoires 1 porte et comptoirs réfrigérés : classe A - Armoires 2 portes : classe A ou B - Vitrines réfrigérées : classe A à C - Vitrines réfrigérées de comptoir (hauteur ≤ 110 cm) : classes A ou B - Armoires à boissons fraîches/frigos arrière-bar (attention, ces armoires peuvent s'éteindre la nuit ou augmenter la température donc ne pas mettre autre chose que des boissons dans cette catégorie d'appareil) : classes A à C - Cellule de refroidissement : pas de classe mais obligation du PRG<=3 o Froid négatif : - Armoire à congélation : classes A à C - Congélateurs sous plan : Classes A ou B - Congélateurs pour glaces : classes A à C Des équipements éligibles sont référencés sur : https://www.guidetopten.fr/pro : rubriques Froid commercial et Froid pour hôtels et restaurants Non éligibles : équipements domestiques, caves à vin, mini-bars, distributeurs automatiques réfrigérés | O114: =O113 -> 0
C115: ='2-Je choisis mes actions'!B69 -> Remplacement d’équipements frigorifiques commerciaux anciens par des équipements neufs à groupe froid déporté avec des fluides frigorigènes moins impactant sur le changement climatique | L115: ='2-Je choisis mes actions'!E69 -> 0 | M115: =IF(P115="Oui","Devis à joindre","Pas besoin de devis") -> Pas besoin de devis | O115: =IF('2-Je choisis mes actions'!I69=0,0,IF(L115>0,1,0)) -> 0 | P115: ='2-Je choisis mes actions'!G69 -> 
C116: Une aide financière peut vous être versée pour remplacer des équipements frigorifiques anciens (antérieurs à 2015) ou fonctionnant avec un fluide frigorigène à PRG > 1500 (en particulier R404A), par des équipements frigorifiques neufs à groupe déporté (groupe froid situé à l’extérieur de l’équipement) fonctionnant avec un fluide frigorigène ayant un PRG < 1500. Le remplacement peut concerner l’ensemble du matériel (groupe frigorifique + équipement terminal) ou uniquement le groupe frigorifique si l’équipement terminal est en bon état de fonctionnement. Les équipements frigorifiques commerciaux concernés sont par exemple vitrine/présentoir frigorifique, chambre froide, surgélateur, etc. Si le remplacement concerne plusieurs équipements reliés à un même groupe frigorifique, le montant de l’aide sera assujetti au nombre d’équipements remplacés. Les nouveaux équipements devront être installés par un frigoriste qualifié (attestation de capacité et habilitation fluide). | O116: =O115 -> 0
C117: ='2-Je choisis mes actions'!B70 -> Installation de froid commercial centralisée au CO2 avec récupération de chaleur | L117: ='2-Je choisis mes actions'!E70 -> 0 | M117: =IF(P117="Oui","Devis à joindre","Pas besoin de devis") -> Pas besoin de devis | O117: =IF('2-Je choisis mes actions'!I70=0,0,IF(L117>0,1,0)) -> 0 | P117: ='2-Je choisis mes actions'!G70 -> 
C118: Une aide financière peut vous être versée pour l'installation de centrale de froid au CO2 transcritique avec récupération de chaleur utilisée pour la production d'eau chaude sanitaire, de chauffage ou dans un process de fabrication. L'installation doit être mise en œuvre par un frigoriste agréé et être précédée d'une étude de dimensionnement. Cet investissement est également éligible aux Certificats d'économie d'énergie. | O118: =O117 -> 0
C119: ='2-Je choisis mes actions'!B74 -> Isolation de combles perdus | L119: ='2-Je choisis mes actions'!E74 -> 0 | M119: =IF(P119="Oui","Devis à joindre","Pas besoin de devis") -> Pas besoin de devis | O119: =IF('2-Je choisis mes actions'!I74=0,0,IF(L119>0,1,0)) -> 0 | P119: ='2-Je choisis mes actions'!G74 -> 
C120: Une aide financière peut vous être versée pour l'isolation thermique des combles perdus. Un audit énergétique (de moins de 2 ans) doit être réalisé pour tout établissement > 500 m2 de surface de plancher, telle que définie par l’article R111-22 du code de l’urbanisme (https://www.legifrance.gouv.fr/codes/article_lc/LEGIARTI000031721274/). Le choix technique doit être en accord avec les recommandations de l’audit. Financement possible de l’audit : voir rubrique « Actions de rénovation globale des bâtiments et de qualité de l'air » ci-dessus. Pour les établissements compris entre 500 et 1000 m2, un audit simplifié réalisé par un conseiller SARE petit Tertiaire de type ActeB2, est accepté. Le choix technique doit être en accord avec les recommandations de l’audit. Cette isolation devra être réalisée avec des procédés d'isolation constitués de l'association d'un matériau isolant et de dispositifs de protection (dont membranes continues si nécessaire) contre des dégradations liées à son exposition aux environnements extérieurs et intérieurs, en conformité avec les règles de l'art. - En métropole : la résistance thermique de l'isolation installée répond aux exigences fixées par le fiche CEE BAT-EN-101 : elle est supérieure ou égale à 6 m². K/W. - En outre-mer : la résistance thermique de l'isolation installée répond aux exigences fixées par le fiche CEE BAT-EN-106 : elle est supérieure ou égale à 1,2 m². K/W. La résistance thermique est évaluée selon la norme NF EN 12664, la norme NF EN 12667 ou la norme NF EN 12939 pour les isolants non-réfléchissants ou la norme NF EN 16012+A1 pour les isolants réfléchissants. A noter que pour assurer également le confort d’été : - Pour les établissements < 500 m2 de surface de plancher, telle que définie par l’article R111-22 du code de l’urbanisme (https://www.legifrance.gouv.fr/codes/article_lc/LEGIARTI000031721274/), l’ADEME recommande de valider avec l’installateur le choix de la solution d’isolation retenue (intérieur, extérieur, type de matériau, …) au regard du confort d’été - Pour les établissements > 500 m2 de surface de plancher, telle que définie par l’article R111-22 du code de l’urbanisme (https://www.legifrance.gouv.fr/codes/article_lc/LEGIARTI000031721274/): se référer aux recommandations de l’audit obligatoire. L’installation est réalisée par un professionnel. Cet investissement peut également bénéficier des Certificats d’économie d’énergie. | O120: =O119 -> 0
C121: ='2-Je choisis mes actions'!B75 -> Isolation des rampants de toiture et plafonds de combles | L121: ='2-Je choisis mes actions'!E75 -> 0 | M121: =IF(P121="Oui","Devis à joindre","Pas besoin de devis") -> Pas besoin de devis | O121: =IF('2-Je choisis mes actions'!I75=0,0,IF(L121>0,1,0)) -> 0 | P121: ='2-Je choisis mes actions'!G75 -> 
C122: Une aide financière peut vous être versée pour l'isolation thermique des rampants de toiture et plafonds de combles. Un audit énergétique préalable (de moins de 2 ans) doit être réalisé pour tout établissement > 500 m2. Le choix technique doit être en accord avec les recommandations de l’audit. Financement possible de l’audit : voir rubrique « Actions de rénovation globale des bâtiments et de qualité de l'air » ci-dessus. Cette isolation devra être réalisée avec des procédés d'isolation constitués de l'association d'un matériau isolant et de dispositifs de fixation et de protection (dont membranes continues si nécessaire) contre des dégradations liées à son exposition aux environnements extérieurs et intérieurs, en conformité avec les règles de l'art. En métropole : la résistance thermique de l'isolation installée répond aux exigences fixées par le fiche CEE BAT-EN-101 : elle est supérieure ou égale à 6 m². K/W. En outre-mer : la résistance thermique de l'isolation installée répond aux exigences fixées par le fiche CEE BAT-EN-106 : elle est supérieure ou égale à 1,2 m². K/W. La résistance thermique est évaluée selon la norme NF EN 12664, la norme NF EN 12667 ou la norme NF EN 12939 pour les isolants non-réfléchissants ou la norme NF EN 16012+A1 pour les isolants réfléchissants. A noter que pour assurer également le confort d’été : - Pour les établissements < 500 m2 de surface de plancher, telle que définie par l’article R111-22 du code de l’urbanisme (https://www.legifrance.gouv.fr/codes/article_lc/LEGIARTI000031721274/), l’ADEME recommande de valider avec l’installateur le choix de la solution d’isolation retenue (intérieur, extérieur, type de matériau, …) au regard du confort d’été - Pour les établissements > 500 m2 de surface de plancher, telle que définie par l’article R111-22 du code de l’urbanisme (https://www.legifrance.gouv.fr/codes/article_lc/LEGIARTI000031721274/) : se référer aux recommandations de l’audit. L’installation est réalisée par un professionnel. Cet investissement peut également bénéficier des Certificats d’économie d’énergie. | O122: =O121 -> 0
C123: ='2-Je choisis mes actions'!B76 -> Isolation des planchers bas sur « espace non chauffé » | L123: ='2-Je choisis mes actions'!E76 -> 0 | M123: =IF(P123="Oui","Devis à joindre","Pas besoin de devis") -> Pas besoin de devis | O123: =IF('2-Je choisis mes actions'!I76=0,0,IF(L123>0,1,0)) -> 0 | P123: ='2-Je choisis mes actions'!G77 -> 
C124: Une aide financière peut vous être versée pour l'isolation thermique des rampants de toiture et plafonds de combles. Un audit énergétique préalable (de moins de 2 ans) doit être réalisé pour tout établissement > 500 m2. Le choix technique doit être en accord avec les recommandations de l’audit. Financement possible de l’audit : voir rubrique « Actions de rénovation globale des bâtiments et de qualité de l'air » ci-dessus. Pour les établissements compris entre 500 et 1000 m2, un audit simplifié réalisé par un conseiller SARE petit Tertiaire de type ActeB2, est accepté. Le choix technique doit être en accord avec les recommandations de l’audit. Cette isolation devra être réalisée avec des procédés d'isolation constitués de l'association d'un matériau isolant et de dispositifs de fixation et de protection (dont membranes continues si nécessaire) contre des dégradations liées à son exposition aux environnements extérieurs et intérieurs, en conformité avec les règles de l'art. En métropole : la résistance thermique de l'isolation installée répond aux exigences fixées par le fiche CEE BAT-EN-101 : elle est supérieure ou égale à 6 m². K/W. En outre-mer : la résistance thermique de l'isolation installée répond aux exigences fixées par le fiche CEE BAT-EN-106 : elle est supérieure ou égale à 1,2 m². K/W. La résistance thermique est évaluée selon la norme NF EN 12664, la norme NF EN 12667 ou la norme NF EN 12939 pour les isolants non-réfléchissants ou la norme NF EN 16012+A1 pour les isolants réfléchissants. A noter que pour assurer également le confort d’été : - Pour les établissements < 500 m2 de surface de plancher, telle que définie par l’article R111-22 du code de l’urbanisme (https://www.legifrance.gouv.fr/codes/article_lc/LEGIARTI000031721274/), l’ADEME recommande de valider avec l’installateur le choix de la solution d’isolation retenue (intérieur, extérieur, type de matériau, …) au regard du confort d’été - Pour les établissements > 500 m2 de surface de plancher, telle que définie par l’article R111-22 du code de l’urbanisme (https://www.legifrance.gouv.fr/codes/article_lc/LEGIARTI000031721274/) : se référer aux recommandations de l’audit. L’installation est réalisée par un professionnel. Cet investissement peut également bénéficier des Certificats d’économie d’énergie. | O124: =O123 -> 0
C125: ='2-Je choisis mes actions'!B77 -> Isolation des murs par l'intérieur | L125: ='2-Je choisis mes actions'!E77 -> 0 | M125: =IF(P125="Oui","Devis à joindre","Pas besoin de devis") -> Pas besoin de devis | O125: =IF('2-Je choisis mes actions'!I77=0,0,IF(L125>0,1,0)) -> 0 | P125: ='2-Je choisis mes actions'!G77 -> 
C126: Une aide financière peut vous être versée pour l'isolation thermique des murs par l’intérieur. Un audit énergétique préalable (de moins de 2 ans) doit être réalisé pour tout établissement > 500 m2. Le choix technique doit être en accord avec les recommandations de l’audit. Financement possible de l’audit : voir rubrique « Actions de rénovation globale des bâtiments et de qualité de l'air » ci-dessus. Pour les établissements compris entre 500 et 1000 m2, un audit simplifié réalisé par un conseiller SARE petit Tertiaire de type ActeB2, est accepté. Le choix technique doit être en accord avec les recommandations de l’audit. Cette isolation devra être réalisée avec des procédés d'isolation constitués de l'association d'un matériau isolant et de dispositifs de fixation et de protection (dont membranes continues si nécessaire) contre des dégradations liées à son exposition aux environnements extérieurs et intérieurs, en conformité avec les règles de l'art. En métropole : la résistance thermique de l'isolation installée répond aux exigences fixées par le fiche CEE BAT-EN-102 : elle est supérieure ou égale à 3,7 m². K/W. En outre-mer : la résistance thermique de l'isolation installée répond aux exigences fixées par le fiche CEE BAT-EN-108 : elle est supérieure ou égale à 1,2 m². K/W. La résistance thermique est évaluée selon la norme NF EN 12664, la norme NF EN 12667 ou la norme NF EN 12939 pour les isolants non-réfléchissants ou la norme NF EN 16012+A1 pour les isolants réfléchissants. A noter que pour assurer également le confort d’été : - Pour les établissements < 500 m2 de surface de plancher, telle que définie par l’article R111-22 du code de l’urbanisme (https://www.legifrance.gouv.fr/codes/article_lc/LEGIARTI000031721274/), l’ADEME recommande de valider avec l’installateur le choix de la solution d’isolation retenue (intérieur, extérieur, type de matériau, …) au regard du confort d’été - Pour les établissements > 500 m2 de surface de plancher, telle que définie par l’article R111-22 du code de l’urbanisme (https://www.legifrance.gouv.fr/codes/article_lc/LEGIARTI000031721274/) : se référer aux recommandations de l’audit. L’installation est réalisée par un professionnel. Cet investissement peut également bénéficier des Certificats d’économie d’énergie. | O126: =O125 -> 0
C127: ='2-Je choisis mes actions'!B78 -> Isolation des murs par l'extérieur | L127: ='2-Je choisis mes actions'!E78 -> 0 | M127: =IF(P127="Oui","Devis à joindre","Pas besoin de devis") -> Pas besoin de devis | O127: =IF('2-Je choisis mes actions'!I78=0,0,IF(L127>0,1,0)) -> 0 | P127: ='2-Je choisis mes actions'!G78 -> 
C128: Une aide financière peut vous être versée pour l'isolation thermique des murs par l’intérieur. Un audit énergétique préalable (de moins de 2 ans) doit être réalisé pour tout établissement > 500 m2. Le choix technique doit être en accord avec les recommandations de l’audit. Financement possible de l’audit : voir rubrique « Actions de rénovation globale des bâtiments et de qualité de l'air » ci-dessus. Pour les établissements compris entre 500 et 1000 m2, un audit simplifié réalisé par un conseiller SARE petit Tertiaire de type ActeB2, est accepté. Le choix technique doit être en accord avec les recommandations de l’audit. Cette isolation devra être réalisée avec des procédés d'isolation constitués de l'association d'un matériau isolant et de dispositifs de fixation et de protection (dont membranes continues si nécessaire) contre des dégradations liées à son exposition aux environnements extérieurs et intérieurs, en conformité avec les règles de l'art. En métropole : la résistance thermique de l'isolation installée répond aux exigences fixées par le fiche CEE BAT-EN-102 : elle est supérieure ou égale à 3,7 m². K/W. En outre-mer : la résistance thermique de l'isolation installée répond aux exigences fixées par le fiche CEE BAT-EN-108 : elle est supérieure ou égale à 1,2 m². K/W. La résistance thermique est évaluée selon la norme NF EN 12664, la norme NF EN 12667 ou la norme NF EN 12939 pour les isolants non-réfléchissants ou la norme NF EN 16012+A1 pour les isolants réfléchissants. A noter que pour assurer également le confort d’été : - Pour les établissements < 500 m2 de surface de plancher, telle que définie par l’article R111-22 du code de l’urbanisme (https://www.legifrance.gouv.fr/codes/article_lc/LEGIARTI000031721274/), l’ADEME recommande de valider avec l’installateur le choix de la solution d’isolation retenue (intérieur, extérieur, type de matériau, …) au regard du confort d’été - Pour les établissements > 500 m2 de surface de plancher, telle que définie par l’article R111-22 du code de l’urbanisme (https://www.legifrance.gouv.fr/codes/article_lc/LEGIARTI000031721274/) : se référer aux recommandations de l’audit. L’installation est réalisée par un professionnel. Cet investissement peut également bénéficier des Certificats d’économie d’énergie. | O128: =O127 -> 0
C129: ='2-Je choisis mes actions'!B79 -> Isolation des toitures-terrasses | L129: ='2-Je choisis mes actions'!E79 -> 0 | M129: =IF(P129="Oui","Devis à joindre","Pas besoin de devis") -> Pas besoin de devis | O129: =IF('2-Je choisis mes actions'!I79=0,0,IF(L129>0,1,0)) -> 0 | P129: ='2-Je choisis mes actions'!G79 -> 
C130: Une aide financière peut vous être versée pour l'isolation thermique des toiture terrasse ou couverture de pente inférieure à 5%. Un audit énergétique préalable (de moins de 2 ans) doit être réalisé pour tout établissement > 500 m2. Le choix technique doit être en accord avec les recommandations de l’audit. Financement possible de l’audit : voir rubrique « Actions de rénovation globale des bâtiments et de qualité de l'air » ci-dessus. Pour les établissements compris entre 500 et 1000 m2, un audit simplifié réalisé par un conseiller SARE petit Tertiaire de type ActeB2, est accepté. Le choix technique doit être en accord avec les recommandations de l’audit. Cette isolation devra être réalisée avec des procédés d'isolation constitués de l'association d'un matériau isolant et de dispositifs de protection (dont membranes continues si nécessaire) contre des dégradations liées à son exposition aux environnements extérieurs et intérieurs, en conformité avec les règles de l'art. En métropole : la résistance thermique de l'isolation installée répond aux exigences fixées par le fiche CEE BAT-EN-107 : elle est supérieure ou égale à 4,5 m². K/W. En outre-mer : la résistance thermique de l'isolation installée répond aux exigences fixées par le fiche CEE BAT-EN-106 : elle est supérieure ou égale à 1,2 m². K/W. La résistance thermique est évaluée selon la norme NF EN 12664, la norme NF EN 12667 ou la norme NF EN 12939 pour les isolants non-réfléchissants ou la norme NF EN 16012+A1 pour les isolants réfléchissants. A noter que pour assurer également le confort d’été : - pour les établissements < 500 m2 de surface de plancher, telle que définie par l’article R111-22 du code de l’urbanisme (https://www.legifrance.gouv.fr/codes/article_lc/LEGIARTI000031721274/), l’ADEME recommande de valider avec l’installateur le choix de la solution d’isolation retenue (intérieur, extérieur, type de matériau, …) au regard du confort d’été - pour les établissements > 500 m2 de surface de plancher, telle que définie par l’article R111-22 du code de l’urbanisme (https://www.legifrance.gouv.fr/codes/article_lc/LEGIARTI000031721274/) : se référer aux recommandations de l’audit. L’installation est réalisée par un professionnel. Cet investissement peut également bénéficier des Certificats d’économie d’énergie. | O130: =O129 -> 0
C131: ='2-Je choisis mes actions'!B80 -> Bardage extérieur ventilé | L131: ='2-Je choisis mes actions'!E80 -> 0 | M131: =IF(P131="Oui","Devis à joindre","Pas besoin de devis") -> Pas besoin de devis | O131: =IF('2-Je choisis mes actions'!I80=0,0,IF(L131>0,1,0)) -> 0
C132: Une aide financière peut vous être versée pour la mise en place de bardage extérieur ventilé. L’installation est réalisée par un professionnel. Un audit énergétique préalable (de moins de 2 ans) doit être réalisé pour tout établissement > 500 m2. Le choix technique doit être en accord avec les recommandations de l’audit. Financement possible de l’audit : voir rubrique « Actions de rénovation globale des bâtiments et de qualité de l'air » ci-dessus. Pour les établissements compris entre 500 et 1000 m2, un audit simplifié réalisé par un conseiller SARE petit Tertiaire de type ActeB2, est accepté. Le choix technique doit être en accord avec les recommandations de l’audit. Les critères suivants doivent être respectés : - au moins 50 % de la totalité des murs extérieurs doit être couverte, - le taux d’ouverture (surface d’ouverture = rapportée à la surface de la paroi) à l’extrémité basse de la paroi est au moins égal à 3 % ; - le taux d’ouverture à l’extrémité haute de la paroi est au moins égal à 3 % ; - la distance horizontale séparant la face intérieure du pare-soleil et la face extérieure de la paroi est telle que, sur toute la hauteur de la paroi, une surface horizontale libre au moins égale à 3 % de la surface de la paroi est ménagée pour assurer le passage libre de l’air. L’application de peintures réfléchissantes sur les murs n’est pas éligible. | O132: =O131 -> 0
C133: ='2-Je choisis mes actions'!B81 -> Ventilation mécanique double flux | L133: ='2-Je choisis mes actions'!E81 -> 0 | M133: =IF(P133="Oui","Devis à joindre","Pas besoin de devis") -> Pas besoin de devis | O133: =IF('2-Je choisis mes actions'!I81=0,0,IF(L133>0,1,0)) -> 0 | P133: ='2-Je choisis mes actions'!G81 -> 
C134: Une aide financière peut vous être versée pour l’installation d’une ventilation mécanique contrôlée (VMC) double flux car elle permet des économies de chauffage en limitant les pertes de chaleur inhérentes à la ventilation. Ce système permet de transférer une partie de la chaleur de l’air vicié extrait du bâtiment à l’air neuf filtré venant de l’extérieur. Un ventilateur pulse cet air neuf préchauffé par le biais de bouche d’insufflation. Le système de ventilation peut disposer d’une régulation en fonction des besoins, mesurés en fonction de paramètres d'occupation, ou d'une régulation par horloge. L’équipement installé doit répondre aux exigences fixées par la fiche CEE BAT-TH-126. L’installation est réalisée par un professionnel. Cet investissement peut également bénéficier des Certificats d’économie d’énergie. | O134: =O133 -> 0
C135: ='2-Je choisis mes actions'!B82 -> Mise en place d’un système de gestion technique du bâtiment (GTB) de classe B ou A | L135: ='2-Je choisis mes actions'!E82 -> 0 | M135: =IF(P135="Oui","Devis à joindre","Pas besoin de devis") -> Pas besoin de devis | O135: =IF('2-Je choisis mes actions'!I82=0,0,IF(L135>0,1,0)) -> 0 | P135: ='2-Je choisis mes actions'!G82 -> 
C136: Une aide financière peut vous être versée pour la mise en place d’un système de gestion technique du bâtiment assurant, par un système d’automatisation centralisé, les fonctions de régulation de classe B ou A au sens de la norme NF EN ISO 52120-1 : 2022 pour les usages chauffage, eau chaude sanitaire, climatisation, éclairage et auxiliaires. Les classes B et A correspondent respectivement à : - B : systèmes avancés (gestion au niveau local et monitoring) ; - A : systèmes à performance énergétique élevée (gestion au niveau local avec enregistrement automatique des besoins, monitoring, optimisation durable de l’énergie). Pour la métropole uniquement : Le système doit posséder des programmateurs d’intermittences pour les systèmes de chauffage. Les dispositifs d’optimisation de relance de chaudière doivent être équipés d’une fonction basée sur l’apprentissage adaptatif de l’arrêt et du démarrage optimisé du système de chauffage. L’installation est réalisée par un professionnel. Les mentions de « Norme » et de « Classe » de la GTB doivent être indiqués sur le devis. Cet investissement peut également bénéficier des Certificats d’économie d’énergie (fiche CEE BAT-TH-116 v A38-3) et du crédit d’impôt. Pour les Outre-Mer, le crédit d’impôt impose des conditions supplémentaires. Merci de vérifier l’éligibilité de l’action directement sur la page du crédit d’impôt. Eligibilité du crédit d’impôt – Entreprise réalisant des travaux de rénovation énergétique, sauf micro-entreprises et associations. Les subventions ADEME doivent être déclarées au même titre que les autres aides pour obtenir le crédit d’impôt. Le calcul se fera en fonction des subventions déjà reçues. Pour obtenir toutes les précisions sur le crédit d’impôt : https://entreprendre.service-public.fr/vosdroits/F35585. | O136: =O135 -> 0
C137: Géothermie sur champ de sondes et géostructures énergétiques | L137: ='2-Je choisis mes actions'!E87 -> 0 | M137: =IF(P137="Oui","Devis à joindre","Pas besoin de devis") -> Pas besoin de devis | O137: =IF('2-Je choisis mes actions'!I87=0,0,IF(L137>0,1,0)) -> 0 | P137: ='2-Je choisis mes actions'!G87 -> 
C138: Une aide financière peut vous être versée pour l’investissement dans une pompe à chaleur récupérant la chaleur du sous-sol par le biais de sondes géothermiques , quand cela est prévu dès la construction du bâtiment, par ses fondations (géostructures énergétiques) et dont la production de chaleur renouvelable est inférieure à 25 MWh/an. L’installateur doit calculer les MWh attendus annuellement en comptabilisant l'énergie récupérée dans le sous-sol pour alimenter le bâtiment. Le dimensionnement, calculé par l’installateur ou un tiers, de l’installation géothermique et de ses appoints éventuels devra permettre de garantir un fonctionnement et des performances technico économiques optimisés. Il est fortement recommandé d’avoir un nombre d’heures de fonctionnement de la PAC géothermique à puissance nominale > 1 000 heures. Les PAC géothermiques destinées au chauffage ou au chauffage et à la production d’ECS devront justifier d’un COP machine égal ou supérieur à 4 (mesuré dans les conditions d’essais de la norme européenne EN 14511-2 en régimes de températures 0/-3°C et 30/35°C). Par ailleurs, l'ADEME exige que le bénéficiaire ait recours à des professionnels qualifiés reconnu par l’ADEME RGE Travaux (QUALIPAC module chauffage ou ECS) ou équivalent ou RGE Etudes (OPQIBI 10.07 ou 20.13) ou équivalent. Le recours à un foreur QUALIFORAGE Module Sondes pour les installations sur champ de sondes est obligatoire dans le cadre réglementaire de la géothermie dite de minime importance. NB : Pour des installations sur des serres agricoles, si ces bâtiments ont une consommation énergétique annuelle supérieure à 200 kWh/m², ils doivent avoir une performance énergétique minimale (calculée avec un outil de simulation adéquat de type Hortinergy ou équivalent). Leur coefficient de transmission thermique de la serre (ou coefficient Um - ramené au m² au sol pour l’ensemble des parois) ne doit pas dépasser 5.5 W/m².K pour les serres existantes. Pour mémoire les serres neuves sont exclues du dispositif qui ne concerne que la réhabilitation des bâtiments. Enfin, le planning de mise en culture devra permettre de limiter le chauffage des serres sur les mois de janvier et février à une consigne maximum de 15°C. | O138: =O137 -> 0
C139: ='2-Je choisis mes actions'!B88 -> Géothermie sur eau de nappe, sur eau de mer, sur eaux de surface et sur eaux usées inférieure à 25 MWh EnR/an | L139: ='2-Je choisis mes actions'!E88 -> 0 | M139: =IF(P139="Oui","Devis à joindre","Pas besoin de devis") -> Pas besoin de devis | O139: =IF('2-Je choisis mes actions'!I88=0,0,IF(L139>0,1,0)) -> 0 | P139: ='2-Je choisis mes actions'!G88 -> 
C140: Une aide financière peut vous être versée pour l’investissement dans une pompe à chaleur récupérant la chaleur de sources en eaux souterraines ou superficielles ou sur eau de mer ou sur eaux usées et dont la production de chaleur renouvelable est inférieure à 25 MWh/an. L’installateur doit estimer les MWh attendus annuellement en comptabilisant l'énergie récupérée dans les eaux pour alimenter le bâtiment. Le dimensionnement, calculé par l’installateur ou un tiers, de l’installation géothermique et de ses appoints éventuels devra permettre de garantir un fonctionnement et des performances technico économiques optimisés. Il est fortement recommandé d’avoir un nombre d’heure de fonctionnement de la PAC géothermique à puissance nominale > 1 000 heures. Les PAC géothermiques destinées au chauffage ou au chauffage et à la production d’ECS devront justifier d’un COP machine égal ou supérieur à 4,5 (mesuré dans les conditions d’essais de la norme européenne EN 14511-2 en régimes de températures 10/7°C et 30/35°C) ; Par ailleurs, l'ADEME exige que le bénéficiaire ait recours à des professionnels qualifiés reconnu par l’ADEME RGE Travaux (QUALIPAC module chauffage ou ECS ou équivalent) ou RGE Etudes géothermie (OPQIBI 10.07 ou 20.13) ou équivalent. Le recours à un foreur QUALIFORAGE Module Nappe pour les installations sur nappe d’eau souterraine est obligatoire dans le cadre réglementaire de la géothermie dite de minime importance. NB : Pour des installations sur des serres agricoles, si ces bâtiments ont une consommation énergétique annuelle supérieure à 200 kWh/m², ils doivent avoir une performance énergétique minimale (calculée avec un outil de simulation adéquat de type Hortinergy ou équivalent). Leur coefficient de transmission thermique de la serre (ou coefficient Um - ramené au m² au sol pour l’ensemble des parois) ne doit pas dépasser 5.5 W/m².K pour les serres existantes. Pour mémoire les serres neuves sont exclues du dispositif qui ne concerne que la réhabilitation des bâtiments. Enfin, le planning de mise en culture devra permettre de limiter le chauffage des serres sur les mois de janvier et février à une consigne maximum de 15°C. | O140: =O139 -> 0
C141: ='2-Je choisis mes actions'!B89 -> Géocooling | L141: ='2-Je choisis mes actions'!E89 -> 0 | M141: =IF(P141="Oui","Devis à joindre","Pas besoin de devis") -> Pas besoin de devis | O141: =IF('2-Je choisis mes actions'!I89=0,0,IF(L141>0,1,0)) -> 0 | P141: ='2-Je choisis mes actions'!G89 -> 
C142: En complément des aides financières apportées aux investissements dans une pompe à chaleur géothermique produisant du chaud, une aide financière peut vous être versée pour l’investissement dans l’utilisation « directe » de la fraîcheur du sous-sol (c’est-à-dire en by passant la pompe à chaleur) lorsque les locaux nécessitent un rafraîchissement notamment en été : il s’agit du géocooling. L’installateur doit estimer les MWh de rafraîchissement attendus annuellement en comptabilisant l'énergie réinjectée dans le sous-sol pour rafraîchir le bâtiment. | O142: =O141 -> 0
C143: ='2-Je choisis mes actions'!B90 -> Pompe à chaleur (PAC) solaire eau/eau avec surface de capteur < 25 m² | L143: ='2-Je choisis mes actions'!E90 -> 0 | M143: =IF(P143="Oui","Devis à joindre","Pas besoin de devis") -> Pas besoin de devis | O143: =IF('2-Je choisis mes actions'!I90=0,0,IF(L143>0,1,0)) -> 0 | P143: ='2-Je choisis mes actions'!G90 -> 
C144: Une aide financière peut vous être versée pour l’investissement dans une pompe à chaleur eau/eau qui récupère la chaleur de capteurs solaires souples en polypropylène ou hybrides photovoltaïques avec une surface maximum de 25 m². L’installateur doit estimer les MWh attendus annuellement en comptabilisant l'énergie récupérée par les capteurs pour alimenter le bâtiment. Le dimensionnement, calculé par l’installateur ou un tiers, de l’installation solarothermique et de ses appoints éventuels devra permettre de garantir un fonctionnement et des performances technico économiques optimisés. Il est fortement recommandé d’avoir un nombre d’heure de fonctionnement de la PAC à puissance nominale > 1 000 heures. Les capteurs devront être certifiés (CSTBat, SolarKeymark ou équivalents) ou bénéficier d’un Avis Technique du CSTB. Les PAC solaires destinées au chauffage et/ou à la production d’ECS devront justifier d’un COP machine égal ou supérieur à 3,5 (mesuré dans les conditions d’essais de la norme européenne EN 14511 en régimes de températures 10-7°C/40-45°C) ; Par ailleurs, l'ADEME exige que le bénéficiaire ait recours à des professionnels qualifiés reconnu par l’ADEME RGE Travaux QUALIPAC ou équivalent. | O144: =O143 -> 0
C145: ='2-Je choisis mes actions'!B91 -> Solaire thermique avec surface de capteur < 25 m² | L145: ='2-Je choisis mes actions'!E91 -> 0 | M145: =IF(P145="Oui","Devis à joindre","Pas besoin de devis") -> Pas besoin de devis | O145: =IF('2-Je choisis mes actions'!I91=0,0,IF(L145>0,1,0)) -> 0 | P145: ='2-Je choisis mes actions'!G91 -> 
C146: Une aide financière peut vous être versée pour l’investissement dans une installation de production d’eau chaude sanitaire avec des panneaux solaires thermiques dont la surface est de maximum 10 m². L’installateur doit estimer la production solaire en MWh EnR annuel destinée à la production d’eau chaude sanitaire. Cette estimation se base sur une étude de faisabilité, réalisée par l’installateur ou un tiers, conforme au cahier des charges de l’ADEME : https://librairie.ademe.fr/energies-renouvelables-reseaux-et-stockage/700-etude-de-faisabilite-et-de-dimensionnement-d-une-installation-solaire-thermique.html Les capteurs doivent être certifiés Solar Keymark ou équivalent. Par ailleurs, l'ADEME exige que le bénéficiaire ait recours à des professionnels qualifiés reconnu par l’ADEME : - RGE travaux QualiSol ou QualiSol Collectif (ou équivalent) en fonction du type d’installation ou - RGE Etudes solaire thermique 20.10, ou équivalent en respectant l’un des schémas hydrauliques de la schémathèque SOCOL Critères de seuil de productivité : - Atteindre les seuils de productivité énoncé dans le fonds chaleur (350 kwh/m²/an zone nord, 400 kwh/m²/an sud et 450 kwh/m²/an zone méditerranée) Page 6 Carte - Pour les activités à saisonnalité qui ne respecteraient pas les seuils ci-dessus, la productivité doit être égale ou supérieure à 300 kwh/m²/an en zone nord, 350 kwh/m²/an en zone sud et 400 kwh/m²/an en zone méditerranée et respecter un taux de couverture supérieure ou égale à 50 % NB : Dans les 2 cas l’installation devra avoir un système auto-vidangeable NB : Pour des installations sur des serres agricoles, si ces bâtiments ont une consommation énergétique annuelle supérieure à 200 kWh/m², ils doivent avoir une performance énergétique minimale (calculée avec un outil de simulation adéquat de type Hortinergy ou équivalent). Leur coefficient de transmission thermique de la serre (ou coefficient Um - ramené au m² au sol pour l’ensemble des parois) ne doit pas dépasser 5.5 W/m².K pour les serres existantes. Pour mémoire les serres neuves sont exclues du dispositif qui ne concerne que la réhabilitation des bâtiments. | O146: =O145 -> 0
C147: ='2-Je choisis mes actions'!B92 -> Création ou extension d’un réseau de chaleur ou de froid | L147: ='2-Je choisis mes actions'!E92 -> 0 | M147: =IF(P147="Oui","Devis à joindre","Pas besoin de devis") -> Pas besoin de devis | O147: =IF('2-Je choisis mes actions'!I92=0,0,IF(L147>0,1,0)) -> 0 | P147: ='2-Je choisis mes actions'!G92 -> 
C148: Une aide financière peut vous être versée pour la création ou l’extension d’un réseau de chaleur alimenté à plus de 65% par une nouvelle production d’énergie renouvelable. L'aide apportée est calculée au prorata de la longueur du réseau (aller + retour/2). Le raccordement d’un bâtiment tertiaire à un réseau de chaleur peut également donner droit à des Certificats d’économie d’énergie. | O148: =O147 -> 0
C149: ='2-Je choisis mes actions'!B93 -> Chaudière biomasse inférieure à 1200 MWh/an | L149: ='2-Je choisis mes actions'!E93 -> 0 | M149: =IF(P149="Oui","Devis à joindre","Pas besoin de devis") -> Pas besoin de devis | O149: =IF('2-Je choisis mes actions'!I93=0,0,IF(L149>0,1,0)) -> 0 | P149: ='2-Je choisis mes actions'!G93 -> 
C150: Une aide financière peut vous être versée pour l’investissement dans une chaudière d’une production inférieure à 1200MWh par an alimentée par des granulés de bois ou plaquettes forestières. Le dimensionnement, calculé par l’installateur ou un tiers, de l’installation biomasse devra permettre de garantir un régime de fonctionnement élevé à la chaudière. Il est impératif d’éviter un fonctionnement à faible charge, ainsi que des phases de démarrage et d’arrêt de la chaudière fréquentes, phases où les performances au niveau énergétique et qualité de l’air sont dégradées. Il est très fortement recommandé d’avoir un nombre d’heure de fonctionnement à puissance nominale (Production Biomasse en kWh/an) / (Puissance Biomasse en kW) > 1 200 heures. Le rendement thermique à puissance nominale de la chaudière doit être supérieur ou égal à 85%. Pour les chaufferies dont la puissance biomasse est inférieure ou égale à 500 kW : Pour les installations de petites puissances, le matériel retenu devra être conforme au RÈGLEMENT (UE) 2015/1189 portant application de la directive 2009/125/CE en ce qui concerne les exigences d'écoconception applicables aux chaudières à combustible solide. Les générateurs d’air chaud direct devront respecter des valeurs limites d’émissions de 50 mg/Nm3 pour les poussières, de 500 mg/Nm3 pour les NOx et de 250 mg/Nm3 pour le CO à teneur en O2 réelle. Ces performances seront à démontrer par la fourniture de PV d’essais en laboratoire. Pour les chaufferies dont la puissance biomasse est supérieure à 500 kW : Ces chaudières devront être équipées de système de filtration (filtre à manche ou électrofiltre) dans l’objectif de respecter les valeurs limites d’émissions suivantes : 50 mg/Nm3 pour les poussières, de 500 mg/Nm3 pour les NOx et de 250 mg/Nm3 pour le CO à 6% d’O2. Les générateurs d’air chaud direct devront respecter ces mêmes valeurs limites d’émissions mais à teneur en O2 réelle. L’ADEME recommande que les entreprises qui réalisent ce type d'installation soient RGE (reconnu garent de l'environnement), QUALIBOIS module Eau ou équivalent. Pour des installations sur des serres agricoles, si ces bâtiments ont une consommation énergétique annuelle supérieure à 200 kWh/m², ils doivent avoir une performance énergétique minimale (calculée avec un outil de simulation adéquat de type Hortinergy ou équivalent). Leur coefficient de transmission thermique de la serre (ou coefficient Um - ramené au m² au sol pour l’ensemble des parois) ne doit pas dépasser 5.5 W/m2.K pour les serres existantes. Pour mémoire les serres neuves sont exclues du dispositif qui ne concerne que la réhabilitation des bâtiments. | O150: =O149 -> 0
C151: ='2-Je choisis mes actions'!B94 -> Géothermie sur échangeurs compacts (corbeilles ou murs géothermiques) inférieure à 25 MWh EnR/an | L151: ='2-Je choisis mes actions'!E94 -> 0 | M151: =IF(P151="Oui","Devis à joindre","Pas besoin de devis") -> Pas besoin de devis | O151: =IF('2-Je choisis mes actions'!I94=0,0,IF(L151>0,1,0)) -> 0 | P151: ='2-Je choisis mes actions'!G94 -> 
C152: Une aide financière peut vous être versée pour l’investissement dans une pompe à chaleur récupérant la chaleur de la proche surface par le biais d’échangeurs compacts (type corbeilles ou murs géothermiques) et dont la production de chaleur renouvelable est inférieure à 25 MWh/an. L’installateur doit calculer les MWh attendus annuellement en comptabilisant l'énergie récupérée dans le sol pour alimenter le bâtiment. Le dimensionnement, calculé par l’installateur ou un tiers, de l’installation géothermique et de ses appoints éventuels devra permettre de garantir un fonctionnement et des performances technico économiques optimisés. Il est fortement recommandé d’avoir un nombre d’heure de fonctionnement de la PAC géothermique à puissance nominale > 1 000 heures. Les PAC géothermiques destinées au chauffage ou au chauffage et à la production d’ECS devront justifier d’un COP machine égal ou supérieur à 4 (mesuré dans les conditions d’essais de la norme européenne EN 14511-2 en régimes de températures 0/-3°C et 30/35°C) ; Par ailleurs, l'ADEME exige que le bénéficiaire ait recours à des professionnels qualifiés reconnu par l’ADEME RGE Travaux (QUALIPAC module chauffage ou ECS ou équivalent) ou RGE Etudes géothermie (notamment OPQIBI 10.07 ou 20.13) ou équivalent NB : Pour des installations sur des serres agricoles, si ces bâtiments ont une consommation énergétique annuelle supérieure à 200 kWh/m², ils doivent avoir une performance énergétique minimale (calculée avec un outil de simulation adéquat de type Hortinergy ou équivalent). Leur coefficient de transmission thermique de la serre (ou coefficient Um - ramené au m² au sol pour l’ensemble des parois) ne doit pas dépasser 5.5 W/m².K pour les serres existantes. Pour mémoire les serres neuves sont exclues du dispositif qui ne concerne que la réhabilitation des bâtiments. Enfin, le planning de mise en culture devra permettre de limiter le chauffage des serres sur les mois de janvier et février à une consigne maximum de 15°C. | O152: =O151 -> 0
C153: ='2-Je choisis mes actions'!B98 -> Remplacement d'un véhicule thermique par un véhicule léger neuf électrique ou transformation /rétrofit électrique | L153: ='2-Je choisis mes actions'!E98 -> 0 | M153: =IF(P153="Oui","Devis à joindre","Pas besoin de devis") -> Pas besoin de devis | O153: =IF('2-Je choisis mes actions'!I98=0,0,IF(L153>0,1,0)) -> 0 | P153: ='2-Je choisis mes actions'!G98 -> 
C154: Une aide financière peut vous être versée pour remplacer un véhicule léger thermique polluant par un véhicule léger électrique ou bien pour transformer un véhicule léger thermique en véhicule électrique (rétrofit). Pour déterminer s’il s’agit d’un véhicule léger, vérifiez sur la carte grise. Votre véhicule est concerné dans le cas suivants : J1 = VP Pour le remplacement : - un véhicule est "polluant" si sa vignette Crit’Air est de 5, 4 et 3. https://www.certificat-air.gouv.fr/fr/simulation - Un site internet est à votre disposition pour vous aider à comparer les modèles des véhicules : https://jechangemavoiture.gouv.fr/jcmv/ - Le véhicule ancien devra impérativement être mis au rebut dans un centre VHU (véhicule hors d'usage) agréé Si vous remplacez votre véhicule léger par une version électrique (achat ou location longue durée crédit bail), vous pourrez également bénéficier du bonus écologique et de la prime à la conversion : https://www.ecologie.gouv.fr/prime-conversion-bonus-ecologique-toutes-aides-en-faveur-mobilite-propre . Pour le rétrofit : Une aide financière peut aussi vous être versé pour transformer un véhicule thermique en véhicule électrique (rétrofit). Plus d'information : https://association-aire.org/ et https://librairie.ademe.fr/mobilite-et-transport/4590-etude-retrofit.html Attention, si vous recevez une aide de l’ADEME, vous devrez ensuite conserver ce véhicule jusqu’à ce qu’il soit amorti dans votre comptabilité. | O154: =O153 -> 0
C155: ='2-Je choisis mes actions'!B99 -> Remplacement d'un véhicule thermique par un véhicule léger neuf GNV ou transformation/rétrofit GNV | L155: ='2-Je choisis mes actions'!E99 -> 0 | M155: =IF(P155="Oui","Devis à joindre","Pas besoin de devis") -> Pas besoin de devis | O155: =IF('2-Je choisis mes actions'!I99=0,0,IF(L155>0,1,0)) -> 0 | P155: ='2-Je choisis mes actions'!G99 -> 
C156: Une aide financière peut vous être versée pour remplacer un véhicule léger thermique polluant par un véhicule léger électrique ou bien pour transformer un véhicule léger thermique en véhicule électrique (rétrofit). Pour déterminer s’il s’agit d’un véhicule léger, vérifiez sur la carte grise. Votre véhicule est concerné dans le cas suivants : J1 = VP Pour le remplacement : - un véhicule est "polluant" si sa vignette Crit’Air est de 5, 4 et 3. https://www.certificat-air.gouv.fr/fr/simulation - Un site internet est à votre disposition pour vous aider à comparer les modèles des véhicules : https://jechangemavoiture.gouv.fr/jcmv/ - Le véhicule ancien devra impérativement être mis au rebut dans un centre VHU (véhicule hors d'usage) agréé Si vous remplacez votre véhicule léger par une version électrique (achat ou location longue durée crédit bail), vous pourrez également bénéficier du bonus écologique et de la prime à la conversion : https://www.ecologie.gouv.fr/prime-conversion-bonus-ecologique-toutes-aides-en-faveur-mobilite-propre . Pour le rétrofit : Une aide financière peut aussi vous être versé pour transformer un véhicule thermique en véhicule électrique (rétrofit). Plus d'information : https://association-aire.org/ et https://librairie.ademe.fr/mobilite-et-transport/4590-etude-retrofit.html Attention, si vous recevez une aide de l’ADEME, vous devrez ensuite conserver ce véhicule jusqu’à ce qu’il soit amorti dans votre comptabilité. | O156: =O155 -> 0
C157: ='2-Je choisis mes actions'!B100 -> Remplacement d'un véhicule thermique par une fourgonnette neuve électrique | L157: ='2-Je choisis mes actions'!E100 -> 0 | M157: =IF(P157="Oui","Devis à joindre","Pas besoin de devis") -> Pas besoin de devis | O157: =IF('2-Je choisis mes actions'!I100=0,0,IF(L157>0,1,0)) -> 0 | P157: ='2-Je choisis mes actions'!G100 -> 
C158: Une aide financière peut vous être versée pour remplacer une fourgonnette thermique polluante par une fourgonnette électrique. Pour déterminer s’il s’agit d’une fourgonnette, vérifiez sur la carte grise. Votre véhicule est concerné si : J1 = CTTE (hors J3 = DERIV VP) et F2 = PTAC ≤ 2500 kg Pour déterminer si le véhicule est polluant : vérifiez sa vignette Crit’Air. Sont concernés les véhicules non classés, Crit’Air 5, 4 et 3. Un site internet vous aide dans cette démarche : https://www.primealaconversion.gouv.fr/dboneco/accueil/ Le véhicule ancien devra impérativement être mis au rebut dans un centre VHU (véhicule hors d'usage) agréé. Si vous souhaitez remplacer votre véhicule par une version électrique (achat ou crédit bail), vous pourrez également bénéficier du bonus écologique et de la prime à la conversion : https://www.ecologie.gouv.fr/prime-conversion-bonus-ecologique-toutes-aides-en-faveur-mobilite-propre Attention, si vous recevez une aide de l’ADEME, vous devrez ensuite conserver ce véhicule jusqu’à ce qu’il soit amorti dans votre comptabilité. | O158: =O157 -> 0
C159: ='2-Je choisis mes actions'!B101 -> Remplacement d'un véhicule thermique par une fourgonnette neuve GNV | L159: ='2-Je choisis mes actions'!E101 -> 0 | M159: =IF(P159="Oui","Devis à joindre","Pas besoin de devis") -> Pas besoin de devis | O159: =IF('2-Je choisis mes actions'!I101=0,0,IF(L159>0,1,0)) -> 0 | P159: ='2-Je choisis mes actions'!G101 -> 
C160: Une aide financière peut vous être versée pour remplacer une fourgonnette thermique polluante par une fourgonnette GNV. Pour déterminer s’il s’agit d’une fourgonnette, vérifiez sur la carte grise. Votre véhicule est concerné si : J1 = CTTE (hors J3 = DERIV VP) et F2 = PTAC ≤ 2500 kg Pour déterminer si le véhicule est polluant : vérifiez sa vignette Crit’Air. Sont concernés les véhicules non classés, Crit’Air 5, 4 et 3. Le véhicule ancien devra impérativement être mis au rebut dans un centre VHU (véhicule hors d'usage) agréé. Attention, si vous recevez une aide de l’ADEME, vous devrez ensuite conserver ce véhicule jusqu’à ce qu’il soit amorti dans votre comptabilité. Lien utile : https://www.gaz-mobilite.fr | O160: =O159 -> 0
C161: ='2-Je choisis mes actions'!B102 -> Remplacement d'un véhicule thermique par un fourgon neuf électrique | L161: ='2-Je choisis mes actions'!E102 -> 0 | M161: =IF(P161="Oui","Devis à joindre","Pas besoin de devis") -> Pas besoin de devis | O161: =IF('2-Je choisis mes actions'!I102=0,0,IF(L161>0,1,0)) -> 0 | P161: ='2-Je choisis mes actions'!G102 -> 
C162: Une aide financière peut vous être versée pour remplacer un fourgon thermique polluant par un fourgon électrique neuf. Pour déterminer s’il s’agit d’un fourgon, vérifiez sur la carte grise. Votre véhicule est concerné dans les deux cas suivants : - J1 = CTTE (hors J3 = DERIV VP) et F2 = PTAC > 2500 kg ; - ou bien J1 = VASP et F2 = PTAC > 2500 kg. Pour déterminer si le véhicule est polluant : vérifiez sa vignette Crit’Air. Sont concernés les véhicules non classés, Crit’Air 5, 4 et 3. Le véhicule ancien devra impérativement être mis au rebut dans un centre VHU (véhicule hors d'usage) agréé. Si vous souhaitez remplacer votre véhicule léger par une version électrique (achat ou crédit bail), vous pourrez également bénéficier du bonus écologique et de la prime à la conversion : https://www.ecologie.gouv.fr/prime-conversion-bonus-ecologique-toutes-aides-en-faveur-mobilite-propre Attention, si vous recevez une aide de l’ADEME, vous devrez ensuite conserver ce véhicule jusqu’à ce qu’il soit amorti dans votre comptabilité. | O162: =O161 -> 0
C163: ='2-Je choisis mes actions'!B103 -> Remplacement d'un véhicule thermique par un fourgon neuf GNV | L163: ='2-Je choisis mes actions'!E103 -> 0 | M163: =IF(P163="Oui","Devis à joindre","Pas besoin de devis") -> Pas besoin de devis | O163: =IF('2-Je choisis mes actions'!I103=0,0,IF(L163>0,1,0)) -> 0 | P163: ='2-Je choisis mes actions'!G103 -> 
C164: Une aide financière peut vous être versée pour remplacer un fourgon thermique par un fourgon GNV. Pour déterminer s’il s’agit d’un fourgon, vérifiez sur la carte grise. Votre véhicule est concerné dans les deux cas suivants : - J1 = CTTE (hors J3 = DERIV VP) et F2 = PTAC > 2500 kg ; - ou bien J1 = VASP et F2 = PTAC > 2500 kg. Pour déterminer si le véhicule est polluant : vérifiez sa vignette Crit’Air. Sont concernés les véhicules non classés, Crit’Air 5, 4 et 3. Le véhicule ancien devra impérativement être mis au rebut dans un centre VHU (véhicule hors d'usage) agréé. Si vous souhaitez remplacer votre fourgon par une version au GNV (gaz naturel pour véhicule) n’oubliez pas qu’en plus de l’aide proposée par l’ADEME vous pourrez également bénéficier d'une aide fiscale de suramortissement : https://bofip.impots.gouv.fr/bofip/1445-PGP.html/identifiant%3DBOI-BIC-AMT-20-30-10-20191218 Attention, si vous recevez une aide de l’ADEME, vous devrez ensuite conserver ce véhicule jusqu’à ce qu’il soit amorti dans votre comptabilité. | O164: =O163 -> 0
C165: ='2-Je choisis mes actions'!B104 -> Remplacement d'un véhicule thermique par un camion neuf électrique dont le PTAC est inf à 7,5 T | L165: ='2-Je choisis mes actions'!E104 -> 0 | M165: =IF(P165="Oui","Devis à joindre","Pas besoin de devis") -> Pas besoin de devis | O165: =IF('2-Je choisis mes actions'!I104=0,0,IF(L165>0,1,0)) -> 0 | P165: ='2-Je choisis mes actions'!G104 -> 
C166: Une aide financière peut vous être versée pour remplacer un camion thermique par un camion électrique. Pour déterminer s’il s’agit d’un camion, vérifiez sur la carte grise. Votre véhicule est concerné dans les deux cas suivants : J= N2 ou N3 ; F2 = PTAC ≤ 7,5T. Pour déterminer si le véhicule est polluant : vérifiez sa vignette Crit’Air. Sont concernés les véhicules non classés, Crit’Air 5, 4 et 3. Le véhicule ancien devra impérativement être mis au rebut dans un centre VHU (véhicule hors d'usage) agréé. Si vous souhaitez remplacer votre camion thermique par un camion électrique, n’oubliez pas qu’en plus de l’aide proposée par l’ADEME vous pouvez également bénéficier du bonus écologique de 50 000 € Attention, si vous recevez une aide de l’ADEME, vous devrez ensuite conserver ce véhicule jusqu’à ce qu’il soit amorti dans votre comptabilité. | O166: =O165 -> 0
C167: ='2-Je choisis mes actions'!B105 -> Remplacement d'un véhicule thermique par un camion neuf GNV dont le PTAC est inf à 7,5 T | L167: ='2-Je choisis mes actions'!E105 -> 0 | M167: =IF(P167="Oui","Devis à joindre","Pas besoin de devis") -> Pas besoin de devis | O167: =IF('2-Je choisis mes actions'!I105=0,0,IF(L167>0,1,0)) -> 0 | P167: ='2-Je choisis mes actions'!G105 -> 
C168: Une aide financière peut vous être versée pour remplacer un camion thermique par un camion neuf GNV. Pour déterminer s’il s’agit d’un camion, vérifiez sur la carte grise. Votre véhicule est concerné dans les deux cas suivants : J= N2 ou N3 ; F2 = PTAC ≤ 7,5T. Pour déterminer si le véhicule est polluant : vérifiez sa vignette Crit’Air. Sont concernés les véhicules non classés, Crit’Air 5, 4 et 3. Le véhicule ancien devra impérativement être mis au rebut dans un centre VHU (véhicule hors d'usage) agréé. Si vous souhaitez remplacer votre camion thermique par un camion GNV, n’oubliez pas qu’en plus de l’aide proposée par l’ADEME vous pouvez également bénéficier d'une aide fiscale de suramortissement : https://bofip.impots.gouv.fr/bofip/1445-PGP.html/identifiant%3DBOI-BIC-AMT-20-30-10-20191218 Attention, si vous recevez une aide de l’ADEME, vous devrez ensuite conserver ce véhicule jusqu’à ce qu’il soit amorti dans votre comptabilité. Lien utile : https://www.gaz-mobilite.fr | O168: =O167 -> 0
C169: ='2-Je choisis mes actions'!B106 -> Remplacement d'un camion thermique ou BOM thermique par un camion neuf électrique ( PTAC inf à 19T) ou une BOM électrique | L169: ='2-Je choisis mes actions'!E106 -> 0 | M169: =IF(P169="Oui","Devis à joindre","Pas besoin de devis") -> Pas besoin de devis | O169: =IF('2-Je choisis mes actions'!I106=0,0,IF(L169>0,1,0)) -> 0 | P169: ='2-Je choisis mes actions'!G106 -> 
C170: Une aide financière peut vous être versée pour remplacer un camion thermique par un camion électrique. Pour déterminer s’il s’agit d’un camion, vérifiez sur la carte grise. Votre véhicule est concerné dans les deux cas suivants : - J= N2 ou N3 ; F2 = PTAC ≤ à 19T - ou pour les VASP, la catégorie N correspondant aux BOM Pour déterminer si le véhicule est polluant : vérifiez sa vignette Crit’Air. Sont concernés les véhicules non classés, Crit’Air 5, 4 et 3. Le véhicule ancien devra impérativement être mis au rebut dans un centre VHU (véhicule hors d'usage) agréé. Si vous souhaitez remplacer votre camion thermique par un camion électrique, n’oubliez pas qu’en plus de l’aide proposée par l’ADEME vous pouvez également bénéficier du bonus écologique de 50 000 € Attention, si vous recevez une aide de l’ADEME, vous devrez ensuite conserver ce véhicule jusqu’à ce qu’il soit amorti dans votre comptabilité. | O170: =O169 -> 0
C171: ='2-Je choisis mes actions'!B107 -> Remplacement d'un véhicule thermique par un camion neuf GNV dont le PTAC est inf ou égal à 19T | L171: ='2-Je choisis mes actions'!E107 -> 0 | M171: =IF(P171="Oui","Devis à joindre","Pas besoin de devis") -> Pas besoin de devis | O171: =IF('2-Je choisis mes actions'!I107=0,0,IF(L171>0,1,0)) -> 0 | P171: ='2-Je choisis mes actions'!G107 -> 
C172: Une aide financière peut vous être versée pour remplacer un camion thermique par un camion neuf GNV. Pour déterminer s’il s’agit d’un camion, vérifiez sur la carte grise. Votre véhicule est concerné dans les deux cas suivants : - J= N2 ou N3 ; F2 = PTAC ≤ 19T - ou pour les VASP, la catégorie N correspondant aux BOM Pour déterminer si le véhicule est polluant : vérifiez sa vignette Crit’Air. Sont concernés les véhicules non classés, Crit’Air 5, 4 et 3. Le véhicule ancien devra impérativement être mis au rebut dans un centre VHU (véhicule hors d'usage) agréé. Si vous souhaitez remplacer votre camion thermique par un camion GNV, n’oubliez pas qu’en plus de l’aide proposée par l’ADEME vous pouvez également bénéficier d'une aide fiscale de suramortissement : https://bofip.impots.gouv.fr/bofip/1445-PGP.html/identifiant%3DBOI-BIC-AMT-20-30-10-20191218 Attention, si vous recevez une aide de l’ADEME, vous devrez ensuite conserver ce véhicule jusqu’à ce qu’il soit amorti dans votre comptabilité. | O172: =O171 -> 0
C173: ='2-Je choisis mes actions'!B108 -> Transformation d'une fourgonnette, d'un fourgon ou d'un camion à motorisation thermique en motorisation électrique (retrofit) | L173: ='2-Je choisis mes actions'!E108 -> 0 | M173: =IF(P173="Oui","Devis à joindre","Pas besoin de devis") -> Pas besoin de devis | O173: =IF('2-Je choisis mes actions'!I108=0,0,IF(L173>0,1,0)) -> 0 | P173: ='2-Je choisis mes actions'!G108 -> 
C174: Une aide financière peut vous être versée pour transformer votre fourgonnette à motorisation thermique en motorisation électrique à batterie ou à pile à combustible (rétrofit). Vérifiez sur la carte grise. Votre véhicule est concerné dans les cas suivants : - J1 = CTTE (hors J3 = DERIV VP) - J1 = VASP et F2 = PTAC > 2500 kg - J= N2 ou N3 ; F2 = PTAC ≤ 19T - ou pour les VASP, la catégorie N Pour en savoir plus : https://association-aire.org/ et https://librairie.ademe.fr/mobilite-et-transport/4590-etude-retrofit.html Attention, si vous recevez une aide de l’ADEME, vous devrez ensuite conserver ce véhicule jusqu’à ce qu’il soit amorti dans votre comptabilité. | O174: =O173 -> 0
C175: ='2-Je choisis mes actions'!B109 -> Transformation d'une fourgonnette, d'un fourgon ou d'un camion à motorisation thermique en motorisation GNV (retrofit) | L175: ='2-Je choisis mes actions'!E109 -> 0 | M175: =IF(P175="Oui","Devis à joindre","Pas besoin de devis") -> Pas besoin de devis | O175: =IF('2-Je choisis mes actions'!I109=0,0,IF(L175>0,1,0)) -> 0 | P175: ='2-Je choisis mes actions'!G109 -> 
C176: Une aide financière peut vous être versée pour transformer votre fourgonnette, fourgon ou camion à motorisation thermique diesel en motorisation fonctionnant au GNV (rétrofit). Vérifiez sur la carte grise. Votre véhicule est concerné dans les cas suivants : - J1 = CTTE (hors J3 = DERIV VP) - J1 = VASP et F2 = PTAC > 2500 kg - J= N2 ou N3 ; F2 = PTAC ≤ 19T - ou pour les VASP, la catégorie N Pour en savoir plus : https://association-aire.org/ et https://librairie.ademe.fr/mobilite-et-transport/4590-etude-retrofit.html Attention, si vous recevez une aide de l’ADEME, vous devrez ensuite conserver ce véhicule jusqu’à ce qu’il soit amorti dans votre comptabilité. | O176: =O175 -> 0
C177: ='2-Je choisis mes actions'!B110 -> Véhicule utilitaire léger frigorifique : achat d’un groupe frigorifique électrique | L177: ='2-Je choisis mes actions'!E110 -> 0 | M177: =IF(P177="Oui","Devis à joindre","Pas besoin de devis") -> Pas besoin de devis | O177: =IF('2-Je choisis mes actions'!I110=0,0,IF(L177>0,1,0)) -> 0 | P177: ='2-Je choisis mes actions'!G110 -> 
C178: Une aide financière peut vous être versée pour l'achat et l'installation d'un groupe frigorifique électrique et le cas échéant d'une batterie additionnelle sur un véhicule utilitaire léger neuf ou immatriculé après le 01/09/2020 équipé d'une caisse isotherme agréée. Cette mesure recouvre l'achat et l'installation d'un groupe frigorifique électrique et le cas échéant d'une batterie additionnelle sur un véhicule utilitaire léger neuf équipé d'une caisse isotherme agréée. | O178: =O177 -> 0
C179: ='2-Je choisis mes actions'!B111 -> Vélo de service à assistance électrique, pliant ou adapté PMR | L179: ='2-Je choisis mes actions'!E111 -> 0 | M179: =IF(P179="Oui","Devis à joindre","Pas besoin de devis") -> Pas besoin de devis | O179: =IF('2-Je choisis mes actions'!I111=0,0,IF(L179>0,1,0)) -> 0 | P179: ='2-Je choisis mes actions'!G111 -> 
C180: Une aide financière peut vous être versée pour compléter votre flotte de véhicule par un vélo à assistance électrique, un vélo pliant (à assistance électrique ou non) ou un vélo adapté aux PMR (à assistance électrique ou non). Le vélo sera équipé d'un compteur permettant de connaître les kilomètres réalisés. | O180: =O179 -> 0
C181: ='2-Je choisis mes actions'!B112 -> Vélo cargo pour un usage professionnel | L181: ='2-Je choisis mes actions'!E112 -> 0 | M181: =IF(P181="Oui","Devis à joindre","Pas besoin de devis") -> Pas besoin de devis | O181: =IF('2-Je choisis mes actions'!I112=0,0,IF(L181>0,1,0)) -> 0 | P181: ='2-Je choisis mes actions'!G112 -> 
C182: Une aide financière peut vous être versée pour l’achat d’un vélo cargo, à assistance électrique ou non, réservé à un usage professionnel comme la livraison à la clientèle. Est considéré comme vélo-cargo, un cycle à deux ou 3 roues vendu pour transporter davantage de charge qu’un pilote avec 30kg de chargement supplémentaire (25kg à l’arrière et 5kg à l’avant). Cela inclut notamment les biporteurs, les triporteurs et tricycles et, par extension, l’ensemble attelage vélo + remorque (le vélo tracteur est en général un vélo de type tout terrain très solide, capable d’encaisser des chocs importants). Pour la logistique urbaine (livraison, artisans...), une aide financière peut vous être accordée pour l'acquisition d'une remorque vélo ou d'un conteneur vélo permettant de compléter l'équipement d'un vélo cargo ou d'un VAE. Ces matériels sont destinés à un usage permettant de transporter des marchandises. A noter : - vous pouvez bénéficier également du bonus écologique de 1000 € maximum pour l'achat d'un vélo-cargo : https://www.service-public.fr/particuliers/actualites/A15071 - Les vélo-cargos équipés de batteries au plomb ne sont pas éligibles. Attention, si vous recevez une aide de l’ADEME, vous devrez ensuite conserver ce véhicule jusqu’à ce qu’il soit amorti dans votre comptabilité. | O182: =O181 -> 0
C183: ='2-Je choisis mes actions'!B113 -> Abris à vélo avec toit | L183: ='2-Je choisis mes actions'!E113 -> 0 | M183: =IF(P183="Oui","Devis à joindre","Pas besoin de devis") -> Pas besoin de devis | O183: =IF('2-Je choisis mes actions'!I113=0,0,IF(L183>0,1,0)) -> 0 | P183: ='2-Je choisis mes actions'!G113 -> 
C184: Une aide financière peut vous être versée pour l’installation d'abris à vélo avec toit à destination de vos salariés et de vos clients pour les déplacements quotidiens domicile-travail ainsi que les déplacements professionnels. Celui-ci doit être conforme au référentiel du programme CEE Alveole : https://drive.google.com/file/d/14oef0j1SwHWJO4WYPoIXVkbFNICgyFyQ/view Vous disposez également pour cette opération d'une exonération d'impôt dans le cadre d'une mise à disposition de vélo et des équipements de sécurité associés auprès de vos salariés comme précisé ici : https://bofip.impots.gouv.fr/bofip/10630-PGP.html/identifiant=BOI-IS-RICI-20-30-20190213 | O184: =O183 -> 0
C185: ='2-Je choisis mes actions'!B114 -> Diagnostic de flottes de véhicules | L185: ='2-Je choisis mes actions'!E114 -> 0 | M185: =IF(P185="Oui","Devis à joindre","Pas besoin de devis") -> Pas besoin de devis | O185: =IF('2-Je choisis mes actions'!I114=0,0,IF(L185>0,1,0)) -> 0 | P185: ='2-Je choisis mes actions'!G114 -> 
C186: Une aide financière peut vous être versée pour financer un diagnostic de flottes de véhicules assuré par un prestataire extérieur. L'objectif de cette étude est d'analyser votre flotte de véhicules en vu de l'optimiser et de favoriser un renouvellement en véhicules moins polluants. Le cahier des charges est disponible à l'adresse : https://librairie.ademe.fr/air-et-bruit/4547-diagnostic-d-optimisation-de-flottes-de-vehicules.html. Pour une action plus ambitieuse, la méthodologie Mobilipro pourra être utilisée. Le gestionnaire de la flotte et le bureau d’étude spécialisé mènent ensemble le processus de suivi et d’évaluation des économies financières réalisées, des polluants et du CO2 évités. Plus d'informations concernant MOBILIPRO : https://nouvelle-aquitaine.ademe.fr/collectivites-et-secteur-public/animer-mon-territoire/mobilipro-optimiser-les-deplacements-professionnels | O186: =O185 -> 0
C187: ='2-Je choisis mes actions'!B118 -> Etat des lieux et proposition pour trier les déchets de bois, papier/carton, métaux, verre et plastiques ainsi que les fractions minérales et le plâtre | L187: ='2-Je choisis mes actions'!E118 -> 0 | M187: =IF(P187="Oui","Devis à joindre","Pas besoin de devis") -> Pas besoin de devis | O187: =IF('2-Je choisis mes actions'!I118=0,0,IF(L187>0,1,0)) -> 0 | P187: ='2-Je choisis mes actions'!G118 -> 
C188: Une aide financière peut vous être versée pour réaliser un état des lieux et proposer des recommandations afin d’améliorer le tri des déchets valorisables de bois, papier/carton, métaux, verre et plastiques ainsi que les fractions minérales et le plâtre pour le secteur du BTP. Cette aide forfaitaire ne peut être accordée qu'à des entreprises ou des regroupements d'entreprises dont les déchets sont collectés par le service public et dont le volume total de déchets produits est inférieur ou égal à 1100 l/semaine (seuil réglementaire). Elle vise à promouvoir la collecte à la source des déchets de bois, papier/carton, métaux, verre et plastiques (Décret n° 2016-288 du 10 mars 2016 "Obligation de mettre en place le tri 5 flux") ainsi que les fractions minérales et le plâtre pour le secteur du BTP (Art. 74 de la loi AGEC). | O188: =O187 -> 0
C189: ='2-Je choisis mes actions'!B119 -> Analyse de process pour la prévention des déchets (méthode Comptabilité des flux de matière) | L189: ='2-Je choisis mes actions'!E119 -> 0 | M189: =IF(P189="Oui","Devis à joindre","Pas besoin de devis") -> Pas besoin de devis | O189: =IF('2-Je choisis mes actions'!I119=0,0,IF(L189>0,1,0)) -> 0 | P189: ='2-Je choisis mes actions'!G119 -> 
C190: Une aide financière peut vous être versée pour réaliser une étude suivant la méthode de comptabilité des flux de matière. Les entreprises considèrent en général que le coût des déchets se limite aux coûts des prestations extérieures pour collecter et traiter ces déchets. Un déchet génère pourtant d'autres coûts pour l'entreprise, généralement méconnus car diffus et cachés, en particulier le coût de génération du déchet (coût de la matière première qui devient un déchet et coûts du processus qui lui est affecté). Ainsi, en moyenne, la facture de gestion des déchets représente moins de 7 % du coût complet de leurs déchets. La méthode de Comptabilité des Flux de Matières (Material Flow Cost Accounting, MFCA ISO 14051) permet d’identifier et de quantifier les flux et stocks de matières ainsi que les coûts associés. Cette méthode cible tous les flux qui ne contribuent pas à la réalisation du produit final ; elle impute à ces flux tous les coûts s’y rapportant. De cette façon, la méthode MFCA permet de calculer avec précision et fiabilité la répartition des coûts de production entre produits et déchets dans l’objectif de réduire ses pertes et réaliser des économies. | O190: =O189 -> 0
C191: ='2-Je choisis mes actions'!B120 -> Diagnostic pour réduire les emballages ou remplacer des emballages plastiques par d’autres | L191: ='2-Je choisis mes actions'!E120 -> 0 | M191: =IF(P191="Oui","Devis à joindre","Pas besoin de devis") -> Pas besoin de devis | O191: =IF('2-Je choisis mes actions'!I120=0,0,IF(L191>0,1,0)) -> 0 | P191: ='2-Je choisis mes actions'!G120 -> 
C192: Une aide financière peut vous être versée pour financer un diagnostic devant servir à la réduction des emballages et le remplacement des emballages plastiques. Ce diagnostic consiste en : - la réalisation d’un état des lieux des emballages utilisés et des fonctionnalités auxquelles ils doivent répondre ; - la proposition et priorisation d’actions d’écoconception envisageables. Ces actions portent en particulier sur la réduction des emballages, la mise en place de systèmes de réemploi, l’amélioration de la recyclabilité et la substitution du plastique à usage unique par d’autres matériaux. L’aide prend en compte le coût d’un consultant externe et les frais en interne pour rassembler la documentation nécessaire sur les emballages utilisés et les fonctionnalités attendus. Les coûts internes ne doivent pas dépasser 50% des coûts externes. Vous acceptez alors d’être contacté par l’ADEME pour partager votre diagnostic, dans le respect de la confidentialité de vos données. Pour aider à la réalisation : « recommandations pour réaliser un diagnostic emballage » téléchargeable dans la médiathèque sur https://librairie.ademe.fr/dechets-economie-circulaire/4339-recommandations-pour-un-diagnostic-emballage.html | O192: =O191 -> 0
C193: ='2-Je choisis mes actions'!B121 -> Soutien aux réparateurs : aide à l'investissement matériel (uniquement investissement matériel ou logiciels de réparation hors matériel informatique, services ou logiciels de gestion) | L193: ='2-Je choisis mes actions'!E121 -> 0 | M193: =IF(P193="Oui","Devis à joindre","Pas besoin de devis") -> Pas besoin de devis | O193: =IF('2-Je choisis mes actions'!I121=0,0,IF(L193>0,1,0)) -> 0 | P193: ='2-Je choisis mes actions'!G121 -> 
C194: Il s’agit d’une aide forfaitaire qui vise à financer de l’investissement tels que l’achat d’outils ou d’équipements de réparation ainsi que logiciels permettant l’acte de réparation (exclusion des logiciels de gestion de l'activité). Ces aides ont pour objectifs de faciliter le travail de réparation et de professionnaliser les secteurs de la réparation. Cette aide forfaitaire ne concerne que les réparateurs (hors auto et vélo). Elle ne concerne pas les investissements en équipements informatiques, services ou logiciels de gestion. | O194: =O193 -> 0
C195: ='2-Je choisis mes actions'!B122 -> Bilan des matières entrantes dans et sortantes de l’entreprise (méthode Bilan matière) | L195: ='2-Je choisis mes actions'!E122 -> 0 | M195: =IF(P195="Oui","Devis à joindre","Pas besoin de devis") -> Pas besoin de devis | O195: =IF('2-Je choisis mes actions'!I122=0,0,IF(L195>0,1,0)) -> 0 | P195: ='2-Je choisis mes actions'!G122 -> 
C196: Une aide financière peut vous être versée pour couvrir les coûts de réalisation d’un Bilan de toutes les matières entrant et sortant de votre entreprise. Cette mesure s’adresse aux entreprises industrielles de transformation, le Bilan Matières vous permet de préciser vos enjeux en rapport avec les matières que vous utilisez : vulnérabilité et risques à anticiper sur l’ensemble de votre chaîne de valeur (fournisseurs, approvisionnement, qualité). Le bilan vous permettra également de réduire les consommations de matières premières et donc de réaliser des gains économiques et d’améliorer vos performances. | O196: =O195 -> 0
C197: ='2-Je choisis mes actions'!B123 -> Récupération des eaux de pluie | L197: ='2-Je choisis mes actions'!E123 -> 0 | M197: =IF(P197="Oui","Devis à joindre","Pas besoin de devis") -> Pas besoin de devis | O197: =IF('2-Je choisis mes actions'!I123=0,0,IF(L197>0,1,0)) -> 0 | P197: ='2-Je choisis mes actions'!G123 -> 
C198: Une aide financière peut vous être versée pour couvrir les coûts d’achat de cuves d’au moins 10m3, pour récupérer les eaux de pluie de votre bâtiment existant. Ces cuves doivent être enterrées et associées à un système de filtration en amont et de gestion des surpressions en aval. Cette aide exclut les bassins. Un maximum de 30m3 (3 cuves de 10m3) de récupération d’eau de pluie sera aidé. Concernant l’usage de l’eau de pluie, merci de vous reporter à la réglementation en vigueur. | O198: =O197 -> 0
C199: ='2-Je choisis mes actions'!B124 -> Broyeurs de végétaux | L199: ='2-Je choisis mes actions'!E124 -> 0 | M199: =IF(P199="Oui","Devis à joindre","Pas besoin de devis") -> Pas besoin de devis | O199: =IF('2-Je choisis mes actions'!I124=0,0,IF(L199>0,1,0)) -> 0 | P199: ='2-Je choisis mes actions'!G124 -> 
C200: Une aide financière peut vous être versée pour couvrir les coûts d’achat d’un broyeur de végétaux permettant leur valorisation sur place en paillage L'objectif est de réduire le volume de végétaux à transporter en déchèterie. Un seul broyeur aidé par entreprise. Cette aide n’est pas éligible pour les locatiers de matériel. | O200: =O199 -> 0
C201: ='2-Je choisis mes actions'!B125 -> Concasseur mobile (déchets inertes du BTP) | L201: ='2-Je choisis mes actions'!E125 -> 0 | M201: =IF(P201="Oui","Devis à joindre","Pas besoin de devis") -> Pas besoin de devis | O201: =IF('2-Je choisis mes actions'!I125=0,0,IF(L201>0,1,0)) -> 0 | P201: ='2-Je choisis mes actions'!G125 -> 
C202: Une aide financière peut vous être versée pour couvrir les coûts d’acquisition d’un équipement (concasseur mobile) permettant la réduction du volume de déchets inertes sur chantier. Cette aide forfaitaire ne concerne que les entreprises du bâtiment. | O202: =O201 -> 0
C203: ='2-Je choisis mes actions'!B126 -> Préparation des biodéchets : mise en place du tri, pré-collecte, formation du personnel, signalétique | L203: ='2-Je choisis mes actions'!E126 -> 0 | M203: =IF(P203="Oui","Devis à joindre","Pas besoin de devis") -> Pas besoin de devis | O203: =IF('2-Je choisis mes actions'!I126=0,0,IF(L203>0,1,0)) -> 0 | P203: ='2-Je choisis mes actions'!G126 -> 
C204: Une aide financière peut vous être versée pour financer les équipements utiles en amont de la phase de traitement des déchets de cuisine et de table à savoir : les tables de tri, la formation du personnel au nouveau geste de tri, la signalétique, les éventuelles adaptations des locaux et les bacs de tri (du boisseau à la caisse palette en passant par le bac de collecte classique). Cette aide est destinée aux entreprises produisant moins de 10 t/an de biodéchets (seuil réglementaire). | O204: =O203 -> 0
C205: ='2-Je choisis mes actions'!B127 -> Composteur en bac pour biodéchets | L205: ='2-Je choisis mes actions'!E127 -> 0 | M205: =IF(P205="Oui","Devis à joindre","Pas besoin de devis") -> Pas besoin de devis | O205: =IF('2-Je choisis mes actions'!I127=0,0,IF(L205>0,1,0)) -> 0 | P205: ='2-Je choisis mes actions'!G127 -> 
C206: Une aide financière peut vous être versée pour financer un composteur en bac. Le composteur en bac est un équipement individuel ou collectif destiné au compostage des biodéchets. Il est généralement constitué d'une ossature en bois ou en plastique, munie d'un couvercle ainsi que d'une grille anti-rongeurs (recommandations ADEME). Il doit permettre l'apport de broyat, le brassage régulier du tas en cours de compostage (ventilation) afin de permettre la production d'un compost de qualité. La capacité du site de compostage doit être corrélée à la production de biodéchets et en adéquation avec la réglementation (circulaire de 2012 et arrêté du 9 avril 2018). Pour rappel, le compost produit sera utilisé exclusivement par le producteur de biodéchets et seulement pour son propre usage, conformément à cette réglementation. Pour davantage de conseils se référer aux documents suivants : Le compostage et le paillage : https://www.ademe.fr/sites/default/files/assets/documents/guide-pratique-compostage-et-paillage.pdf https://agirpourlatransition.ademe.fr/particuliers/maison/jardinage/compost-a-faire-tas-bac L'aide de l'ADEME est destinée aux entreprises produisant moins de 5 t/an de biodéchets (seuil réglementaire). | O206: =O205 -> 0
C207: ='2-Je choisis mes actions'!B128 -> Pavillon de compostage pour biodéchets | L207: ='2-Je choisis mes actions'!E128 -> 0 | M207: =IF(P207="Oui","Devis à joindre","Pas besoin de devis") -> Pas besoin de devis | O207: =IF('2-Je choisis mes actions'!I128=0,0,IF(L207>0,1,0)) -> 0 | P207: ='2-Je choisis mes actions'!G128 -> 
C208: Une aide financière peut vous être versée pour financer un pavillon de compostage. Le pavillon de compostage est un équipement individuel ou collectif destiné au compostage des biodéchets. Il est généralement constitué d'un chalet en bois, compartimenté en 2 parties distinctes fermées appelées « casiers ». A côté de cette partie fermée, un emplacement est dédié au stockage du broyat végétal à mélanger avec les biodéchets afin d'obtenir le meilleur mélange possible et la production d'un compost de qualité. La capacité du site de compostage doit être corrélée à la production de biodéchets et en adéquation avec la réglementation (circulaire de 2012 et arrêté du 9 avril 2018). Pour rappel, le compost produit sera utilisé exclusivement par le producteur de biodéchets et seulement pour son propre usage, conformément à cette réglementation. Pour davantage de conseils se référer aux documents suivants : Le compostage et le paillage : https://www.ademe.fr/sites/default/files/assets/documents/guide-pratique-compostage-et-paillage.pdf L'aide de l'ADEME est destinée aux entreprises produisant moins de 5 t/an de biodéchets (seuil réglementaire). | O208: =O207 -> 0
C209: ='2-Je choisis mes actions'!B129 -> Diagnostic préalable à la gestion des déchets internes des professionnels | L209: ='2-Je choisis mes actions'!E129 -> 0 | M209: =IF(P209="Oui","Devis à joindre","Pas besoin de devis") -> Pas besoin de devis | O209: =IF('2-Je choisis mes actions'!I129=0,0,IF(L209>0,1,0)) -> 0 | P209: ='2-Je choisis mes actions'!G129 -> 
C210: Une aide financière peut vous être versée pour financer un diagnostic devant servir à la réduction/ optimisation / valorisation / mise en place du tri sélectif des déchets d’une entreprise. Les demandeurs doivent respecter la réglementation en vigueur. Les actions de mise en conformité réglementaire ne sont pas éligibles (ex. : Décret Tri 5-7 flux https://librairie.ademe.fr/dechets-economie-circulaire/1951-obligation-tri-5-flux-9791029708374.html ) et/ou concernant des déchets soumis à filière REP (emballages, DEEE, mobilier, piles et accumulateurs, textiles, etc.), ainsi que les électro-composteurs (pour la valorisation des biodéchets internes) ne sont pas éligibles à ce dispositif. | O210: =O209 -> 0
C211: ='2-Je choisis mes actions'!B130 -> Diagnostic aux investissements pour la gestion des biodéchets des professionnels | L211: ='2-Je choisis mes actions'!E130 -> 0 | M211: =IF(P211="Oui","Devis à joindre","Pas besoin de devis") -> Pas besoin de devis | O211: =IF('2-Je choisis mes actions'!I130=0,0,IF(L211>0,1,0)) -> 0 | P211: ='2-Je choisis mes actions'!G130 -> 
C212: Une aide financière peut vous être versée pour financer un diagnostic devant servir à la réduction (dont lutte contre le gaspillage alimentaire) / valorisation / mise en place du tri sélectif des biodéchets générés par une entreprise. Les demandeurs doivent respecter la réglementation en vigueur. Les aides visent les producteurs de biodéchets non soumis à l’obligation de tri (non éligible : gros producteurs > 10t/an biodéchets). | O212: =O211 -> 0
C213: ='2-Je choisis mes actions'!B131 -> Diagnostic préalable aux investissements de réemploi, réparation, réutilisation (hors emballage plastique) | L213: ='2-Je choisis mes actions'!E131 -> 0 | M213: =IF(P213="Oui","Devis à joindre","Pas besoin de devis") -> Pas besoin de devis | O213: =IF('2-Je choisis mes actions'!I131=0,0,IF(L213>0,1,0)) -> 0 | P213: ='2-Je choisis mes actions'!G131 -> 
... 42 more rows

Sheet Volet financier B (hidden)
C1: ="Date de version du fichier : "&TEXT(Accueil!C78,"JJ/MM/AAAA") -> Date de version du fichier : 04/12/2023
C2: =TODAY() -> 2023-12-04
A3: INFORMATION SUR L'ENTREPRISE
I4: Fonds chaleur : | J4: =CONSTANTES!B4 -> 1
B5: Secteur d'activité | I5: UG : | J5: =IFERROR(VLOOKUP('1-J''identifie mon entreprise'!$C$24,LIST_GEO!$H:$I,2,FALSE),"DR - Dir. Exécutive des Territoires") -> DR - Dir. Exécutive des Territoires
B7: Nom de l'entreprise : | C7: ='1-J''identifie mon entreprise'!$E$66 -> 0 | L7: 1
L8: 1
B9: Code Naf : | C9: =code_naf ->  | D9: =IFERROR(VLOOKUP(code_naf,LIST_NAF!#REF!,4,FALSE),"") ->  | L9: 1
L10: 1
C11: Entreprise qui dispose d'un bâtiments industriels : | D11: =IF(ch_bat_indus="","",ch_bat_indus) ->  | L11: =IF(aff_bat=1,1,0) -> 0
L12: =L13 -> 0
C13: secteur d'activité spécifique : | D13: =IF('1-J''identifie mon entreprise'!$D$16="","",'1-J''identifie mon entreprise'!$D$16) ->  | L13: =IF(code_naf="9529Z",1,0) -> 0
L14: 1
C15: =IF(aff_collectivite=1,"collectivité locale :","régime micro-entreprise :") -> régime micro-entreprise : | D15: =IF(aff_collectivite=1,collectivite_locale,IF(micro_entreprise="","",micro_entreprise)) ->  | L15: 1
L16: 1
B17: Code postal | L17: 1
L18: 1
B19: Département : | C19: =IF(partenaire_sci="Oui",'1-J''identifie mon entreprise'!D30,ch_departement) -> 0 | D19: Ville : | E19: =IF(partenaire_sci="Oui",'1-J''identifie mon entreprise'!E30,'1-J''identifie mon entreprise'!$E$24) -> 0 | L19: 1
L20: 1
B21: Partenariat Fonds Tourisme durable | L21: =IF(L27=1,1,IF(partenariat=0,0,1)) -> 0
L22: =L23 -> 0
E23: Avez-vous une activité d’hébergement touristique liée au tourisme social : | F23: =IF(ch_ftd_social="","",ch_ftd_social) ->  | L23: =IF(ftd_social=0,0,1) -> 0
L24: =L25 -> 0
E25: ='1-J''identifie mon entreprise'!E34 -> Avez-vous une activité de restauration ou d’hébergement touristique liée à l’agritourisme qui représente au minimum 20% de votre chiffre d’affaire : | F25: =IF(ch_fdt_agri="","",ch_fdt_agri) -> Non | L25: =IF(fdt_agri=0,0,1) -> 0
L26: =L27 -> 0
E27: Si vous avez un code partenaire fonds tourisme durable, veuillez l'indiquer ici : | F27: =IF(OR(code_part=1,partenaire_sci="Oui"),IF(ch_code_partenaire="","",ch_code_partenaire),"") ->  | L27: =IF(LEFT(F27,3)="FTD",1,0) -> 0
L28: =L29 -> 0
C29: ='1-J''identifie mon entreprise'!C39 -> Avez-vous également une activité d'hébergement : | D29: =IF('1-J''identifie mon entreprise'!$D$39="","",'1-J''identifie mon entreprise'!$D$39) ->  | L29: =IF(act_ftd=0,0,1) -> 0
L30: =L21 -> 0
A31: ACTIONS SÉLÉCTIONNÉES | L31: 1
L32: 1
B33: ='2-Je choisis mes actions'!B5 -> Nom de l'action | C33: ='2-Je choisis mes actions'!C5 -> Quantité | D33: ='2-Je choisis mes actions'!D5 -> Type d'unité | E33: ='2-Je choisis mes actions'!E5 -> Coût prévisionnel total HT | F33: ='2-Je choisis mes actions'!F5 -> Montant prévisionnel de l'aide ADEME | G33: ='2-Je choisis mes actions'!G5 -> Devis à joindre à la demande d'aide ? | H33: Affichage onglet2- | I33: Poste de dépense AGIR | J33: Précision AGIR | K33: Programme budgétaire | L33: 1
A34: =IF('2-Je choisis mes actions'!I6=0,0,'2-Je choisis mes actions'!J6) -> 0 | B34: ='2-Je choisis mes actions'!B6 -> Modèle d'affaires Restauration durable | C34: ='2-Je choisis mes actions'!C6 -> 0 | D34: ='2-Je choisis mes actions'!D6 -> Oui/Non | E34: =IF(nb_erreur=0,'2-Je choisis mes actions'!E6*$H34,0) -> 0 | F34: =IF(nb_erreur=0,'2-Je choisis mes actions'!F6*$H34,0) -> 0 | G34: =IF('2-Je choisis mes actions'!G6="Oui","Oui","") ->  | H34: ='2-Je choisis mes actions'!I6 -> 0 | I34: Prestations extérieurs - Autres dépenses de sous traitance (études, honoraires, etc.) | J34: Restauration durable - Modèle d'affaires | K34: ='2-Je choisis mes actions'!K6 -> L.ET | L34: =IF(OR(H34=0,E34=0,nb_erreur>0),0,1) -> 0 | M34: ='3-Synthese et finalisation'!C18 -> Un consultant peut vous accompagner dans l’établissement d’un nouveau modèle d’affaires qui visera à mettre en parallèle les évolutions envisageables vers la restauration durable et son impact sur les coûts et la réponse à l’évolution de la demande. Le prestataire évaluera les modalités de mise en œuvre et notamment l’impact financier (investissements et revenus attendus) d'une évolution de l’activité de restauration vers le déploiement de tout ou partie des volets suivants : - Carte de restauration plus durable : équilibre et diversité alimentaire (menus bas carbone, végétalisation des menus…), origine des approvisionnements ; - Circuits courts de proximité et valorisation des produits de qualité, locaux et de saison ; - Nouvelles pratiques culinaires et de conception des menus (modes de cuisson, choix des liaisons et fonds de sauce, mesure des ingrédients …), augmentation du « fait maison » - Pratiques de lutte contre le gaspillage alimentaire, gestion des pertes alimentaires en cuisine et en salle - Maîtrise des consommations de ressources (énergie, eau) et contrats d'énergie verte ; - Mobilités douces des clients ; - Valorisation du patrimoine naturel (ex : refuge LPO). - Définition d’une politique d’achat responsable Le prestataire remettra le rapport final à l’établissement, qui le tiendra à disposition de l’ADEME. | N34: =$K$154*F34 -> 0
A35: =IF('2-Je choisis mes actions'!I7=0,0,'2-Je choisis mes actions'!J7) -> 0 | B35: ='2-Je choisis mes actions'!B7 -> Formation à la cuisine durable et aux éco-gestes en restauration | C35: ='2-Je choisis mes actions'!C7 -> 0 | D35: ='2-Je choisis mes actions'!D7 -> Oui/Non | E35: =IF(nb_erreur=0,'2-Je choisis mes actions'!E7*$H35,0) -> 0 | F35: =IF(nb_erreur=0,'2-Je choisis mes actions'!F7*$H35,0) -> 0 | G35: =IF('2-Je choisis mes actions'!G7="Oui","Oui","") ->  | H35: ='2-Je choisis mes actions'!I7 -> 0 | I35: Prestations extérieurs de formation / communication / animation | J35: Restauration durable - Formation cuisine durable | K35: ='2-Je choisis mes actions'!K7 -> L.ET | L35: 0 | M35: ='3-Synthese et finalisation'!C20 -> Cette action vise à encourager la formation du personnel temporaire et permanent aux enjeux et techniques de l’alimentation durable et aux éco-gestes en restauration. Vous pouvez bénéficier d’une aide pour financer une formation courte pour un ou plusieurs salariés de l’entreprise sur les cuisines végétales ou alternatives, la lutte contre le gaspillage alimentaire, les éco-gestes en restauration, les enjeux environnementaux de l’alimentation, l’alimentation durable etc. La formation doit être dispensée par un organisme de formation habilité. Le bénéficiaire conservera les attestations de formation qu’il tiendra à disposition de l’ADEME. | N35: 0
A36: =IF('2-Je choisis mes actions'!I8=0,0,'2-Je choisis mes actions'!J8) -> 0 | B36: ='2-Je choisis mes actions'!B8 -> Communication - Supports/actions de communication valorisant la restauration durable | C36: ='2-Je choisis mes actions'!C8 -> 0 | D36: ='2-Je choisis mes actions'!D8 -> Oui/Non | E36: =IF(nb_erreur=0,'2-Je choisis mes actions'!E8*$H36,0) -> 0 | F36: =IF(nb_erreur=0,'2-Je choisis mes actions'!F8*$H36,0) -> 0 | G36: =IF('2-Je choisis mes actions'!G8="Oui","Oui","") ->  | H36: ='2-Je choisis mes actions'!I8 -> 0 | I36: Prestations extérieurs de formation / communication / animation | J36: Restauration durable - Communication | K36: ='2-Je choisis mes actions'!K8 -> L.ET | L36: 0 | M36: ='3-Synthese et finalisation'!C22 -> Cette ligne consiste à soutenir les actions de communication pérennes qui mettent en valeur la démarche durable du restaurant, les producteurs et fournisseurs locaux, ainsi que les écogestes dans le restaurant pour les salarié.e.s et pour les client.e.s : achat de supports de communication matériels ou numérique pérennes et/ou actions immatérielles à vocation pérenne. En activant cette ligne, le bénéficiaire s'engage à mettre en avant auprès des clients et des salariés l’alimentation durable, la lutte contre le gaspillage, les approvisionnements de proximité et circuits courts, les éco-gestes ou les engagements environnementaux. Vous pouvez bénéficier d’une aide pour : - Des achats de supports de communication matériels ou numériques pérennes : o L’achat de panneaux/supports en matériaux durables pour les menus du jour ; le renouvellement des cartes pour l’évolution de celle-ci en lien avec les engagements pris et la mise en valeur des approvisionnements locaux / sous labels, à l’exclusion des supports à usage unique. Les panneaux d’affichage électroniques ou écrans ne sont pas éligibles. o L’achat de tableaux/panneaux/supports d’affichage en matériaux biosourcés, naturels ou recyclables, ou supports imprimés à l’exclusion des supports à usage unique pour l’information des client.e.s sur la démarche de transition écologique du restaurant concernant : les actions mises en place sur le restaurant ; les caractéristiques des approvisionnements, notamment alimentaires (local, bio, autres labels…), la valorisation de producteurs partenaires ; le travail réalisé sur les menus et sur la lutte contre le gaspillage ; les éco-gestes au quotidien ; les démarches environnementales du restaurant. Les panneaux d’affichage électroniques ou écrans ne sont pas éligibles. - Les achats de prestations immatérielles : o La création ou l’adaptation de supports de communication imprimés ou numériques (prestation intellectuelle), y compris visuels, photos, stratégie de communication o L’adaptation du site internet ou des supports de communication numérique (réseaux sociaux, plates formes engagées sur la restauration durable) ; dans ce cas le bénéficiaire s'engagera à mettre en place un site éco-conçu et s’appuiera sur les recommandations de l'Institut du numérique responsable. Ne sont pas éligibles les prestations de référencement, recherche de mots-clés. o Référencement et/ou abonnement sur des plateformes de valorisation des restaurants engagés dans des démarches de transition écologique. | N36: 0
A37: =IF('2-Je choisis mes actions'!I9=0,0,'2-Je choisis mes actions'!J9) -> 0 | B37: ='2-Je choisis mes actions'!B9 -> Evolution des approvisionnements et des menus | C37: ='2-Je choisis mes actions'!C9 -> 0 | D37: ='2-Je choisis mes actions'!D9 -> Oui/Non | E37: =IF(nb_erreur=0,'2-Je choisis mes actions'!E9*$H37,0) -> 0 | F37: =IF(nb_erreur=0,'2-Je choisis mes actions'!F9*$H37,0) -> 0 | G37: =IF('2-Je choisis mes actions'!G9="Oui","Oui","") ->  | H37: ='2-Je choisis mes actions'!I9 -> 0 | I37: Autres équipements | J37: Restauration durable - appros et menus | K37: ='2-Je choisis mes actions'!K9 -> L.ET | L37: 0 | M37: ='3-Synthese et finalisation'!C24 -> Cette action vise à faire évoluer les approvisionnements et les menus, en favorisant ; - La relocalisation du circuit d’approvisionnement - L’augmentation et la mise en œuvre du végétal, les produits de qualité et/ou durables, - L’ancrage dans le territoire, - Le fait-maison via l’usage de produits bruts - La conservation des produits frais. Vous pouvez bénéficier d’une aide pour tout matériel de cuisine ou équipement contribuant à l’objectif, par exemple : - Équipements permettant de travailler des produits bruts, végétaux tels que éplucheuses, essoreuses, robots (yaourtière, centrifugeuse, presse-agrume, sorbetière…), aménagement spécifique pour une légumerie etc… - Équipements nécessaires à la relocalisation des approvisionnements, par exemple emballages navettes avec producteurs locaux - Équipements permettant de faire de la conservation non énergivore à partir de produits locaux/de saison, par exemple : conserves, fermentation, garde-manger etc… - Extension, conversion, création d’un potager et/ou verger selon les principes de l’agriculture biologique (pas de certification demandée). Le restaurateur ne pourra pas afficher « produits AB » s’il n’est pas certifié. Les serres sont éligibles à condition de ne pas être chauffées. | N37: 0
A38: =IF('2-Je choisis mes actions'!I10=0,0,'2-Je choisis mes actions'!J10) -> 0 | B38: ='2-Je choisis mes actions'!B10 -> Lutte contre le gaspillage alimentaire | C38: ='2-Je choisis mes actions'!C10 -> 0 | D38: ='2-Je choisis mes actions'!D10 -> Oui/Non | E38: =IF(nb_erreur=0,'2-Je choisis mes actions'!E10*$H38,0) -> 0 | F38: =IF(nb_erreur=0,'2-Je choisis mes actions'!F10*$H38,0) -> 0 | G38: =IF('2-Je choisis mes actions'!G10="Oui","Oui","") ->  | H38: ='2-Je choisis mes actions'!I10 -> 0 | I38: Autres équipements | J38: Restauration durable - Lutte contre le gaspillage alimentaire | K38: ='2-Je choisis mes actions'!K10 -> L.ET | L38: 0 | M38: ='3-Synthese et finalisation'!C26 -> Cette action vise à suivre et réduire le gaspillage alimentaire en cuisine et en salle. Vous pouvez bénéficier d’une aide pour tout matériel ou équipement contribuant à l’objectif, par exemple : - Matériel pour limiter contre le gaspillage en cuisine et assurer une meilleure conservation : thermomètre ou autre système de vérification de la température des aliments, étiqueteuses, déshydrateurs alimentaires, machines sous vide (financement de sacs réutilisables uniquement dans le cas de l’achat d’une machine), stérilisateurs et bocaux associés, pasteurisateurs, autoclaves, garde-manger (de préférence en bois naturel) … - Matériel pour limiter le gaspillage en salle : vaisselle durable adaptable à l'appétit des convives (petites assiettes et grandes assiettes / non éligible dans le cadre d’une création – un seul lot de petites assiettes est éligible par structure), contenants durables pour permettre les dons (à l'exclusion des contenants en plastique), balance pour tarification différenciée au poids… - Matériel pour suivre le gaspillage alimentaire : matériel de pesée des déchets y compris balances connectées, licence de logiciel de suivi des pesées du gaspillage alimentaire, table de tri… A noter, tous les équipements de froid sont financés dans la Rubrique « Mes actions liées à l'efficacité énergétique des équipements de froid commercial » Ne sont pas éligibles : les fours vapeur | N38: 0
A39: =IF('2-Je choisis mes actions'!I11=0,0,'2-Je choisis mes actions'!J11) -> 0 | B39: ='2-Je choisis mes actions'!B11 -> Prévention des déchets non alimentaires en restauration | C39: ='2-Je choisis mes actions'!C11 -> 0 | D39: ='2-Je choisis mes actions'!D11 -> Oui/Non | E39: =IF(nb_erreur=0,'2-Je choisis mes actions'!E11*$H39,0) -> 0 | F39: =IF(nb_erreur=0,'2-Je choisis mes actions'!F11*$H39,0) -> 0 | G39: =IF('2-Je choisis mes actions'!G11="Oui","Oui","") ->  | H39: ='2-Je choisis mes actions'!I11 -> 0 | I39: Autres équipements | J39: Restauration durable - Prévention gestion déchets non alimentaires | K39: ='2-Je choisis mes actions'!K11 -> L.ET | L39: 0 | M39: ='3-Synthese et finalisation'!C28 -> Cette action vise à réduire les déchets non alimentaires, au sein du restaurant / pour l’activité de traiteur : - Réduction des déchets d’emballages - Suppression des produits jetables ou en dose individuelle - Équipements permettant la réduction voire la suppression de la consommation de produits non alimentaires, notamment ceux nécessaires au nettoyage, entretien, lavage Vous pouvez bénéficier d’une aide pour tout matériel ou équipement (hors consommables) contribuant à l’objectif : par exemple, matériel navette fournisseurs, contenants pour stockage de produits vrac, contenants durables pour substitution des emballages individuels (café, thé, sucre, sauces...), les machines à café en grains (si substitution d'une machine à dosette); achat vaisselle/couverts/serviettes/nappes/dessous de table pour substituer du jetable ; achat de lavettes et équipements de protection (charlottes, gants, masques, ..) réutilisables en substitution de jetable, équipements permettant de supprimer l’utilisation de produits dangereux, mise en place de fontaines à eau ou de filtre à eau en substitution des bouteilles plastiques... La location est éligible uniquement si option d’achat (Les coûts éligibles sont sur la totalité de la durée de la location-achat). Le tri et la gestion des bio déchets sont éligibles sur les lignes Tremplin / Economie circulaire. L'acquisition d’emballage ou de contenants réemployables en substitution d'emballages ou contenants en plastique à usage unique (par ex : achat de contenants consignés pour vente à emporter) sont éligibles sur les lignes Tremplin / Economie circulaire. | N39: 0
A40: =IF('2-Je choisis mes actions'!I12=0,0,'2-Je choisis mes actions'!J12) -> 0 | B40: ='2-Je choisis mes actions'!B12 -> Energie - Economie d’énergie en cuisine (cuisson, froid) | C40: ='2-Je choisis mes actions'!C12 -> 0 | D40: ='2-Je choisis mes actions'!D12 -> Oui/Non | E40: =IF(nb_erreur=0,'2-Je choisis mes actions'!E12*$H40,0) -> 0 | F40: =IF(nb_erreur=0,'2-Je choisis mes actions'!F12*$H40,0) -> 0 | G40: =IF('2-Je choisis mes actions'!G12="Oui","Oui","") ->  | H40: ='2-Je choisis mes actions'!I12 -> 0 | I40: Autres équipements | J40: Restauration durable - Economie d’énergie en cuisine | K40: ='2-Je choisis mes actions'!K12 -> L.ET | L40: 0 | M40: ='3-Synthese et finalisation'!C30 -> Cette action vise à réaliser des économies d'énergie en cuisine sur les petits équipements de cuisson, lavage et séchage du linge. A noter que le lavage de la vaisselle est concerné par la ligne Eau-Economie d’eau en cuisine. Vous pouvez bénéficier d’une aide pour tout matériel ou équipement contribuant à : 1/ réduire la consommation d’énergie liée à la cuisson : seuls sont financés les petits équipements non consommateurs d'énergie (pas les gros équipements consommateurs d'énergie). Par exemple : achat de matériel de cuisson permettant des économies (thermostats/thermomètres), équipements permettant de réduire la consommation des appareils de cuisson existants (ex : détecteur de marmite, …), couvercles, équipements pour une cuisson basse consommation (marmite norvégienne ...), fours solaires et fours à bois … A noter : - Fours et appareils de cuisson consommateurs d’énergie non éligibles, sauf les plaques à induction (voir point 3/ ci-dessous) - L’isolation des meubles réfrigérés et chambres froides et le remplacement d’équipements (armoires frigorifiques, fluides par des matériels avec des fluides émettant moins de gaz à effet de serre), sont visés par d’autres lignes de la rubrique « Mes actions liées à l’efficacité énergétique des équipements de froid commercial ». 2/ réduire la consommation d’énergie liée au séchage du linge nécessaire à la restauration tels que nappes, serviettes, textiles de cuisine … La taille des équipements sera évaluée pour garantir un taux de remplissage optimisé pour chaque cycle. L’aide totale sur cette ligne est au maximum de 50 000 €. Critères techniques à respecter pour les sèche-linge : - Seuls sont éligibles les sèche-linge professionnels avec pompe à chaleur, - Energie de séchage inférieure à 0,3 kWh/kg linge pour un cycle de séchage max de 90 min. - Pour exemple, TopTen référence ce type des équipements éligibles : https://www.guidetopten.fr/pro 3/ Remplacement de plaques électriques en fonte par des plaques à induction | N40: 0
A41: =IF('2-Je choisis mes actions'!I13=0,0,'2-Je choisis mes actions'!J13) -> 0 | B41: ='2-Je choisis mes actions'!B13 -> Energie - Confort d'été et d’hiver liés à l’activité de restauration | C41: ='2-Je choisis mes actions'!C13 -> 0 | D41: ='2-Je choisis mes actions'!D13 -> Oui/Non | E41: =IF(nb_erreur=0,'2-Je choisis mes actions'!E13*$H41,0) -> 0 | F41: =IF(nb_erreur=0,'2-Je choisis mes actions'!F13*$H41,0) -> 0 | G41: =IF('2-Je choisis mes actions'!G13="Oui","Oui","") ->  | H41: ='2-Je choisis mes actions'!I13 -> 0 | I41: Autres équipements | J41: Restauration durable - Confort d'été et d’hiver | K41: ='2-Je choisis mes actions'!K13 -> L.ET | L41: 0 | M41: ='3-Synthese et finalisation'!C32 -> 1/ Concernant le confort d’hiver : les actions visent à améliorer le confort thermique à l’intérieur du restaurant et pour la consommation alimentaire en extérieur. CONFORT EXTERIEUR : cette aide exclut tout dispositif de chauffage consommant de l’énergie. Vous pouvez bénéficier d’une aide pour : achat de couvertures, aménagements brise vent etc…. POUR LE CONFORT INTERIEUR : Pour maintenir la consommation d'énergie à un niveau raisonnable, il est nécessaire de réguler les températures en fonction des besoins réels et de l'occupation ou non des différentes zones du restaurant. Il est notamment très important de posséder un dispositif de régulation thermique. Vous pouvez bénéficier d’une aide pour financer des robinets thermostatiques de radiateur, un dispositif de détection d'ouverture de fenêtre permettant d’interrompre le chauffage (et la climatisation si elle est présente), un programmateur horaire, ou un système de gestion par zone des consignes des radiateurs. En activant cette ligne, le bénéficiaire s'engage sur des consignes de température selon leur occupation : 20°C à 22°C si restaurant occupé ; 16°C à 18°C si restaurant inoccupé pendant une courte période ; maintien à 12°C-14°C si inoccupé pendant une longue période. 2/ Concernant le confort d’été : Cette action vise à la fois à maîtriser les consommations d’énergie liées à la climatisation (en été), et à améliorer le confort thermique sur ces saisons, dans le cadre de l’activité de restauration (bâtiment et extérieurs dédiés à l’activité de restauration). Les actions ont pour objectif de limiter voire supprimer l’usage de la climatisation par : - Amélioration de l’ombrage et la préservation du frais à l'extérieur en été ; - Réduction des apports de chaleur à l’intérieur en agissant sur la protection des ouvertures et l’apport de frais par la végétalisation et la désimperméabilisation (suppression des espaces étanches par des espaces perméables végétalisées) L’ensemble de ces actions ne vise pas le remplacement d’équipements déjà existants. L’aide est possible pour un premier achat ou la rénovation et réparation d’équipements existants. Sont éligibles : - Protection des ouvrants : achat et installation de volets, stores pare-soleil intérieurs ou extérieurs, films solaires sur les ouvrants, rideaux occultants thermiques, volets roulants manuels ou solaires, brise soleil, moustiquaires … (pas de remplacement d’équipements déjà existants mais rénovation ou réparation possible) - Création de rafraîchissement par ombrage et évapotranspiration des plantations pour espaces extérieurs de restauration et ombrage des vitrages et murs = uniquement par végétalisation : plantation, pergolas en bois naturel avec ombrage végétal - Végétalisation (plantations endogènes adaptées aux futures conditions climatiques et cohérentes avec la biodiversité locale : choisir des plantes peu gourmandes en eau et privilégier le paillage) : étude climatique et paysagère, préparation et plantation des murs végétaux - Travaux de désimperméabilisation - Plantations adaptées aux conditions climatiques Non éligibles : rideaux, voilages, ombrières, changement de menuiseries en double vitrage | N41: 0
A42: =IF('2-Je choisis mes actions'!I14=0,0,'2-Je choisis mes actions'!J14) -> 0 | B42: ='2-Je choisis mes actions'!B14 -> Ressources - Dispositifs d'économie d'eau en cuisine | C42: ='2-Je choisis mes actions'!C14 -> 0 | D42: ='2-Je choisis mes actions'!D14 -> Oui/Non | E42: =IF(nb_erreur=0,'2-Je choisis mes actions'!E14*$H42,0) -> 0 | F42: =IF(nb_erreur=0,'2-Je choisis mes actions'!F14*$H42,0) -> 0 | G42: =IF('2-Je choisis mes actions'!G14="Oui","Oui","") ->  | H42: ='2-Je choisis mes actions'!I14 -> 0 | I42: Autres équipements | J42: Restauration durable - Economie d'eau cuisine | K42: ='2-Je choisis mes actions'!K14 -> L.ET | L42: 0 | M42: ='3-Synthese et finalisation'!C34 -> Cette action vise à réaliser des économies de matières premières en particulier d'eau en cuisine pour le lavage et la préparation des repas. Cette action concerne les points d'eau des cuisines et uniquement les équipements permettant des économies d’eau. Vous pouvez bénéficier d’une aide pour : - Robinetterie : Les économiseurs d'eau, les mitigeurs d’eau … - Les équipements pour récupérer ou réutiliser l’eau - Les équipements de lavage économes en eau - Equipements de suivi des consommations d’eau L’auto-installation des équipements économiseurs d’eau est autorisée. Non éligibles : les bacs de plonge, lave-vaisselle | N42: 0
A43: =IF('2-Je choisis mes actions'!I15=0,0,'2-Je choisis mes actions'!J15) -> 0 | B43: ='2-Je choisis mes actions'!B15 -> Ressources - Dispositifs d'économie d'eau dans les sanitaires des restaurants / de l’activité de restauration | C43: ='2-Je choisis mes actions'!C15 -> 0 | D43: ='2-Je choisis mes actions'!D15 -> Oui/Non | E43: =IF(nb_erreur=0,'2-Je choisis mes actions'!E15*$H43,0) -> 0 | F43: =IF(nb_erreur=0,'2-Je choisis mes actions'!F15*$H43,0) -> 0 | G43: =IF('2-Je choisis mes actions'!G15="Oui","Oui","") ->  | H43: ='2-Je choisis mes actions'!I15 -> 0 | I43: Autres équipements | J43: Restauration durable - Economie d'eau sanitaires | K43: ='2-Je choisis mes actions'!K15 -> L.ET | L43: 0 | M43: ='3-Synthese et finalisation'!C36 -> Cette action vise à réaliser des économies d'eau dans les sanitaires des restaurants / de l’activité de restauration (sanitaires du personnel et/ou des convives). Vous pouvez bénéficier d’une aide uniquement pour les équipements permettant d’économiser l’eau : - Equipements des lavabos : Les économiseurs d'eau, les robinets mitigeurs pour les lavabos : - Equipements pour les WC : Les chasses d’eau à double commande et/ou plaquette de réservoir pour les toilettes. - Urinoirs avec écoulement déclenché en fonction de la présence, urinoirs sans eau - Equipements de suivi des consommations d’eau - Les toilettes sèches, qui ne requièrent aucune utilisation d'eau. Plusieurs systèmes existent (à compost, à séparation etc.) pouvant convenir aux différentes contraintes d'usage ou de bâtiment. Avant installation, le bénéficiaire se renseignera auprès des compétences locales pour connaître la règlementation inhérente aux départements en matière de toilettes sèches. L’auto-installation des équipements économiseurs d’eau est autorisée. Le bénéficiaire s’engage à mettre en place simultanément une information de ses clients aux éco-gestes et aux économies d’eau. | N43: 0
A44: =IF('2-Je choisis mes actions'!I16=0,0,'2-Je choisis mes actions'!J16) -> 0 | B44: ='2-Je choisis mes actions'!B16 -> Ressources - dispositifs d’économie d’eau pour les espaces extérieurs et potagers liés à l'activité de restauration | C44: ='2-Je choisis mes actions'!C16 -> 0 | D44: ='2-Je choisis mes actions'!D16 -> Oui/Non | E44: =IF(nb_erreur=0,'2-Je choisis mes actions'!E16*$H44,0) -> 0 | F44: =IF(nb_erreur=0,'2-Je choisis mes actions'!F16*$H44,0) -> 0 | G44: =IF('2-Je choisis mes actions'!G16="Oui","Oui","") ->  | H44: ='2-Je choisis mes actions'!I16 -> 0 | I44: Autres équipements | J44: Restauration durable - Economie d’eau extérieurs | K44: ='2-Je choisis mes actions'!K16 -> L.ET | L44: 0 | M44: ='3-Synthese et finalisation'!C38 -> Cette action vise à réaliser des économies de matières premières en particulier d'eau sur les espaces verts directement liés à l’activité de restauration : espaces extérieurs de restauration (jardin, terrasse) et potager/verger lié à l’activité de restauration (herbes aromatiques, production de fruits/légumes utilisés en cuisine). Vous pouvez bénéficier d’une aide pour les dispositifs d’arrosage économes d’arrosage (goutte à goutte etc.), les dispositifs limitant l’évaporation (paillage, …), la culture d’espèces peu gourmandes en eau, adaptées au climat local, le raccordement à un puits existant, récupérateur d’eau de pluie de moins de 10 m3 (au-delà de 10 m3, une aide Tremplin générique est proposée), système de phytoépuration… En bénéficiant de cette aide, le bénéficiaire s’engage à cultiver/entretenir en priorité des espèces peu gourmandes en eau, adaptées au climat local, privilégier le paillage, et à privilégier les sources d’eau non issues du réseau d’eau potable (par exemple récupération des eaux de pluie). L’auto-installation des équipements économiseurs d’eau est autorisée. | N44: 0
A45: =IF('2-Je choisis mes actions'!I17=0,0,'2-Je choisis mes actions'!J17) -> 0 | B45: ='2-Je choisis mes actions'!B17 -> r12 | C45: ='2-Je choisis mes actions'!C17 -> 0 | D45: ='2-Je choisis mes actions'!D17 -> 0 | E45: =IF(nb_erreur=0,'2-Je choisis mes actions'!E17*$H45,0) -> 0 | F45: =IF(nb_erreur=0,'2-Je choisis mes actions'!F17*$H45,0) -> 0 | G45: =IF('2-Je choisis mes actions'!G17="Oui","Oui","") ->  | H45: ='2-Je choisis mes actions'!I17 -> 0 | I45: Autres équipements | J45: r12 | K45: ='2-Je choisis mes actions'!K17 -> L.ET | L45: 0 | N45: 0
A46: =IF('2-Je choisis mes actions'!I18=0,0,'2-Je choisis mes actions'!J18) -> 0 | B46: ='2-Je choisis mes actions'!B18 -> r13 | C46: ='2-Je choisis mes actions'!C18 -> 0 | D46: ='2-Je choisis mes actions'!D18 -> 0 | E46: =IF(nb_erreur=0,'2-Je choisis mes actions'!E18*$H46,0) -> 0 | F46: =IF(nb_erreur=0,'2-Je choisis mes actions'!F18*$H46,0) -> 0 | G46: =IF('2-Je choisis mes actions'!G18="Oui","Oui","") ->  | H46: ='2-Je choisis mes actions'!I18 -> 0 | I46: Autres équipements | J46: r13 | K46: ='2-Je choisis mes actions'!K18 -> L.ET | L46: 0 | N46: 0
A47: =IF('2-Je choisis mes actions'!I19=0,0,'2-Je choisis mes actions'!J19) -> 0 | B47: ='2-Je choisis mes actions'!B19 -> r14 | C47: ='2-Je choisis mes actions'!C19 -> 0 | D47: ='2-Je choisis mes actions'!D19 -> 0 | E47: =IF(nb_erreur=0,'2-Je choisis mes actions'!E19*$H47,0) -> 0 | F47: =IF(nb_erreur=0,'2-Je choisis mes actions'!F19*$H47,0) -> 0 | G47: =IF('2-Je choisis mes actions'!G19="Oui","Oui","") ->  | H47: ='2-Je choisis mes actions'!I19 -> 0 | I47: Autres équipements | J47: r14 | K47: ='2-Je choisis mes actions'!K19 -> L.ET | L47: 0 | N47: 0
A48: =IF('2-Je choisis mes actions'!I149=0,0,'2-Je choisis mes actions'!J149) -> 0 | B48: ='2-Je choisis mes actions'!B149 -> Ecran thermique (horizontal au-dessus des cultures ou latéral) | C48: ='2-Je choisis mes actions'!C149 -> 0 | D48: ='2-Je choisis mes actions'!D149 -> Surface d'écran thermique en m² | E48: =IF(nb_erreur=0,'2-Je choisis mes actions'!E149*$H48,0) -> 0 | F48: =IF(nb_erreur=0,'2-Je choisis mes actions'!F149*MIN(1,SUM(H48:H51)),0) -> 0 | G48: =IF('2-Je choisis mes actions'!G149="Oui","Oui","") ->  | H48: ='2-Je choisis mes actions'!I149 -> 0 | I48: Autres équipements | J48: Serres - Ecran thermique | K48: ='2-Je choisis mes actions'!K149 -> I.FF | L48: 0 | M48: ='3-Synthese et finalisation'!C43 -> Opération respectant les conditions d'une des fiches CEE suivantes : - AGRI-EQ-102 (double écran thermique), - AGRI-EQ-104 (écrans thermiques latéraux) | N48: =IF(A48=0,0,$K$154*F48-SUM(N49:N51)) -> 0
A49: =IF('2-Je choisis mes actions'!I150=0,0,'2-Je choisis mes actions'!J150) -> 0 | B49: ='2-Je choisis mes actions'!B150 -> Isolation des parois latérales | C49: ='2-Je choisis mes actions'!C150 -> 0 | D49: ='2-Je choisis mes actions'!D150 -> Surface de paroi isolante en m² | E49: =IF(nb_erreur=0,'2-Je choisis mes actions'!E150*$H49,0) -> 0 | G49: =IF('2-Je choisis mes actions'!G150="Oui","Oui","") ->  | H49: ='2-Je choisis mes actions'!I150 -> 0 | I49: Autres équipements | J49: Serres - Isolation parois latérales | K49: ='2-Je choisis mes actions'!K150 -> I.FF | L49: 0 | M49: ='3-Synthese et finalisation'!C45 -> Opération respectant les conditions de la fiche AGRI-EQ-107 (isolation des parois de serre) | N49: =IF(A49=0,0,IF(A48=0,$K$154*F48-SUM(N50:N51),$K$154*F48*A49/SUM($A$48:$A$51))) -> 0
A50: =IF('2-Je choisis mes actions'!I151=0,0,'2-Je choisis mes actions'!J151) -> 0 | B50: ='2-Je choisis mes actions'!B151 -> Système de déshumidification avec air extérieur | C50: ='2-Je choisis mes actions'!C151 -> 0 | D50: ='2-Je choisis mes actions'!D151 -> Surface de serres équipées en m² | E50: =IF(nb_erreur=0,'2-Je choisis mes actions'!E151*$H50,0) -> 0 | G50: =IF('2-Je choisis mes actions'!G151="Oui","Oui","") ->  | H50: ='2-Je choisis mes actions'!I151 -> 0 | I50: Autres équipements | J50: Serres - Déshumidification avec air extérieur | K50: ='2-Je choisis mes actions'!K151 -> I.FF | L50: 0 | M50: ='3-Synthese et finalisation'!C47 -> Opération respectant les conditions de la fiche AGRI-TH-119 (système de déshumidification avec air extérieur) | N50: =IF(A50=0,0,IF(A48+A49=0,$K$154*F48-N51,$K$154*F48*A50/SUM($A$48:$A$51))) -> 0
A51: =IF('2-Je choisis mes actions'!I152=0,0,'2-Je choisis mes actions'!J152) -> 0 | B51: ='2-Je choisis mes actions'!B152 -> Déshumidificateur thermodynamique pour serres | C51: ='2-Je choisis mes actions'!C152 -> 0 | D51: ='2-Je choisis mes actions'!D152 -> Surface de serres équipées en m² | E51: =IF(nb_erreur=0,'2-Je choisis mes actions'!E152*$H51,0) -> 0 | G51: =IF('2-Je choisis mes actions'!G152="Oui","Oui","") ->  | H51: ='2-Je choisis mes actions'!I152 -> 0 | I51: Autres équipements | J51: Serres - Déshumidificateur thermodynamique | K51: ='2-Je choisis mes actions'!K152 -> I.FF | L51: 0 | M51: ='3-Synthese et finalisation'!C49 -> Opération respectant les conditions de la fiche AGRI-TH-117 (déshumidificateur thermodynamique pour serres) | N51: =IF(A51=0,0,IF(A48+A49+A50=0,$K$154*F48,$K$154*F48*A51/SUM($A$48:$A$51))) -> 0
A52: =IF('2-Je choisis mes actions'!I80=0,0,'2-Je choisis mes actions'!J80) -> 0 | B52: ='2-Je choisis mes actions'!B80 -> Bardage extérieur ventilé | C52: ='2-Je choisis mes actions'!C80 -> 0 | D52: ='2-Je choisis mes actions'!D80 -> Surface isolée en m² | E52: =IF(nb_erreur=0,'2-Je choisis mes actions'!E80*$H52,0) -> 0 | F52: =IFERROR(IF(H52=0,0,H156*N52/SUM(N91:N97,N53,N52)),0) -> 0 | G52: =IF('2-Je choisis mes actions'!G80="Oui","Oui","") ->  | H52: ='2-Je choisis mes actions'!I80 -> 0 | I52: Autres équipements | J52: Bardage extérieur ventilé | K52: ='2-Je choisis mes actions'!K80 -> L.EY | L52: 0 | M52: ='3-Synthese et finalisation'!C132 -> Une aide financière peut vous être versée pour la mise en place de bardage extérieur ventilé. L’installation est réalisée par un professionnel. Un audit énergétique préalable (de moins de 2 ans) doit être réalisé pour tout établissement > 500 m2. Le choix technique doit être en accord avec les recommandations de l’audit. Financement possible de l’audit : voir rubrique « Actions de rénovation globale des bâtiments et de qualité de l'air » ci-dessus. Pour les établissements compris entre 500 et 1000 m2, un audit simplifié réalisé par un conseiller SARE petit Tertiaire de type ActeB2, est accepté. Le choix technique doit être en accord avec les recommandations de l’audit. Les critères suivants doivent être respectés : - au moins 50 % de la totalité des murs extérieurs doit être couverte, - le taux d’ouverture (surface d’ouverture = rapportée à la surface de la paroi) à l’extrémité basse de la paroi est au moins égal à 3 % ; - le taux d’ouverture à l’extrémité haute de la paroi est au moins égal à 3 % ; - la distance horizontale séparant la face intérieure du pare-soleil et la face extérieure de la paroi est telle que, sur toute la hauteur de la paroi, une surface horizontale libre au moins égale à 3 % de la surface de la paroi est ménagée pour assurer le passage libre de l’air. L’application de peintures réfléchissantes sur les murs n’est pas éligible. | N52: =IFERROR(ROUND(IF($H$156=SUM($A$91:$A$97)+$A$52+$A$53,$K$155*A52,$K$155*$H$156*A52/(SUM($A$91:$A$97)+$A$52+$A$53)),2),0) -> 0
A53: =IF('2-Je choisis mes actions'!I76=0,0,'2-Je choisis mes actions'!J76) -> 0 | B53: ='2-Je choisis mes actions'!B76 -> Isolation des planchers bas sur « espace non chauffé » | C53: ='2-Je choisis mes actions'!C76 -> 0 | D53: ='2-Je choisis mes actions'!D76 -> Surface isolée en m² | E53: =IF(nb_erreur=0,'2-Je choisis mes actions'!E76*$H53,0) -> 0 | F53: =IFERROR(IF(H53=0,0,H156*N53/SUM(N91:N97,N53,N52)),0) -> 0 | G53: =IF('2-Je choisis mes actions'!G76="Oui","Oui","") ->  | H53: ='2-Je choisis mes actions'!I76 -> 0 | I53: Aménagements et constructions | J53: Isolation plancher bas espace non chauffé | K53: ='2-Je choisis mes actions'!K76 -> L.EY | L53: 0 | M53: ='3-Synthese et finalisation'!C124 -> Une aide financière peut vous être versée pour l'isolation thermique des rampants de toiture et plafonds de combles. Un audit énergétique préalable (de moins de 2 ans) doit être réalisé pour tout établissement > 500 m2. Le choix technique doit être en accord avec les recommandations de l’audit. Financement possible de l’audit : voir rubrique « Actions de rénovation globale des bâtiments et de qualité de l'air » ci-dessus. Pour les établissements compris entre 500 et 1000 m2, un audit simplifié réalisé par un conseiller SARE petit Tertiaire de type ActeB2, est accepté. Le choix technique doit être en accord avec les recommandations de l’audit. Cette isolation devra être réalisée avec des procédés d'isolation constitués de l'association d'un matériau isolant et de dispositifs de fixation et de protection (dont membranes continues si nécessaire) contre des dégradations liées à son exposition aux environnements extérieurs et intérieurs, en conformité avec les règles de l'art. En métropole : la résistance thermique de l'isolation installée répond aux exigences fixées par le fiche CEE BAT-EN-101 : elle est supérieure ou égale à 6 m². K/W. En outre-mer : la résistance thermique de l'isolation installée répond aux exigences fixées par le fiche CEE BAT-EN-106 : elle est supérieure ou égale à 1,2 m². K/W. La résistance thermique est évaluée selon la norme NF EN 12664, la norme NF EN 12667 ou la norme NF EN 12939 pour les isolants non-réfléchissants ou la norme NF EN 16012+A1 pour les isolants réfléchissants. A noter que pour assurer également le confort d’été : - Pour les établissements < 500 m2 de surface de plancher, telle que définie par l’article R111-22 du code de l’urbanisme (https://www.legifrance.gouv.fr/codes/article_lc/LEGIARTI000031721274/), l’ADEME recommande de valider avec l’installateur le choix de la solution d’isolation retenue (intérieur, extérieur, type de matériau, …) au regard du confort d’été - Pour les établissements > 500 m2 de surface de plancher, telle que définie par l’article R111-22 du code de l’urbanisme (https://www.legifrance.gouv.fr/codes/article_lc/LEGIARTI000031721274/) : se référer aux recommandations de l’audit. L’installation est réalisée par un professionnel. Cet investissement peut également bénéficier des Certificats d’économie d’énergie. | N53: =IFERROR(ROUND(IF($H$156=SUM($A$91:$A$97)+$A$53+$A$52,$K$155*A53,$K$155*$H$156*A53/(SUM($A$91:$A$97)+$A$53+$A$52)),2),0) -> 0
A54: =IF('2-Je choisis mes actions'!I23=0,0,'2-Je choisis mes actions'!J23) -> 0 | B54: ='2-Je choisis mes actions'!B23 -> Modèle d'affaires Tourisme durable Hébergement touristique | C54: ='2-Je choisis mes actions'!C23 -> 0 | D54: ='2-Je choisis mes actions'!D23 -> Oui/Non | E54: =IF(nb_erreur=0,'2-Je choisis mes actions'!E23*$H54,0) -> 0 | F54: =IF(nb_erreur=0,'2-Je choisis mes actions'!F23*$H54,0) -> 0 | G54: =IF('2-Je choisis mes actions'!G23="Oui","Oui","") ->  | H54: ='2-Je choisis mes actions'!I23 -> 0 | I54: Prestations extérieurs - Autres dépenses de sous traitance (études, honoraires, etc.) | J54: Hébergement - Modèle d'affaires | K54: ='2-Je choisis mes actions'!K23 -> L.ET | L54: 0 | M54: ='3-Synthese et finalisation'!C51 -> Un consultant peut vous accompagner dans l’établissement d’un nouveau modèle d’affaires qui visera à mettre en parallèle les évolutions envisageables vers la transition écologique et son impact sur les coûts et la réponse à l’évolution de la demande. Le prestataire évaluera les modalités de mise en œuvre et notamment l’impact financier (investissements et revenus attendus) d'une évolution vers tout ou partie des volets suivants : - Maîtrise des consommations et contrats d'énergie verte ; - Circuits courts et valorisation des produits de qualité, locaux et de saison pour le volet alimentaire; - Mobilités douces des clients ; - Valorisation du patrimoine naturel (ex.: refuge LPO) ; - Attractivité de nouveaux clients avec la proposition de nouveaux services dits durables (hébergements alternatifs, activités touristiques) - Mise en place d’une démarche de management environnementale comprenant notamment une charte des éco-gestes à respecter dans l’établissement en fonction des différents métiers et postes (eau, énergie, déchet) et un plan d’actions des engagements de transition écologique à venir Cette charte pourra être mise à disposition des nouveaux arrivants et des saisonniers sous forme de livret d’accueil - Définition d’une politique d’achat responsable Le prestataire remettra le rapport final à l’établissement, qui le tiendra à disposition de l’ADEME. | N54: =$K$154*F54 -> 0
A55: =IF('2-Je choisis mes actions'!I24=0,0,'2-Je choisis mes actions'!J24) -> 0 | B55: ='2-Je choisis mes actions'!B24 -> Formation aux éco-gestes pour un hébergement touristique durable | C55: ='2-Je choisis mes actions'!C24 -> 0 | D55: ='2-Je choisis mes actions'!D24 -> Oui/Non | E55: =IF(nb_erreur=0,'2-Je choisis mes actions'!E24*$H55,0) -> 0 | F55: =IF(nb_erreur=0,'2-Je choisis mes actions'!F24*$H55,0) -> 0 | G55: =IF('2-Je choisis mes actions'!G24="Oui","Oui","") ->  | H55: ='2-Je choisis mes actions'!I24 -> 0 | I55: Prestations extérieurs de formation / communication / animation | J55: Hébergement - Formation | K55: ='2-Je choisis mes actions'!K24 -> L.ET | L55: 0 | M55: ='3-Synthese et finalisation'!C53 -> Cette action a pour objectif de fournir une formation sur les enjeux environnementaux d’un hébergement touristique ou une formation courte sur les éco-gestes que les salariés peuvent mettre en place en lien avec l’activité d’hébergement pour le nettoyage, la qualité de l'air intérieur, la sensibilisation des clients, l’utilisation de l’eau ou l’énergie etc. La formation doit être dispensée par un organisme de formation habilité. Le bénéficiaire conservera les attestations de formation qu’il tiendra à disposition de l’ADEME. Idéalement, cela doit être doublé de la mise en place d’une charte « éco-geste » personnalisée à l’établissement qui sera mise à disposition via un livret d’accueil de tous les nouveaux arrivants ainsi que des saisonniers qui ne pourraient pas bénéficier d’une formation systématique. | N55: 0
A56: =IF('2-Je choisis mes actions'!I25=0,0,'2-Je choisis mes actions'!J25) -> 0 | B56: ='2-Je choisis mes actions'!B25 -> Communication - Supports de communication valorisant l’hébergement touristique durable | C56: ='2-Je choisis mes actions'!C25 -> 0 | D56: ='2-Je choisis mes actions'!D25 -> Oui/Non | E56: =IF(nb_erreur=0,'2-Je choisis mes actions'!E25*$H56,0) -> 0 | F56: =IF(nb_erreur=0,'2-Je choisis mes actions'!F25*$H56,0) -> 0 | G56: =IF('2-Je choisis mes actions'!G25="Oui","Oui","") ->  | H56: ='2-Je choisis mes actions'!I25 -> 0 | I56: Prestations extérieurs de formation / communication / animation | J56: Hébergement - Communication | K56: ='2-Je choisis mes actions'!K25 -> L.ET | L56: 0 | M56: ='3-Synthese et finalisation'!C55 -> Cette ligne consiste à soutenir les actions de communication pérennes qui mettent en valeur la démarche durable de l’hébergement, les fournisseurs locaux, ainsi que les écogestes dans l’hébergement pour les salarié.e.s et pour les client.e.s : achat de supports de communication matériels ou numérique pérennes et/ou actions immatérielles à vocation pérenne. En activant cette ligne, le bénéficiaire s'engage à mettre en avant auprès des clients et des salariés : les éco-gestes ou les engagements environnementaux (économie d’eau ou d’énergie etc…) … Vous pouvez bénéficier d’une aide pour : - Des achats de supports de communication matériels pérennes : o L’achat de tableaux/panneaux/supports d’affichage en matériaux biosourcés, naturels ou recyclables, ou supports imprimés à l’exclusion des supports à usage unique pour l’information des client.e.s sur la démarche de transition écologique de l’hébergement concernant : les éco-gestes au quotidien, les démarches environnementales de l’hébergement, les certifications ou labélisations obtenus, la valorisation des mobilités alternatives ou douces au départ de l’établissement. Les panneaux d’affichage électroniques ou écrans ne sont pas éligibles. - Les achats de prestations immatérielles auprès d’une agence de communication : o La création de nudges (élément de communication qui participe au déploiement des éco-gestes via le des leviers décisionnels psychosociologiques comme le jeu ou le regard des autres) permettant de sensibiliser les clients aux éco-gestes à adopter au quotidien o La création ou l’adaptation de supports de communication imprimés ou numériques (prestation intellectuelle), y compris visuels, photos, vidéos, stratégie de communication o L’adaptation du site internet pour en faire un site éco-conçu s’appuiera sur les recommandations de l'Institut du numérique responsable ; o La mise à jour du site internet ou de la présence sur les réseaux sociaux, la présence sur les plateformes de réservation (mettant en avant les engagements des établissements dans la transition écologique) valorisant les engagements développement durable de l’hébergement touristique. Ne sont pas éligibles les prestations de référencement, recherche de mots-clés. En activant cette ligne, le bénéficiaire s'engage à mettre en avant auprès des clients et des salariés les éco-gestes, les circuits courts ou les engagements environnementaux. | N56: 0
A57: =IF('2-Je choisis mes actions'!I26=0,0,'2-Je choisis mes actions'!J26) -> 0 | B57: ='2-Je choisis mes actions'!B26 -> Energie - Accompagnement pour le financement de la rénovation globale | C57: ='2-Je choisis mes actions'!C26 -> 0 | D57: ='2-Je choisis mes actions'!D26 -> Oui/Non | E57: =IF(nb_erreur=0,'2-Je choisis mes actions'!E26*$H57,0) -> 0 | F57: =IF(nb_erreur=0,'2-Je choisis mes actions'!F26*$H57,0) -> 0 | G57: =IF('2-Je choisis mes actions'!G26="Oui","Oui","") ->  | H57: ='2-Je choisis mes actions'!I26 -> 0 | I57: Prestations extérieurs - Autres dépenses de sous traitance (études, honoraires, etc.) | J57: Hébergement - Accompagnement rénovation globale | K57: ='2-Je choisis mes actions'!K26 -> L.ET | L57: 0 | M57: ='3-Synthese et finalisation'!C57 -> En complément de la ligne "MOE pour rénovation globale sur un objectif d'économie d'énergie", cette ligne permet d'établir une prestation auprès d'un bureau d'étude ou d'un consultant, avec pour objectif de : - Établir le plan de financement, en fonction des différents guichets nationaux, régionaux et locaux, indiquant clairement au bénéficiaire le montant des aides et le reste à charge ; - Préparer les dossiers de demande d'aide auprès de ces guichets avec les renseignements techniques demandés. | N57: 0
A58: =IF('2-Je choisis mes actions'!I27=0,0,'2-Je choisis mes actions'!J27) -> 0 | B58: ='2-Je choisis mes actions'!B27 -> Energie - Maîtrise des besoins de chauffage des chambres | C58: ='2-Je choisis mes actions'!C27 -> 0 | D58: ='2-Je choisis mes actions'!D27 -> Nombre de chambres équipées | E58: =IF(nb_erreur=0,'2-Je choisis mes actions'!E27*$H58,0) -> 0 | F58: =IF(nb_erreur=0,'2-Je choisis mes actions'!F27*$H58,0) -> 0 | G58: =IF('2-Je choisis mes actions'!G27="Oui","Oui","") ->  | H58: ='2-Je choisis mes actions'!I27 -> 0 | I58: Autres équipements | J58: Hébergement - Maîtrise besoins chauffage | K58: ='2-Je choisis mes actions'!K27 -> L.ET | L58: 0 | M58: ='3-Synthese et finalisation'!C59 -> Pour maintenir la consommation d'énergie à un niveau raisonnable, il est nécessaire de réguler les températures en fonction des besoins réels et de l'occupation ou non des différentes zones de l'hébergement. Il est notamment très important de posséder un dispositif de régulation thermique dans chaque chambre : la mise en place de systèmes de contrôle autonomes dans les chambres peut permettre d'économiser jusqu'à 30 % d'énergie en chauffage. Vous pouvez bénéficier d’une aide pour financer des robinets thermostatiques de radiateur, thermostat d’ambiance, un dispositif de détection d'ouverture de fenêtre permettant d’interrompre le chauffage seul ou combiné avec la climatisation, carte-coupe circuit couplée chauffage (climatisation) et éclairage ou dispositif de détection de présence, un programmateur horaire, ou un système de gestion par chambre des consignes des radiateurs. En activant cette ligne, le bénéficiaire s'engage sur des consignes de température par chambre (hors été) selon leur occupation : 20°C à 22°C si chambre occupée ; 16°C à 18°C si chambre inoccupée pendant une courte période ; maintien à 12°C-14°C si inoccupée pendant une longue période -> baisser la température du thermostat d’un degré permet de baisser la facture de 7% | N58: 0
A59: =IF('2-Je choisis mes actions'!I28=0,0,'2-Je choisis mes actions'!J28) -> 0 | B59: ='2-Je choisis mes actions'!B28 -> Energie - Sèche-linge professionnel de grande efficacité énergétique | C59: ='2-Je choisis mes actions'!C28 -> 0 | D59: ='2-Je choisis mes actions'!D28 -> € par kg de linge (capacité) | E59: =IF(nb_erreur=0,'2-Je choisis mes actions'!E28*$H59,0) -> 0 | F59: =IF(nb_erreur=0,'2-Je choisis mes actions'!F28*$H59,0) -> 0 | G59: =IF('2-Je choisis mes actions'!G28="Oui","Oui","") ->  | H59: ='2-Je choisis mes actions'!I28 -> 0 | I59: Autres équipements | J59: Hébergement - Sèche-linge | K59: ='2-Je choisis mes actions'!K28 -> L.ET | L59: 0 | M59: ='3-Synthese et finalisation'!C61 -> Vous pouvez bénéficier d’une aide pour l’acquisition de sèche-linge professionnels qui permettent une économie d'énergie. Pour le calcul de l’aide, si le bénéficiaire investit dans plusieurs sèche-linge, le forfait sera calculé en ajoutant la capacité en kg de linge des différents équipements. La taille des équipements sera évaluée pour garantir un taux de remplissage optimisé pour chaque cycle. L’aide totale sur cette ligne est au maximum de 50 000 €. Critères techniques à respecter pour les sèche-linge : - Seuls sont éligibles les sèche-linge professionnels avec pompe à chaleur, - Energie de séchage inférieure à 0,3 kWh/kg linge pour un cycle de séchage max de 90 min. - Pour exemple, TopTen référence ce type des équipements éligibles : https://www.guidetopten.fr/pro | N59: 0
A60: =IF('2-Je choisis mes actions'!I29=0,0,'2-Je choisis mes actions'!J29) -> 0 | B60: ='2-Je choisis mes actions'!B29 -> Energie - Bâche de nuit pour piscine | C60: ='2-Je choisis mes actions'!C29 -> 0 | D60: ='2-Je choisis mes actions'!D29 -> Oui/Non | E60: =IF(nb_erreur=0,'2-Je choisis mes actions'!E29*$H60,0) -> 0 | F60: =IF(nb_erreur=0,'2-Je choisis mes actions'!F29*$H60,0) -> 0 | G60: =IF('2-Je choisis mes actions'!G29="Oui","Oui","") ->  | H60: ='2-Je choisis mes actions'!I29 -> 0 | I60: Autres équipements | J60: Hébergement - Bâche de nuit piscine | K60: ='2-Je choisis mes actions'!K29 -> L.ET | L60: 0 | M60: ='3-Synthese et finalisation'!C63 -> La bâche de nuit pour piscine permet de limiter la déperdition calorifique d'au moins 20% en moyenne ainsi que l’évaporation de l’eau. Les bâches opaques permettent également de réduire la consommation de produits de traitement de l'eau en limitant la photosynthèse. Il est recommandé de privilégier les modules manuels (dérouleur), sinon seuls les modules avec alimentation solaire sont éligibles dans le forfait. Valable pour les piscines en extérieur comme en intérieur dans les bâtiments couverts Non éligible pour les jacuzzis / spas ou le remplacement d’une bâche existante Le forfait s’entend au global pour 1 établissement quelle que soit la taille de la piscine ou le nombre de piscine. | N60: 0
A61: =IF('2-Je choisis mes actions'!I30=0,0,'2-Je choisis mes actions'!J30) -> 0 | B61: ='2-Je choisis mes actions'!B30 -> Energie & Confort d'été - actions sur les ouvertures (fenêtres) | C61: ='2-Je choisis mes actions'!C30 -> 0 | D61: ='2-Je choisis mes actions'!D30 -> Nombre de fenêtres équipées | E61: =IF(nb_erreur=0,'2-Je choisis mes actions'!E30*$H61,0) -> 0 | F61: =IF(nb_erreur=0,'2-Je choisis mes actions'!F30*$H61,0) -> 0 | G61: =IF('2-Je choisis mes actions'!G30="Oui","Oui","") ->  | H61: ='2-Je choisis mes actions'!I30 -> 0 | I61: Prestations extérieurs - Autres dépenses de sous traitance (études, honoraires, etc.) | J61: Hébergement - ouvertures | K61: ='2-Je choisis mes actions'!K30 -> L.ET | L61: 0 | M61: ='3-Synthese et finalisation'!C65 -> Cette action vise à améliorer le confort en été de votre hébergement touristique et à diminuer voire supprimer les besoins de climatisation, en agissant sur la protection des ouvertures (particulièrement celles exposées à l’ouest et au sud) L’ensemble de ces actions ne vise pas le remplacement d’équipements déjà existants. L’aide est possible pour un premier achat ou la rénovation et réparation d’équipements existants. Sont éligibles : Volets, volets roulants manuels ou solaires, stores pare-soleil intérieurs ou extérieurs, films solaires sur les ouvrants, rideaux occultants thermiques, brise soleil… Non éligibles : rideaux, voilages, ombrières, changement de menuiseries yc en double vitrage. | N61: 0
A62: =IF('2-Je choisis mes actions'!I31=0,0,'2-Je choisis mes actions'!J31) -> 0 | B62: ='2-Je choisis mes actions'!B31 -> Energie & Confort d'été - végétalisation | C62: ='2-Je choisis mes actions'!C31 -> 0 | D62: ='2-Je choisis mes actions'!D31 -> Oui/Non | E62: =IF(nb_erreur=0,'2-Je choisis mes actions'!E31*$H62,0) -> 0 | F62: =IF(nb_erreur=0,'2-Je choisis mes actions'!F31*$H62,0) -> 0 | G62: =IF('2-Je choisis mes actions'!G31="Oui","Oui","") ->  | H62: ='2-Je choisis mes actions'!I31 -> 0 | I62: Prestations extérieurs de formation / communication / animation | J62: Hébergement - végétalisation | K62: ='2-Je choisis mes actions'!K31 -> L.ET | L62: 0 | M62: ='3-Synthese et finalisation'!C67 -> Cette action vise à réduire les apports de chaleur en été vers le bâtiment, en lien avec l’activité d’hébergement. En été, des murs chauds peuvent entraîner une élévation de la température intérieure des bâtiments, ce qui a pour effet d'augmenter la demande en climatisation et, par là même, la consommation d'énergie. Lorsque les murs sont recouverts de plantes et de terre humide, leur température peut être réduite, la baisse pouvant aller jusqu'à 10 °C, ce qui permet de réduire les besoins en climatisation à l'intérieur du bâtiment. Aux abords du bâtiment, les arbres et les sols jouent un rôle important de rafraîchissement, par ombrage et évapotranspiration. Vous pouvez bénéficier d’une aide pour: - Une étude climatique et paysagère (recensement des plantations présentes pour le remplacement par des espèces endémiques) - La préparation et la plantation pour murs végétaux ou toitures végétalisées ; - La désimperméabilisation (suppression des espaces étanches par des espaces perméables végétalisées) et les plantations adaptées aux futures conditions climatiques et cohérentes avec la biodiversité locale - Cultiver/entretenir en priorité des espèces peu gourmandes en eau et à pousse lente (permet de limiter également les biodéchets), adaptées au climat local, à privilégier le paillage, à privilégier les sources d’eau non issues du réseau d’eau potable (par exemple récupération des eaux de pluie), le cas échéant choisir un système d’arrosage économe en eau (goutte à goutte) - L’installation d’une pergola en bois naturel avec ombrage végétal permettant de végétaliser terrasses ou espaces extérieures pour apporter ombre et fraicheur / les parasols sont non éligibles. | N62: 0
